Workbook

Sheet Instructions
A1: Economic model for optimum phosphorus level

Sheet STTD P Energy equation (hidden)
D2: Trial
A3: Start_wt_kg | B3: End_wt_kg | C3: Avg wt_kg | D3: Avg_NE_kcal_kg | E3: Avg_NE_kcal_lb | F3: STTD P req | G3: STTDP_NE_kg | H3: Total P | I3: TotalP_NE_kg | J3: Avg_ME_kcal_kg | K3: Avg_ME_kcal_lb | L3: STTD P_ME_kg
A4: 11.33980925 | B4: 24.17647332 | C4: 17.75814129 | D4: 2410 | E4: 1093 | F4: 0.43 | G4: =(F4/D4)*10000 -> 1.784232365 | H4: 0.69 | I4: =(H4/D4)*10000 -> 2.863070539 | J4: 3265 | K4: 1481 | L4: =(F4/J4)*10000 -> 1.316998469
A5: 24.17647332 | B5: 49.07869443 | C5: 36.62758388 | D5: 2429 | E5: 1101.658019 | F5: 0.38 | G5: =(F5/D5)*10000 -> 1.564429807 | H5: 0.64 | I5: =(H5/D5)*10000 -> 2.634829148 | J5: 3285 | K5: 1489.673094 | L5: =(F5/J5)*10000 -> 1.156773212
A6: 49.07869443 | B6: 77.33749909 | C6: 63.20809676 | D6: 2496 | E6: 1131.549801 | F6: 0.33 | G6: =(F6/D6)*10000 -> 1.322115385 | H6: 0.56 | I6: =(H6/D6)*10000 -> 2.243589744 | J6: 3300 | K6: 1496.726406 | L6: 1
A7: 75.52312961 | B7: 89.72057079 | C7: 82.6218502 | D7: 2538 | E7: 1150.254674 | F7: 0.29 | G7: =(F7/D7)*10000 -> 1.142631994 | H7: 0.51 | I7: =(H7/D7)*10000 -> 2.009456265 | J7: 3300 | K7: 1496.726406 | L7: 0.8787878788
A8: 89.72057079 | B8: 130.4078064 | C8: 110.0641886 | D8: 2544 | E8: 1153.664318 | F8: 0.26 | G8: =(F8/D8)*10000 -> 1.022012579 | H8: 0.47 | I8: =(H8/D8)*10000 -> 1.847484277 | J8: 3309 | K8: 1501.289772 | L8: 0.7857358719

Sheet NRC 2012 (hidden)
A2: NRC, 2012. Table 16-1A
B3: Body Weight Range, Kg
A4: Item: | B4: 5 | C4: 7 | D4: 7 | E4: 11 | F4: 11 | G4: 25 | H4: 25 | I4: 50 | J4: 50 | K4: 75 | L4: 75 | M4: 100 | N4: 100 | O4: 135
A5: Avg. wt, calculated | B5: 6 | D5: 9 | F5: 18 | H5: 37.5 | J5: 62.5 | L5: 87.5 | N5: 117.5
A6: P, STTD | B6: 0.45 | D6: 0.4 | F6: 0.33 | H6: 0.31 | J6: 0.27 | L6: 0.24 | N6: 0.21
A8: Reformatted table for Regression Analysis
A10: Growth Stage | B10: Avg. wt, kg | C10: Wt*Wt | D10: P, STTD
A11: Early growth | B11: 6 | C11: 36 | D11: 0.45
B12: 9 | C12: 81 | D12: 0.4
A13: Grow-finish | B13: 18 | C13: 324 | D13: 0.33
B14: 37.5 | C14: 1406.25 | D14: 0.31
B15: 62.5 | C15: 3906.25 | D15: 0.27
B16: 87.5 | C16: 7656.25 | D16: 0.24
B17: 117.5 | C17: 13806.25 | D17: 0.21
A19: Growth Stage | B19: Avg. wt, kg | C19: Wt*Wt | D19: P, STTD
A20: Grow-finish | B20: 18 | C20: 324 | D20: 0.33
B21: 37.5 | C21: 1406.25 | D21: 0.31
B22: 62.5 | C22: 3906.25 | D22: 0.27
B23: 87.5 | C23: 7656.25 | D23: 0.24
B24: 117.5 | C24: 13806.25 | D24: 0.21
A27: SUMMARY OUTPUT
A29: Regression Statistics
A30: Multiple R | B30: 0.9965609325
A31: R Square | B31: 0.9931336921
A32: Adjusted R Square | B32: 0.9908449228
A33: Standard Error | B33: 0.004706940274
A34: Observations | B34: 5
A36: ANOVA
B37: df | C37: SS | D37: MS | E37: F | F37: Significance F
A38: Regression | B38: 1 | C38: 0.00961353414 | D38: 0.00961353414 | E38: 433.9160333 | F38: 0.0002419751408
A39: Residual | B39: 3 | C39: 6.646586023e-05 | D39: 2.215528674e-05
A40: Total | B40: 4 | C40: 0.00968
B42: Coefficients | C42: Standard Error | D42: t Stat | E42: P-value | F42: Lower 95% | G42: Upper 95% | H42: Lower 95.0% | I42: Upper 95.0%
A43: Intercept | B43: 0.3522266252 | C43: 0.004389093038 | D43: 80.25043491 | E43: 4.264674083e-06 | F43: 0.3382585722 | G43: 0.3661946781 | H43: 0.3382585722 | I43: 0.3661946781
A44: X Variable 1 | B44: -0.001241898222 | C44: 5.961878988e-05 | D44: -20.83065129 | E44: 0.0002419751408 | F44: -0.00143163182 | G44: -0.001052164625 | H44: -0.00143163182 | I44: -0.001052164625
A48: RESIDUAL OUTPUT
G49: Avg. wt, kg | H49: Actual | I49: Linear | J49: Exponential
A50: Observation | B50: Predicted Y | C50: Residuals | D50: Standard Residuals | G50: 18 | H50: 0.33 | I50: =-0.0012418982*G50 + 0.3522266252 -> 0.3298724576 | J50: =0.3627881688*EXP(-0.0046664463*G50) -> 0.3335601048
A51: 1 | B51: 0.3298724572 | C51: 0.0001275428351 | D51: 0.03128864439 | G51: 37.5 | H51: 0.31 | I51: =-0.0012418982*G51 + 0.3522266252 -> 0.3056554427 | J51: =0.3627881688*EXP(-0.0046664463*G51) -> 0.304547592
A52: 2 | B52: 0.3056554418 | C52: 0.004344558172 | D52: 1.065801427 | G52: 62.5 | H52: 0.27 | I52: 0.2746079877 | J52: 0.2710128436
A53: 3 | B53: 0.2746079863 | C53: -0.004607986267 | D53: -1.130425269 | G53: 87.5 | H53: 0.24 | I53: 0.2435605327 | J53: 0.2411707179
A54: 4 | B54: 0.2435605307 | C54: -0.003560530707 | D54: -0.8734648167 | G54: 117.5 | H54: 0.21 | I54: 0.2063035867 | J54: =0.3627881688*EXP(-0.0046664463*G54) -> 0.2096651358
A55: 5 | B55: 0.206303584 | C55: 0.003696415966 | D55: 0.9068000139

Sheet Finisher Model - NE Metric
A1: Economic model for optimum phosphorus levels
A4: Input (please fill yellow cells) | W4: STTD P | X4: 0.000047291257153852600x2 - 0.014390782029002800000x + 2.027514542222900000000
A6: Economic evaluation criteria | X6: Slot (Phase) 1
A7: Live pig price, $/kg | Y7: STTD P:NE
A8: Carcass price, $/kg | T8: 2 | X8: Barrows and Gilts | Y8: =0.0000472912571538526*(U17*U17)- 0.0143907820290028*U17 + 2.0275145422229 -> 
A9: Current carcass yield, % | S9: Live | T9: 3
A10: Facility cost, $/pig/day | S10: Carcass | T10: 4 | X10: Slot (Phase) 2
A11: Number of phases | T11: 5 | Y11: STTD P:NE
T12: 6 | X12: Barrows and Gilts | Y12: =0.0000472912571538526*(U18*U18) - 0.0143907820290028*U18 + 2.0275145422229 -> 
A14: Gender | D14: Barrows and gilts | X14: Slot (Phase) 3
E15: Current diets | H15: Maximal growth | Y15: STTD P:NE
B16: BW, kg | D16: Energy, kcal NE/kg | E16: STTD P, % | F16: $/ton | H16: STTD P, % | I16: $/ton | P16: Biological % of NRC | R16: Current % of NRC | U16: Avg Wt, kg | V16: Gain, kg | W16: NRC, % STTD P | X16: Barrows and Gilts | Y16: =0.0000472912571538526*(U19*U19) - 0.0143907820290028*U19 + 2.0275145422229 -> 
A17: Phase 1 | H17: =IFERROR(VLOOKUP($D$14,$X$7:$Y$8,2,FALSE)*D17/10000,"") ->  | P17: =IFERROR(H17/W17,"") ->  | R17: =IFERROR(E17/W17,"") ->  | T17: Slot (phase 1) | U17: =IFERROR(AVERAGE(B17:C17),"") ->  | V17: =IF(C17-B17=0,0,C17-B17) -> 0 | W17: =-0.0012418982*U17+ 0.3522266252 -> 
A18: Phase 2 | H18: =IFERROR(VLOOKUP($D$14,$X$11:$Y$12,2,FALSE)*D18/10000,"") ->  | T18: Slot (phase 2) | V18: 0 | X18: Slot (Phase) 4
A19: Phase 3 | H19: =IFERROR(VLOOKUP($D$14,$X$15:$Y$16,2,FALSE)*D19/10000,"") ->  | T19: Slot (phase 3) | V19: 0 | Y19: STTD P:NE
A20: Phase 4 | H20: =IFERROR(VLOOKUP($D$14,$X$19:$Y$20,2,FALSE)*D20/10000,"") ->  | T20: Slot (phase 4) | V20: 0 | X20: Barrows and Gilts | Y20: =0.0000472912571538526*(U20*U20) - 0.0143907820290028*U20 + 2.0275145422229 -> 
A21: Phase 5 | H21: =IFERROR(VLOOKUP($D$14,$X$34:$Y$35,2,FALSE)*D21/10000,"") ->  | T21: Slot (phase 5) | V21: 0
A22: Phase 6 | H22: =IFERROR(VLOOKUP($D$14,$X$38:$Y$39,2,FALSE)*D22/10000,"") ->  | T22: Slot (phase 6) | V22: 0 | X22: Slot (Phase) 5
B24: Performance Output | F24: Economics Output
B25: Performance difference between maximal growth and current diets, % | F25: Net profit difference between maximal growth and current diets, $/pig
B26: Fixed Weight (space long) | F26: Fixed Weight (space long)
B27: Growth rate | D27: =IFERROR(E58,"") ->  | F27: =IF($D$10>0,"IOFFC","IOFC") -> IOFC | H27: =IFERROR(IF($F$27="IOFC",$E$65,$E$66),"") -> 
B28: Feed efficiency | D28: =IFERROR(E59,"") ->  | F28: Fixed Time (space short)
B29: Carcass yield | D29: =IFERROR(E60,"") ->  | F29: IOFC | H29: =IFERROR(K65,"") -> 
B30: Fixed Time (space short)
B31: Growth rate | D31: =IFERROR(K58,"") -> 
B32: Feed efficiency | D32: =IFERROR(K59,"") -> 
B33: Carcass yield | D33: =IFERROR(K60,"") -> 
U34: Total gain | V34: =SUM(V17:V22) -> 0 | Y34: STTD P:NE
X35: Barrows and Gilts | Y35: =0.0000472912571538526*(U21*U21) - 0.0143907820290028*U21 + 2.0275145422229 -> 
X37: Slot (Phase) 6
R38: ADG response | Y38: STTD P:NE
R39: Optimum STTD Ca:STTD P | T39: 2.48 | X39: Barrows and Gilts | Y39: =0.0000472912571538526*(U22*U22) - 0.0143907820290028*U22 + 2.0275145422229 -> 
R40: Optimum STTD Ca:STTD P | T40: 1.785
AC44: 0
A56: Output - Fixed Weight (space long) | G56: Output - Fixed Time (space short)
C57: Maximal Growth | D57: Current | I57: Maximal Growth | J57: Current
A58: % of maximum ADG | C58: 1 | D58: ='Current Performance - NE '!K5/'FW - Projected Performance - NE'!K6 ->  | E58: =(D58-C58)/D58 ->  | G58: % of maximum ADG | I58: 1 | J58: ='Current Performance - NE '!K5/'FT - Projected Performance - NE'!K5 ->  | K58: =(J58-I58)/J58 ->  | AC58: 0
A59: % of maximum feed efficiency | C59: 1 | D59: ='FW - Projected Performance - NE'!K7/'Current Performance - NE '!K6 ->  | E59: =(D59-C59)/D59 ->  | G59: % of maximum feed efficiency | I59: 1 | J59: ='FT - Projected Performance - NE'!K6/'Current Performance - NE '!K6 ->  | K59: =(J59-I59)/J59 -> 
A60: Carcass yield | C60: ='FW - Projected Performance - NE'!B43 ->  | D60: ='Current Performance - NE '!B36 ->  | E60: =(D60-C60)/D60 ->  | G60: Carcass yield | I60: ='FT - Projected Performance - NE'!B33 ->  | J60: ='Current Performance - NE '!B36 ->  | K60: =(J60-I60)/J60 -> 
A61: Economics, $/pig | G61: Economics, $/pig
A62: Total feed cost | C62: =IF(D6="Live",'FW - Projected Performance - NE'!K11,'FW - Projected Performance - NE'!K22) ->  | D62: ='Current Performance - NE '!K10 ->  | G62: Total feed cost | I62: ='FT - Projected Performance - NE'!K10 ->  | J62: ='Current Performance - NE '!K10 -> 
A63: Total feed and facility cost | C63: =IF(D13="Live",'FW - Projected Performance - NE'!K12,'FW - Projected Performance - NE'!K23) ->  | D63: ='Current Performance - NE '!K11 ->  | G63: Total feed and facility cost | I63: ='FT - Projected Performance - NE'!K11 ->  | J63: ='Current Performance - NE '!K11 -> 
A64: Total revenue | C64: =IF($D$6="Live",'FW - Projected Performance - NE'!K13,'FW - Projected Performance - NE'!K24) ->  | D64: =IF($D$6="Live",'Current Performance - NE '!K12,'Current Performance - NE '!K15) ->  | E64: Difference | G64: Total revenue | I64: =IF($D$6="Live",'FT - Projected Performance - NE'!K12,'FT - Projected Performance - NE'!K16) ->  | J64: =IF($D$6="Live",'Current Performance - NE '!K12,'Current Performance - NE '!K15) ->  | K64: Difference
A65: IOFC | C65: =IF(D15="Live",'FW - Projected Performance - NE'!K14,'FW - Projected Performance - NE'!K25) ->  | D65: =IF($D$6="Live",'Current Performance - NE '!K13,'Current Performance - NE '!K16) ->  | E65: =C65-D65 ->  | G65: IOFC | I65: =IF($D$6="Live",'FT - Projected Performance - NE'!K13,'FT - Projected Performance - NE'!K17) ->  | J65: =IF($D$6="Live",'Current Performance - NE '!K13,'Current Performance - NE '!K16) ->  | K65: =I65-J65 -> 
A66: IOFFC | C66: =IF($D$6="Live",'FW - Projected Performance - NE'!K15,'FW - Projected Performance - NE'!K26) ->  | D66: =IF($D$6="Live",'Current Performance - NE '!K14,'Current Performance - NE '!K17) ->  | E66: =C66-D66 ->  | G66: IOFFC | I66: =IF($D$6="Live",'FT - Projected Performance - NE'!K14,'FT - Projected Performance - NE'!K18) ->  | J66: =IF($D$6="Live",'Current Performance - NE '!K14,'Current Performance - NE '!K17) ->  | K66: =I66-J66 -> 

Sheet Current Performance - NE (hidden)
A1: Economic model for optimum phosphorus level - Model Calculations by phase
A2: Item | B2: Dietary phase | J2: Summary of Calculations with Current Phosphorus Levels
B4: 1 | C4: 2 | D4: 3 | E4: 4 | F4: 5 | G4: 6 | J4: Item | K4: Output | L4: 2 | M4: 3 | N4: 4 | O4: 5 | P4: 6
A5: Starting weight, kg | B5: ='Finisher Model - NE Metric'!B17 -> 0 | C5: ='Finisher Model - NE Metric'!B18 -> 0 | D5: ='Finisher Model - NE Metric'!B19 -> 0 | E5: ='Finisher Model - NE Metric'!B20 -> 0 | F5: ='Finisher Model - NE Metric'!B21 -> 0 | G5: ='Finisher Model - NE Metric'!B22 -> 0 | J5: Predicted ADG, g | K5: =IF('Finisher Model - NE Metric'!$D$11=2,'Current Performance - NE '!L5,IF('Finisher Model - NE Metric'!$D$11=3,'Current Performance - NE '!M5,IF('Finisher Model - NE Metric'!$D$11=4,'Current Performance - NE '!N5,IF('Finisher Model - NE Metric'!$D$11=5,'Current Performance - NE '!O5,IF('Finisher Model - NE Metric'!$D$11=6,'Current Performance - NE '!P5,""))))) ->  | L5: =((SUMPRODUCT($B$11:$C$11,$B$16:$C$16)/SUM($B$16:$C$16))/1000) ->  | M5: =((SUMPRODUCT($B$11:$D$11,$B$16:$D$16)/SUM($B$16:$D$16))/1000) ->  | N5: =((SUMPRODUCT($B$11:$E$11,$B$16:$E$16)/SUM($B$16:$E$16))/1000) ->  | O5: =((SUMPRODUCT($B$11:$F$11,$B$16:$F$16)/SUM($B$16:$F$16))/1000) ->  | P5: =((SUMPRODUCT($B$11:$G$11,$B$16:$G$16)/SUM($B$16:$G$16))/1000) -> 
A6: Final weight, kg | B6: ='Finisher Model - NE Metric'!C17 -> 0 | C6: ='Finisher Model - NE Metric'!C18 -> 0 | D6: ='Finisher Model - NE Metric'!C19 -> 0 | E6: ='Finisher Model - NE Metric'!C20 -> 0 | F6: ='Finisher Model - NE Metric'!C21 -> 0 | G6: ='Finisher Model - NE Metric'!C22 -> 0 | J6: Predicted F/G | K6: =IF('Finisher Model - NE Metric'!$D$11=2,'Current Performance - NE '!L6,IF('Finisher Model - NE Metric'!$D$11=3,'Current Performance - NE '!M6,IF('Finisher Model - NE Metric'!$D$11=4,'Current Performance - NE '!N6,IF('Finisher Model - NE Metric'!$D$11=5,'Current Performance - NE '!O6,IF('Finisher Model - NE Metric'!$D$11=6,'Current Performance - NE '!P6,""))))) ->  | L6: =SUM($B$17:$C$17)/SUM($B$19:$C$19) ->  | M6: =SUM($B$17:$D$17)/SUM($B$19:$D$19) ->  | N6: =SUM($B$17:$E$17)/SUM($B$19:$E$19) ->  | O6: =SUM($B$17:$F$17)/SUM($B$19:$F$19) ->  | P6: =SUM($B$17:$G$17)/SUM($B$19:$G$19) -> 
A7: Total gain, lg | B7: =B6-B5 -> 0 | C7: =C6-C5 -> 0 | D7: 0 | E7: 0 | F7: =F6-F5 -> 0 | G7: =G6-G5 -> 0 | J7: Predicted ADFI, kg | K7: =IF('Finisher Model - NE Metric'!$D$11=2,'Current Performance - NE '!L7,IF('Finisher Model - NE Metric'!$D$11=3,'Current Performance - NE '!M7,IF('Finisher Model - NE Metric'!$D$11=4,'Current Performance - NE '!N7,IF('Finisher Model - NE Metric'!$D$11=5,'Current Performance - NE '!O7,IF('Finisher Model - NE Metric'!$D$11=6,'Current Performance - NE '!P7,""))))) ->  | L7: =SUM(B17:C17)/SUM(B16:C16) ->  | M7: =SUM(B17:D17)/SUM(B16:D16) ->  | N7: =SUM(B17:E17)/SUM(B16:E16) ->  | O7: =SUM(B17:G17)/SUM(B16:G16) ->  | P7: =SUM(C17:G17)/SUM(C16:G16) -> 
A8: Current NE, kcal/kg | B8: ='Finisher Model - NE Metric'!D17 -> 0 | C8: ='Finisher Model - NE Metric'!D18 -> 0 | D8: ='Finisher Model - NE Metric'!D19 -> 0 | E8: ='Finisher Model - NE Metric'!D20 -> 0 | F8: ='Finisher Model - NE Metric'!D21 -> 0 | G8: ='Finisher Model - NE Metric'!D22 -> 0 | J8: Phases duration, d | K8: =IF('Finisher Model - NE Metric'!$D$11=2,'Current Performance - NE '!L8,IF('Finisher Model - NE Metric'!$D$11=3,'Current Performance - NE '!M8,IF('Finisher Model - NE Metric'!$D$11=4,'Current Performance - NE '!N8,IF('Finisher Model - NE Metric'!$D$11=5,'Current Performance - NE '!O8,IF('Finisher Model - NE Metric'!$D$11=6,'Current Performance - NE '!P8,""))))) ->  | L8: =SUM(B16:C16) ->  | M8: =SUM(B16:D16) ->  | N8: =SUM(B16:E16) ->  | O8: =SUM(B16:F16) ->  | P8: =SUM(B16:G16) -> 
A9: Current Diet Cost, $/Ton | B9: ='Finisher Model - NE Metric'!F17 -> 0 | C9: ='Finisher Model - NE Metric'!F18 -> 0 | D9: ='Finisher Model - NE Metric'!F19 -> 0 | E9: ='Finisher Model - NE Metric'!F20 -> 0 | F9: ='Finisher Model - NE Metric'!F21 -> 0 | G9: ='Finisher Model - NE Metric'!F22 -> 0 | J9: Total feed, kg/pig | K9: =IF('Finisher Model - NE Metric'!$D$11=2,'Current Performance - NE '!L9,IF('Finisher Model - NE Metric'!$D$11=3,'Current Performance - NE '!M9,IF('Finisher Model - NE Metric'!$D$11=4,'Current Performance - NE '!N9,IF('Finisher Model - NE Metric'!$D$11=5,'Current Performance - NE '!O9,IF('Finisher Model - NE Metric'!$D$11=6,'Current Performance - NE '!P9,""))))) ->  | L9: =SUM(B17:C17) ->  | M9: =SUM(B17:D17) ->  | N9: =SUM(B17:E17) ->  | O9: =SUM(B17:F17) ->  | P9: =SUM(B17:G17) -> 
A10: Average Starting Wt & End Wt, kg | B10: =AVERAGE(B5:B6) -> 0 | C10: =AVERAGE(C5:C6) -> 0 | D10: 0 | E10: =AVERAGE(E5:E6) -> 0 | F10: =AVERAGE(F5:F6) -> 0 | G10: =AVERAGE(G5:G6) -> 0 | J10: Total feed cost, $/pig | K10: =IF('Finisher Model - NE Metric'!$D$11=2,'Current Performance - NE '!L10,IF('Finisher Model - NE Metric'!$D$11=3,'Current Performance - NE '!M10,IF('Finisher Model - NE Metric'!$D$11=4,'Current Performance - NE '!N10,IF('Finisher Model - NE Metric'!$D$11=5,'Current Performance - NE '!O10,IF('Finisher Model - NE Metric'!$D$11=6,'Current Performance - NE '!P10,""))))) ->  | L10: =SUM(B18:C18) ->  | M10: =SUM(B18:D18) ->  | N10: =SUM(B18:E18) ->  | O10: =SUM(B18:F18) ->  | P10: =SUM(B18:G18) -> 
A11: Calculated Overall ADG with STTD P trial (Vier et al.,2017) | B11: =IFERROR(651.36+531.33*'Finisher Model - NE Metric'!R17-216.9*('Finisher Model - NE Metric'!R17*'Finisher Model - NE Metric'!R17),"") ->  | C11: =IFERROR(651.36+531.33*'Finisher Model - NE Metric'!R18-216.9*('Finisher Model - NE Metric'!R18*'Finisher Model - NE Metric'!R18),"") ->  | D11: =IFERROR(651.36+531.33*'Finisher Model - NE Metric'!R19-216.9*('Finisher Model - NE Metric'!R19*'Finisher Model - NE Metric'!R19),"") ->  | E11: =IFERROR(651.36+531.33*'Finisher Model - NE Metric'!R20-216.9*('Finisher Model - NE Metric'!R20*'Finisher Model - NE Metric'!R20),"") ->  | F11: =IFERROR(651.36+531.33*'Finisher Model - NE Metric'!R21-216.9*('Finisher Model - NE Metric'!R21*'Finisher Model - NE Metric'!R21),"") ->  | G11: =IFERROR(651.36+531.33*'Finisher Model - NE Metric'!R22-216.9*('Finisher Model - NE Metric'!R22*'Finisher Model - NE Metric'!R22),"") ->  | J11: Total feed cost & facility cost, $/pig | K11: =IF('Finisher Model - NE Metric'!$D$11=2,'Current Performance - NE '!L11,IF('Finisher Model - NE Metric'!$D$11=3,'Current Performance - NE '!M11,IF('Finisher Model - NE Metric'!$D$11=4,'Current Performance - NE '!N11,IF('Finisher Model - NE Metric'!$D$11=5,'Current Performance - NE '!O11,IF('Finisher Model - NE Metric'!$D$11=6,'Current Performance - NE '!P11,""))))) ->  | L11: =SUM(B21:C21) ->  | M11: =SUM(B21:D21) ->  | N11: =SUM(B21:E21) ->  | O11: =SUM(B21:F21) ->  | P11: =SUM(B21:G21) -> 
A12: Calculated Overall G:F with STTD P trial (Vier et al.,2017) | B12: =IFERROR(338.34+108.98*'Finisher Model - NE Metric'!R17-46.7864*('Finisher Model - NE Metric'!R17*'Finisher Model - NE Metric'!R17),"") ->  | C12: =IFERROR(338.34+108.98*'Finisher Model - NE Metric'!R18-46.7864*('Finisher Model - NE Metric'!R18*'Finisher Model - NE Metric'!R18),"") ->  | D12: =IFERROR(338.34+108.98*'Finisher Model - NE Metric'!R19-46.7864*('Finisher Model - NE Metric'!R19*'Finisher Model - NE Metric'!R19),"") ->  | E12: =IFERROR(338.34+108.98*'Finisher Model - NE Metric'!R20-46.7864*('Finisher Model - NE Metric'!R20*'Finisher Model - NE Metric'!R20),"") ->  | F12: =IFERROR(338.34+108.98*'Finisher Model - NE Metric'!R21-46.7864*('Finisher Model - NE Metric'!R21*'Finisher Model - NE Metric'!R21),"") ->  | G12: =IFERROR(338.34+108.98*'Finisher Model - NE Metric'!R22-46.7864*('Finisher Model - NE Metric'!R22*'Finisher Model - NE Metric'!R22),"") ->  | J12: Revenue Live, $/pig | K12: =IF('Finisher Model - NE Metric'!$D$11=2,'Current Performance - NE '!L12,IF('Finisher Model - NE Metric'!$D$11=3,'Current Performance - NE '!M12,IF('Finisher Model - NE Metric'!$D$11=4,'Current Performance - NE '!N12,IF('Finisher Model - NE Metric'!$D$11=5,'Current Performance - NE '!O12,IF('Finisher Model - NE Metric'!$D$11=6,'Current Performance - NE '!P12,""))))) ->  | L12: =SUM(B19:C19,'Finisher Model - NE Metric'!B17)*'Finisher Model - NE Metric'!D7 ->  | M12: =SUM(B19:D19,'Finisher Model - NE Metric'!B17)*'Finisher Model - NE Metric'!D7 ->  | N12: =SUM(B19:E19,'Finisher Model - NE Metric'!B17)*'Finisher Model - NE Metric'!D7 ->  | O12: =SUM(B19:F19,'Finisher Model - NE Metric'!B17)*'Finisher Model - NE Metric'!D7 ->  | P12: =SUM(B19:G19,'Finisher Model - NE Metric'!B17)*'Finisher Model - NE Metric'!D7 -> 
A13: Predicted Overall ADFI, g/d | B13: =(B11/B12)*1000 ->  | J13: Total IOFC Live, $/pig | K13: =IF('Finisher Model - NE Metric'!$D$11=2,'Current Performance - NE '!L13,IF('Finisher Model - NE Metric'!$D$11=3,'Current Performance - NE '!M13,IF('Finisher Model - NE Metric'!$D$11=4,'Current Performance - NE '!N13,IF('Finisher Model - NE Metric'!$D$11=5,'Current Performance - NE '!O13,IF('Finisher Model - NE Metric'!$D$11=6,'Current Performance - NE '!P13,""))))) ->  | L13: =L12-L10 ->  | M13: =M12-M10 ->  | N13: =N12-N10 ->  | O13: =O12-O10 ->  | P13: =P12-P10 -> 
A14: Precited Overall F/G | B14: =B13/B11 ->  | J14: Total IOFFC Live, $/pig | K14: =IF('Finisher Model - NE Metric'!$D$11=2,'Current Performance - NE '!L14,IF('Finisher Model - NE Metric'!$D$11=3,'Current Performance - NE '!M14,IF('Finisher Model - NE Metric'!$D$11=4,'Current Performance - NE '!N14,IF('Finisher Model - NE Metric'!$D$11=5,'Current Performance - NE '!O14,IF('Finisher Model - NE Metric'!$D$11=6,'Current Performance - NE '!P14,""))))) ->  | L14: =L12-L11 ->  | M14: =M12-M11 ->  | N14: =N12-N11 ->  | O14: =O12-O11 ->  | P14: =P12-P11 -> 
A15: Overall average F/G (weighted average based on phase duration) | B15: =IF('Finisher Model - NE Metric'!D11=2,(SUMPRODUCT(B14:C14,B16:C16)/SUM(B16:C16)),IF('Finisher Model - NE Metric'!D11=3,(SUMPRODUCT(B14:D14,B16:D16)/SUM(B16:D16)),IF('Finisher Model - NE Metric'!D11=4,(SUMPRODUCT(B14:E14,B16:E16)/SUM(B16:E16)),IF('Finisher Model - NE Metric'!D11=5,(SUMPRODUCT(B14:F14,B16:F16)/SUM(B16:F16)),IF('Finisher Model - NE Metric'!D11=6,(SUMPRODUCT(B14:G14,B16:G16)/SUM(B16:G16)),""))))) ->  | J15: Revenue Carcass, $/pig | K15: =IF('Finisher Model - NE Metric'!$D$11=2,'Current Performance - NE '!L15,IF('Finisher Model - NE Metric'!$D$11=3,'Current Performance - NE '!M15,IF('Finisher Model - NE Metric'!$D$11=4,'Current Performance - NE '!N15,IF('Finisher Model - NE Metric'!$D$11=5,'Current Performance - NE '!O15,IF('Finisher Model - NE Metric'!$D$11=6,'Current Performance - NE '!P15,""))))) ->  | L15: =C28*'Finisher Model - NE Metric'!$D$8 ->  | M15: =D28*'Finisher Model - NE Metric'!$D$8 ->  | N15: =E28*'Finisher Model - NE Metric'!$D$8 ->  | O15: =F28*'Finisher Model - NE Metric'!$D$8 ->  | P15: =G28*'Finisher Model - NE Metric'!$D$8 -> 
A16: Phase duration, d | B16: =(CONVERT(B7,"kg","g"))/B11 ->  | H16: =IF('Finisher Model - NE Metric'!D11=2,SUM(B16:C16),IF('Finisher Model - NE Metric'!D11=3,SUM(B16:D16),IF('Finisher Model - NE Metric'!D11=4,SUM(B16:E16),IF('Finisher Model - NE Metric'!D11=5,SUM(B16:F16),IF('Finisher Model - NE Metric'!D11=6,SUM(B16:G16),""))))) ->  | J16: Total IOFC Carcass, $/pig | K16: =IF('Finisher Model - NE Metric'!$D$11=2,'Current Performance - NE '!L16,IF('Finisher Model - NE Metric'!$D$11=3,'Current Performance - NE '!M16,IF('Finisher Model - NE Metric'!$D$11=4,'Current Performance - NE '!N16,IF('Finisher Model - NE Metric'!$D$11=5,'Current Performance - NE '!O16,IF('Finisher Model - NE Metric'!$D$11=6,'Current Performance - NE '!P16,""))))) ->  | L16: =L15-L10 ->  | M16: =M15-M10 ->  | N16: =N15-N10 ->  | O16: =O15-O10 ->  | P16: =P15-P10 -> 
A17: Feed budget by phase, kg/pig | B17: =CONVERT(D45,"lbm","kg") ->  | C17: =CONVERT(D46,"lbm","kg") ->  | D17: =CONVERT(D47,"lbm","kg") ->  | E17: =CONVERT(D48,"lbm","kg") ->  | F17: =CONVERT(D49,"lbm","kg") ->  | G17: =CONVERT(D50,"lbm","kg") ->  | J17: Total IOFFC Carcass $/pig | K17: =IF('Finisher Model - NE Metric'!$D$11=2,'Current Performance - NE '!L17,IF('Finisher Model - NE Metric'!$D$11=3,'Current Performance - NE '!M17,IF('Finisher Model - NE Metric'!$D$11=4,'Current Performance - NE '!N17,IF('Finisher Model - NE Metric'!$D$11=5,'Current Performance - NE '!O17,IF('Finisher Model - NE Metric'!$D$11=6,'Current Performance - NE '!P17,""))))) ->  | L17: =L15-L11 ->  | M17: =M15-M11 ->  | N17: =N15-N11 ->  | O17: =O15-O11 ->  | P17: =P15-P11 -> 
A18: Total feed cost per phase, $/pig | B18: =(B17*(B9/907)) ->  | C18: =(C17*(C9/907)) -> 
A19: Gain, kg | B19: =B11/1000*B16 ->  | H19: =IF('Finisher Model - NE Metric'!D11=2,SUM(B19:C19)+'Finisher Model - NE Metric'!B17,IF('Finisher Model - NE Metric'!D11=3,SUM(B19:D19)+'Finisher Model - NE Metric'!B17,IF('Finisher Model - NE Metric'!D11=4,SUM(B19:E19)+'Finisher Model - NE Metric'!B17,IF('Finisher Model - NE Metric'!D11=5,SUM(B19:F19)+'Finisher Model - NE Metric'!B17,IF('Finisher Model - NE Metric'!D11=6,SUM(B19:G19)+'Finisher Model - NE Metric'!B17,""))))) -> 
A20: Feed cost per/kg of gain, $/pig | B20: =B18/((B11/1000)*B16) -> 
A21: Feed and facility cost, $/pig | B21: =B18+(B16*'Finisher Model - NE Metric'!$D$10) ->  | C21: =C18+(C16*'Finisher Model - NE Metric'!$D$10) ->  | D21: =D18+(D16*'Finisher Model - NE Metric'!$D$10) ->  | E21: =E18+(E16*'Finisher Model - NE Metric'!$D$10) ->  | F21: =F18+(F16*'Finisher Model - NE Metric'!$D$10) ->  | G21: =G18+(G16*'Finisher Model - NE Metric'!$D$10) -> 
A23: Revenue per pig by phase, $/pig | B23: =B19*'Finisher Model - NE Metric'!$D$7 ->  | C23: =C19*'Finisher Model - NE Metric'!$D$7 ->  | D23: =D19*'Finisher Model - NE Metric'!$D$7 ->  | E23: =E19*'Finisher Model - NE Metric'!$D$7 ->  | F23: =F19*'Finisher Model - NE Metric'!$D$7 ->  | G23: =G19*'Finisher Model - NE Metric'!$D$7 -> 
A24: IOFC by phase, $/pig | B24: =B23-B18 ->  | C24: =C23-C18 ->  | D24: =D23-D18 -> 
A25: IOFFC by phase, $/pig | B25: =B23-B21 ->  | C25: =C23-C21 ->  | D25: =D23-D21 ->  | E25: =E23-E21 -> 
A26: STTD P | B26: ='Finisher Model - NE Metric'!R17 ->  | C26: ='Finisher Model - NE Metric'!R18 ->  | D26: ='Finisher Model - NE Metric'!R19 ->  | E26: ='Finisher Model - NE Metric'!R20 ->  | F26: ='Finisher Model - NE Metric'!R21 ->  | G26: ='Finisher Model - NE Metric'!R22 -> 
A27: Weighted average of STTD P | B27: =SUMPRODUCT(B26,B17)/SUM(B17) ->  | C27: =SUMPRODUCT(B26:C26,B17:C17)/SUM(B17:C17) ->  | D27: =SUMPRODUCT(B26:D26,B17:D17)/SUM(B17:D17) ->  | E27: =SUMPRODUCT(B26:E26,B17:E17)/SUM(B17:E17) ->  | F27: =SUMPRODUCT(B26:F26,B17:F17)/SUM(B17:F17) ->  | G27: =SUMPRODUCT(B26:G26,B17:G17)/SUM(B17:G17) -> 
A28: Calculated Overall HCW, lb based on final BW and corrected yield | B28: =$H$19*B36/100 ->  | C28: =$H$19*C36/100 -> 
A29: Yield based on final body weight and PIC equation | B29: =(VLOOKUP($H$19,$C$57:$I$96,7,TRUE))*100 ->  | C29: =(VLOOKUP($H$19,$C$57:$I$96,7,TRUE))*100 -> 
A30: User yield | B30: ='Finisher Model - NE Metric'!D9 -> 0
A31: User/PIC ratio | B31: =B30/B29 -> 
A32: Current STTD P as a % of NRC | B32: ='Finisher Model - NE Metric'!R17 ->  | C32: ='Finisher Model - NE Metric'!R18 ->  | D32: ='Finisher Model - NE Metric'!R19 ->  | E32: ='Finisher Model - NE Metric'!R20 ->  | F32: ='Finisher Model - NE Metric'!R21 ->  | G32: ='Finisher Model - NE Metric'!R22 ->  | H32: =IF('Finisher Model - NE Metric'!D11=2,(SUMPRODUCT(B32:C32,B16:C16)/SUM(B16:C16)),IF('Finisher Model - NE Metric'!D11=3,(SUMPRODUCT(B32:D32,B16:D16)/SUM(B16:D16)),IF('Finisher Model - NE Metric'!D11=4,(SUMPRODUCT(B32:E32,B16:E16)/SUM(B16:E16)),IF('Finisher Model - NE Metric'!D11=5,(SUMPRODUCT(B32:F32,B16:F16)/SUM(B16:F16)),IF('Finisher Model - NE Metric'!D11=6,(SUMPRODUCT(B32:G32,B16:G16)/SUM(B16:G16)),""))))) -> 
A33: Predicted yield based on STTD P level | B33: =73.859-1.19192*H32 -> 
A34: Yield at 100% of NRC | B34: =73.859-1.19192*1 -> 72.66708
A35: Yield correction factor based on STTD P level | B35: =B33/$B$34 -> 
A36: Corrected current yield | B36: =(VLOOKUP($H$19,$C$57:$K$96,9,TRUE)) ->  | C36: =(VLOOKUP($H$19,$C$57:$K$96,9,TRUE)) -> 
B39: Mixed Sex Feed Budget | J39: Yield equation
B40: Closeout Feed Efficiency | J40: 73.859 - 1.19192 x STTD P % of NRC
B41: Initial Wt | C41: Final Wt | D41: F/G
B42: =CONVERT('Finisher Model - NE Metric'!B17,"kg","lbm") -> 0 | C42: =CONVERT(IF('Finisher Model - NE Metric'!$D$11=2,'Finisher Model - NE Metric'!C18,IF('Finisher Model - NE Metric'!$D$11=3,'Finisher Model - NE Metric'!C19,IF('Finisher Model - NE Metric'!$D$11=4,'Finisher Model - NE Metric'!C20,IF('Finisher Model - NE Metric'!$D$11=5,'Finisher Model - NE Metric'!C21,IF('Finisher Model - NE Metric'!$D$11=6,'Finisher Model - NE Metric'!C22,""))))),"kg","lbm") ->  | D42: =B15 -> 
B44: Initial Wt | C44: Final Wt | D44: lb/pig | E44: =IF(B45=0,F44,((0.00463*B45^2 + 1.68*B45 - 22.05)/(((0.00463*C42^2 + 1.68*C42 - 22.05)-(0.00463*B42^2 + 1.68*B42 - 22.05))/(C42-B42))*D42)) -> 0
A45: 1 | B45: =CONVERT('Finisher Model - NE Metric'!B17,"kg","lbm") -> 0 | C45: =CONVERT('Finisher Model - NE Metric'!C17,"kg","lbm") -> 0 | D45: =IF(C45="","",(E45-E44)) ->  | E45: =IF(B46="","",((0.00463*B46^2 + 1.68*B46 - 22.05)/(((0.00463*$C$42^2 + 1.68*$C$42 - 22.05)-(0.00463*$B$42^2 + 1.68*$B$42 - 22.05))/($C$42-$B$42))*$D$42)) -> 
A46: 2 | B46: =C45 -> 0 | C46: =CONVERT('Finisher Model - NE Metric'!C18,"kg","lbm") -> 0 | D46: =IF(C46="","",(E46-E45)) -> 
A47: 3 | B47: 0 | C47: =CONVERT('Finisher Model - NE Metric'!C19,"kg","lbm") -> 0
A48: 4 | B48: 0 | C48: =CONVERT('Finisher Model - NE Metric'!C20,"kg","lbm") -> 0 | D48: =IF(C48="","",(E48-E47)) -> 
A49: 5 | B49: 0 | C49: =CONVERT('Finisher Model - NE Metric'!C21,"kg","lbm") -> 0 | D49: =IF(C49="","",(E49-E48)) -> 
A50: 6 | B50: 0 | C50: =CONVERT('Finisher Model - NE Metric'!C22,"kg","lbm") -> 0 | D50: =IF(C50="","",(E50-E49)) -> 
B51: 0
B55: Hot Carcass Wheight | C55: Market weight (est. by Carcass yield) | D55: Back Fat for PIC 337 | I55: Carcass Yield (%) = 66.411 + ( Carcass weight, kg x 0.0878)
B56: kg | C56: kg | D56: Barrows | E56: Gilts | F56: Average | J56: User/PIC Adjusted Yield | K56: User/PIC Asjusted and STTD P adjusted
B57: 81 | C57: 110.1767062 | D57: 16.86478205 | E57: 14.51072874 | F57: 15.6877554 | I57: 0.7351826241 | J57: =($B$31*I57)*100 ->  | K57: =J57*$B$35 -> 
B58: 82 | C58: 111.403952 | D58: 17.07445571 | E58: 14.61370144 | F58: 15.84407857 | I58: 0.7360600639 | J58: =($B$31*I58)*100 -> 
B59: 83 | C59: 112.6282752 | D59: 17.28414727 | E59: 14.71614343 | F59: 16.00014535 | I59: 0.7369375037
B60: 84 | C60: 113.8496865 | D60: 17.49385651 | E60: 14.81806378 | F60: 16.15596015 | I60: 0.7378149435
B61: 85 | C61: 115.0681961 | D61: 17.70358323 | E61: 14.91947133 | F61: 16.31152728 | I61: 0.7386923833
B62: 86 | C62: 116.2838143 | D62: 17.91332723 | E62: 15.02037463 | F62: 16.46685093 | I62: 0.7395698231
B63: 87 | C63: 117.4965516 | D63: 18.1230883 | E63: 15.12078202 | F63: 16.62193516 | I63: 0.7404472629
B64: 88 | C64: 118.706418 | D64: 18.33286624 | E64: 15.22070158 | F64: 16.77678391 | I64: 0.7413247027
B65: 89 | C65: 119.9134237 | D65: 18.54266088 | E65: 15.3201412 | F65: 16.93140104 | I65: 0.7422021425
B66: 90 | C66: 121.117579 | D66: 18.75247201 | E66: 15.41910854 | F66: 17.08579027 | I66: 0.7430795823
B67: 91 | C67: 122.3188938 | D67: 18.96229947 | E67: 15.51761104 | F67: 17.23995525 | I67: 0.7439570221
B68: 92 | C68: 123.5173783 | D68: 19.17214306 | E68: 15.61565596 | F68: 17.39389951 | I68: 0.7448344619
B69: 93 | C69: 124.7130424 | D69: 19.38200263 | E69: 15.71325037 | F69: 17.5476265 | I69: 0.7457119017
B70: 94 | C70: 125.905896 | D70: 19.59187799 | E70: 15.81040115 | F70: 17.70113957 | I70: 0.7465893415
B71: 95 | C71: 127.0959491 | D71: 19.80176898 | E71: 15.90711501 | F71: 17.85444199 | I71: 0.7474667813
B72: 96 | C72: 128.2832115 | D72: 20.01167544 | E72: 16.00339847 | F72: 18.00753695 | I72: 0.7483442211
B73: 97 | C73: 129.467693 | D73: 20.2215972 | E73: 16.09925791 | F73: 18.16042755 | I73: 0.7492216609
B74: 98 | C74: 130.6494034 | D74: 20.43153412 | E74: 16.19469953 | F74: 18.31311682 | I74: 0.7500991007
B75: 99 | C75: 131.8283524 | D75: 20.64148603 | E75: 16.2897294 | F75: 18.46560771 | I75: 0.7509765405
B76: 100 | C76: 133.0045496 | D76: 20.85145278 | E76: 16.38435342 | F76: 18.6179031 | I76: 0.7518539803
B77: 101 | C77: 134.1780047 | D77: 21.06143424 | E77: 16.47857735 | F77: 18.7700058 | I77: 0.7527314202
B78: 102 | C78: 135.3487272 | D78: 21.27143025 | E78: 16.57240684 | F78: 18.92191854 | I78: 0.75360886
B79: 103 | C79: 136.5167267 | D79: 21.48144067 | E79: 16.66584736 | F79: 19.07364401 | I79: 0.7544862998
B80: 104 | C80: 137.6820127 | D80: 21.69146536 | E80: 16.75890429 | F80: 19.22518482 | I80: 0.7553637396
B81: 105 | C81: 138.8445946 | D81: 21.90150419 | E81: 16.85158287 | F81: 19.37654353 | I81: 0.7562411794
B82: 106 | C82: 140.0044819 | D82: 22.11155702 | E82: 16.94388821 | F82: 19.52772262 | I82: 0.7571186192
B83: 107 | C83: 141.1616838 | D83: 22.32162373 | E83: 17.03582532 | F83: 19.67872453 | I83: 0.757996059
B84: 108 | C84: 142.3162097 | D84: 22.53170418 | E84: 17.1273991 | F84: 19.82955164 | I84: 0.7588734988
B85: 109 | C85: 143.4680689 | D85: 22.74179825 | E85: 17.21861431 | F85: 19.98020628 | I85: 0.7597509386
B86: 110 | C86: 144.6172706 | D86: 22.95190581 | E86: 17.30947563 | F86: 20.13069072 | I86: 0.7606283784
B87: 111 | C87: 145.7638239 | D87: 23.16202674 | E87: 17.39998765 | F87: 20.28100719 | I87: 0.7615058182
B88: 112 | C88: 146.9077381 | D88: 23.37216092 | E88: 17.49015482 | F88: 20.43115787 | I88: 0.762383258
B89: 113 | C89: 148.0490222 | D89: 23.58230823 | E89: 17.57998152 | F89: 20.58114488 | I89: 0.7632606978
B90: 114 | C90: 149.1876853 | D90: 23.79246857 | E90: 17.66947204 | F90: 20.7309703 | I90: 0.7641381376
B91: 115 | C91: 150.3237364 | D91: 24.00264181 | E91: 17.75863057 | F91: 20.88063619 | I91: 0.7650155774
B92: 116 | C92: 151.4571845 | D92: 24.21282784 | E92: 17.8474612 | F92: 21.03014452 | I92: 0.7658930172
B93: 117 | C93: 152.5880385 | D93: 24.42302656 | E93: 17.93596796 | F93: 21.17949726 | I93: 0.766770457
B94: 118 | C94: 153.7163073 | D94: 24.63323785 | E94: 18.02415478 | F94: 21.32869631 | I94: 0.7676478968
B95: 119 | C95: 154.8419998 | D95: 24.84346162 | E95: 18.11202551 | F95: 21.47774356 | I95: 0.7685253366
B96: 120 | C96: 155.9651247 | D96: 25.05369775 | E96: 18.19958393 | F96: 21.62664084 | I96: 0.7694027764

Sheet FW - Projected Performance - NE (hidden)
A1: Economic model for optimum phosphorus level - Model Calculations by phase
A2: Item | B2: Dietary phase | J2: Summary of Calculations with Current Phosphorus Levels
B4: 1 | C4: 2 | D4: 3 | E4: 4 | F4: 5 | G4: 6 | J4: Item | K4: Output | L4: 2 | M4: 3 | N4: 4 | O4: 5 | P4: 6
A5: Starting weight, kg | B5: ='Finisher Model - NE Metric'!B17 -> 0 | C5: ='Finisher Model - NE Metric'!B18 -> 0 | D5: ='Finisher Model - NE Metric'!B19 -> 0 | E5: ='Finisher Model - NE Metric'!B20 -> 0 | F5: ='Finisher Model - NE Metric'!B21 -> 0 | G5: ='Finisher Model - NE Metric'!B22 -> 0 | J5: Live
A6: Final weight, kg | B6: ='Finisher Model - NE Metric'!C17 -> 0 | C6: ='Finisher Model - NE Metric'!C18 -> 0 | D6: ='Finisher Model - NE Metric'!C19 -> 0 | E6: ='Finisher Model - NE Metric'!C20 -> 0 | F6: ='Finisher Model - NE Metric'!C21 -> 0 | G6: ='Finisher Model - NE Metric'!C22 -> 0 | J6: Predicted ADG, kg | K6: =IF('Finisher Model - NE Metric'!$D$11=2,L6,IF('Finisher Model - NE Metric'!$D$11=3,M6,IF('Finisher Model - NE Metric'!$D$11=4,N6,IF('Finisher Model - NE Metric'!$D$11=5,O6,IF('Finisher Model - NE Metric'!$D$11=6,P6,""))))) ->  | L6: =((SUM($B$22:$C$22)/SUM(B16:C16))) ->  | M6: =((SUM($B$22:$D$22)/SUM(B16:D16))) ->  | N6: =((SUM($B$22:$E$22)/SUM(B16:E16))) ->  | O6: =((SUM($B$22:$F$22)/SUM(B16:F16))) ->  | P6: =((SUM($B$22:$G$22)/SUM(B16:G16))) -> 
A7: Total gain, kg | B7: =B6-B5 -> 0 | C7: =C6-C5 -> 0 | D7: 0 | E7: 0 | F7: 0 | G7: 0 | J7: Predicted F/G | K7: =IF('Finisher Model - NE Metric'!$D$11=2,L7,IF('Finisher Model - NE Metric'!$D$11=3,M7,IF('Finisher Model - NE Metric'!$D$11=4,N7,IF('Finisher Model - NE Metric'!$D$11=5,O7,IF('Finisher Model - NE Metric'!$D$11=6,P7,""))))) ->  | L7: =SUM($B$18:$C$18)/SUM($B$22:$C$22) ->  | M7: =SUM($B$18:$D$18)/SUM($B$22:$D$22) ->  | N7: =SUM($B$18:$E$18)/SUM($B$22:$E$22) ->  | O7: =SUM($B$18:$F$18)/SUM($B$22:$F$22) ->  | P7: =SUM($B$18:$G$18)/SUM($B$22:$G$22) -> 
A8: Current NE, kcal/kg | B8: ='Finisher Model - NE Metric'!D17 -> 0 | C8: ='Finisher Model - NE Metric'!D18 -> 0 | D8: ='Finisher Model - NE Metric'!D19 -> 0 | E8: ='Finisher Model - NE Metric'!D20 -> 0 | F8: ='Finisher Model - NE Metric'!D21 -> 0 | G8: ='Finisher Model - NE Metric'!D22 -> 0 | J8: Predicted ADFI, kg | K8: =IF('Finisher Model - NE Metric'!$D$11=2,L8,IF('Finisher Model - NE Metric'!$D$11=3,M8,IF('Finisher Model - NE Metric'!$D$11=4,N8,IF('Finisher Model - NE Metric'!$D$11=5,O8,IF('Finisher Model - NE Metric'!$D$11=6,P8,""))))) ->  | L8: =SUM(B18:C18)/SUM(B16:C16) ->  | M8: =SUM(B18:D18)/SUM(B16:D16) ->  | N8: =SUM(B18:E18)/SUM(B16:E16) ->  | O8: =SUM(B18:F18)/SUM(B16:F16) ->  | P8: =SUM(B18:G18)/SUM(B16:G16) -> 
A9: Current Diet Cost, $/Ton | B9: ='Finisher Model - NE Metric'!I17 -> 0 | C9: ='Finisher Model - NE Metric'!I18 -> 0 | D9: ='Finisher Model - NE Metric'!I19 -> 0 | E9: ='Finisher Model - NE Metric'!I20 -> 0 | F9: ='Finisher Model - NE Metric'!I21 -> 0 | G9: ='Finisher Model - NE Metric'!I22 -> 0 | J9: Phases duration, d | K9: =IF('Finisher Model - NE Metric'!$D$11=2,L9,IF('Finisher Model - NE Metric'!$D$11=3,M9,IF('Finisher Model - NE Metric'!$D$11=4,N9,IF('Finisher Model - NE Metric'!$D$11=5,O9,IF('Finisher Model - NE Metric'!$D$11=6,P9,""))))) ->  | L9: =SUM(B16:C16) ->  | M9: =SUM(B16:D16) ->  | N9: =SUM(B16:E16) ->  | O9: =SUM(B16:F16) ->  | P9: =SUM(B16:G16) -> 
A10: Average Starting Wt & End Wt, kg | B10: =AVERAGE(B5:B6) -> 0 | C10: =AVERAGE(C5:C6) -> 0 | D10: 0 | E10: 0 | F10: =AVERAGE(F5:F6) -> 0 | G10: =AVERAGE(G5:G6) -> 0 | J10: Total feed, kg/pig | K10: =IF('Finisher Model - NE Metric'!$D$11=2,L10,IF('Finisher Model - NE Metric'!$D$11=3,M10,IF('Finisher Model - NE Metric'!$D$11=4,N10,IF('Finisher Model - NE Metric'!$D$11=5,O10,IF('Finisher Model - NE Metric'!$D$11=6,P10,""))))) ->  | L10: =SUM(B18:C18) ->  | M10: =SUM(B18:D18) ->  | N10: =SUM(B18:E18) ->  | O10: =SUM(B18:F18) ->  | P10: =SUM(B18:G18) -> 
A11: Calculated Overall ADG with STTD P trial (Vier et al.,2017) | B11: =IFERROR(651.36+531.33*'Finisher Model - NE Metric'!P17-216.9*('Finisher Model - NE Metric'!P17*'Finisher Model - NE Metric'!P17),"") ->  | C11: =IFERROR(651.36+531.33*'Finisher Model - NE Metric'!P18-216.9*('Finisher Model - NE Metric'!P18*'Finisher Model - NE Metric'!P18),"") ->  | D11: =IFERROR(651.36+531.33*'Finisher Model - NE Metric'!P19-216.9*('Finisher Model - NE Metric'!P19*'Finisher Model - NE Metric'!P19),"") ->  | E11: =IFERROR(651.36+531.33*'Finisher Model - NE Metric'!P20-216.9*('Finisher Model - NE Metric'!P20*'Finisher Model - NE Metric'!P20),"") ->  | F11: =IFERROR(651.36+531.33*'Finisher Model - NE Metric'!P21-216.9*('Finisher Model - NE Metric'!P21*'Finisher Model - NE Metric'!P21),"") ->  | G11: =IFERROR(651.36+531.33*'Finisher Model - NE Metric'!P22-216.9*('Finisher Model - NE Metric'!P22*'Finisher Model - NE Metric'!P22),"") ->  | J11: Total feed cost, $/pig | K11: =IF('Finisher Model - NE Metric'!$D$11=2,L11,IF('Finisher Model - NE Metric'!$D$11=3,M11,IF('Finisher Model - NE Metric'!$D$11=4,N11,IF('Finisher Model - NE Metric'!$D$11=5,O11,IF('Finisher Model - NE Metric'!$D$11=6,P11,""))))) ->  | L11: =SUM(B20:C20) ->  | M11: =SUM(B20:D20) ->  | N11: =SUM(B20:E20) ->  | O11: =SUM(B20:F20) ->  | P11: =SUM(B20:G20) -> 
A12: Calculated Overall G:F with STTD P trial (Vier et al.,2017) | B12: =IFERROR(338.34+108.98*'Finisher Model - NE Metric'!P17-46.7864*('Finisher Model - NE Metric'!P17*'Finisher Model - NE Metric'!P17),"") ->  | C12: =IFERROR(338.34+108.98*'Finisher Model - NE Metric'!P18-46.7864*('Finisher Model - NE Metric'!P18*'Finisher Model - NE Metric'!P18),"") ->  | D12: =IFERROR(338.34+108.98*'Finisher Model - NE Metric'!P19-46.7864*('Finisher Model - NE Metric'!P19*'Finisher Model - NE Metric'!P19),"") ->  | E12: =IFERROR(338.34+108.98*'Finisher Model - NE Metric'!P20-46.7864*('Finisher Model - NE Metric'!P20*'Finisher Model - NE Metric'!P20),"") ->  | F12: =IFERROR(338.34+108.98*'Finisher Model - NE Metric'!P21-46.7864*('Finisher Model - NE Metric'!P21*'Finisher Model - NE Metric'!P21),"") ->  | G12: =IFERROR(338.34+108.98*'Finisher Model - NE Metric'!P22-46.7864*('Finisher Model - NE Metric'!P22*'Finisher Model - NE Metric'!P22),"") ->  | J12: Total feed cost & facility cost, $/pig | K12: =IF('Finisher Model - NE Metric'!$D$11=2,L12,IF('Finisher Model - NE Metric'!$D$11=3,M12,IF('Finisher Model - NE Metric'!$D$11=4,N12,IF('Finisher Model - NE Metric'!$D$11=5,O12,IF('Finisher Model - NE Metric'!$D$11=6,P12,""))))) ->  | L12: =SUM(B26:C26) ->  | M12: =SUM(B26:D26) ->  | N12: =SUM(B26:E26) ->  | O12: =SUM(B26:F26) ->  | P12: =SUM(B26:G26) -> 
A13: Predicted Overall ADFI, g/d | B13: =(B11/B12)*1000 ->  | J13: Revenue Live, $/pig | K13: =IF('Finisher Model - NE Metric'!$D$11=2,L13,IF('Finisher Model - NE Metric'!$D$11=3,M13,IF('Finisher Model - NE Metric'!$D$11=4,N13,IF('Finisher Model - NE Metric'!$D$11=5,O13,IF('Finisher Model - NE Metric'!$D$11=6,P13,""))))) ->  | L13: =SUM(B22:C22,'Finisher Model - NE Metric'!B17)*'Finisher Model - NE Metric'!D7 ->  | M13: =SUM(B22:D22,'Finisher Model - NE Metric'!B17)*'Finisher Model - NE Metric'!D7 ->  | N13: =SUM(B22:E22,'Finisher Model - NE Metric'!B17)*'Finisher Model - NE Metric'!D7 ->  | O13: =SUM(B22:F22,'Finisher Model - NE Metric'!B17)*'Finisher Model - NE Metric'!D7 ->  | P13: =SUM(B22:G22,'Finisher Model - NE Metric'!B17)*'Finisher Model - NE Metric'!D7 -> 
A14: Predicted Overall F/G | B14: =B13/B11 ->  | C14: =C13/C11 ->  | J14: Total IOFC Live, $/pig | K14: =IF('Finisher Model - NE Metric'!$D$11=2,L14,IF('Finisher Model - NE Metric'!$D$11=3,M14,IF('Finisher Model - NE Metric'!$D$11=4,N14,IF('Finisher Model - NE Metric'!$D$11=5,O14,IF('Finisher Model - NE Metric'!$D$11=6,P14,""))))) ->  | L14: =L13-L11 ->  | M14: =M13-M11 ->  | N14: =N13-N11 ->  | O14: =O13-O11 ->  | P14: =P13-P11 -> 
A15: Overall average F/G (weighted average based on phase duration) | B15: =IF('Finisher Model - NE Metric'!D11=2,SUMPRODUCT(B14:C14,B16:C16)/SUM(B16:C16),IF('Finisher Model - NE Metric'!D11=3,SUMPRODUCT(B14:D14,B16:D16)/SUM(B16:D16),IF('Finisher Model - NE Metric'!D11=4,SUMPRODUCT(B14:E14,B16:E16)/SUM(B16:E16),IF('Finisher Model - NE Metric'!D11=5,SUMPRODUCT(B14:F14,B16:F16)/SUM(B16:F16),IF('Finisher Model - NE Metric'!D11=6,SUMPRODUCT(B14:G14,B16:G16)/SUM(B16:G16),""))))) ->  | J15: Total IOFFC Live, $/pig | K15: =IF('Finisher Model - NE Metric'!$D$11=2,L15,IF('Finisher Model - NE Metric'!$D$11=3,M15,IF('Finisher Model - NE Metric'!$D$11=4,N15,IF('Finisher Model - NE Metric'!$D$11=5,O15,IF('Finisher Model - NE Metric'!$D$11=6,P15,""))))) ->  | L15: =L13-L12 ->  | M15: =M13-M12 ->  | N15: =N13-N12 ->  | O15: =O13-O12 ->  | P15: =P13-P12 -> 
A16: Phase duration, d for Live Basis | B16: =(CONVERT(B7,"kg","g"))/B11 ->  | C16: =(CONVERT(C7,"kg","g"))/C11 ->  | H16: =IF('Finisher Model - NE Metric'!D11=2,SUM(B16:C16),IF('Finisher Model - NE Metric'!D11=3,SUM(B16:D16),IF('Finisher Model - NE Metric'!D11=4,SUM(B16:E16),IF('Finisher Model - NE Metric'!D11=5,SUM(B16:F16),IF('Finisher Model - NE Metric'!D11=6,SUM(B16:G16),""))))) ->  | J16: Carcass
A17: Phase duration, d for Carcass Basis | B17: =(B6-B5)/(B11/1000) ->  | C17: =(IF('Finisher Model - NE Metric'!D11=2,'FW - Projected Performance - NE'!$B$34-'FW - Projected Performance - NE'!C5,'FW - Projected Performance - NE'!C6-'FW - Projected Performance - NE'!C5))/('FW - Projected Performance - NE'!C11/1000) ->  | D17: =(IF('Finisher Model - NE Metric'!D11=3,'FW - Projected Performance - NE'!$B$34-'FW - Projected Performance - NE'!D5,'FW - Projected Performance - NE'!D6-'FW - Projected Performance - NE'!D5))/('FW - Projected Performance - NE'!D11/1000) ->  | E17: =(IF('Finisher Model - NE Metric'!D11=4,'FW - Projected Performance - NE'!$B$34-'FW - Projected Performance - NE'!E5,'FW - Projected Performance - NE'!E6-'FW - Projected Performance - NE'!E5))/('FW - Projected Performance - NE'!E11/1000) ->  | F17: =(IF('Finisher Model - NE Metric'!D11=5,'FW - Projected Performance - NE'!$B$34-'FW - Projected Performance - NE'!F5,'FW - Projected Performance - NE'!F6-'FW - Projected Performance - NE'!F5))/('FW - Projected Performance - NE'!F11/1000) ->  | G17: =(IF('Finisher Model - NE Metric'!D11=6,'FW - Projected Performance - NE'!$B$34-'FW - Projected Performance - NE'!G5,'FW - Projected Performance - NE'!G6-'FW - Projected Performance - NE'!G5))/('FW - Projected Performance - NE'!G11/1000) ->  | H17: =IF('Finisher Model - NE Metric'!D11=2,SUM(B17:C17),IF('Finisher Model - NE Metric'!D11=3,SUM(B17:D17),IF('Finisher Model - NE Metric'!D11=4,SUM(B17:E17),IF('Finisher Model - NE Metric'!D11=5,SUM(B17:F17),IF('Finisher Model - NE Metric'!D11=6,SUM(B17:G17),""))))) ->  | J17: Predicted ADG, kg | K17: =IF('Finisher Model - NE Metric'!$D$11=2,L17,IF('Finisher Model - NE Metric'!$D$11=3,M17,IF('Finisher Model - NE Metric'!$D$11=4,N17,IF('Finisher Model - NE Metric'!$D$11=5,O17,IF('Finisher Model - NE Metric'!$D$11=6,P17,""))))) ->  | L17: =((SUM($B$23:$C$23)/SUM(B17:C17))) ->  | M17: =((SUM($B$23:$D$23)/SUM(B17:D17))) ->  | N17: =((SUM($B$23:$E$23)/SUM(B17:E17))) ->  | O17: =((SUM($B$23:$F$23)/SUM(B17:F17))) ->  | P17: =((SUM($B$23:$G$23)/SUM(B17:G17))) -> 
A18: Feed budget by phase, kg/pig for Live Basis | B18: =CONVERT(D55,"lbm","kg") ->  | C18: =CONVERT(D56,"lbm","kg") ->  | D18: =CONVERT(D57,"lbm","kg") ->  | E18: =CONVERT(D58,"lbm","kg") ->  | F18: =CONVERT(D59,"lbm","kg") ->  | G18: =CONVERT(D60,"lbm","kg") ->  | J18: Predicted F/G | K18: =IF('Finisher Model - NE Metric'!$D$11=2,L18,IF('Finisher Model - NE Metric'!$D$11=3,M18,IF('Finisher Model - NE Metric'!$D$11=4,N18,IF('Finisher Model - NE Metric'!$D$11=5,O18,IF('Finisher Model - NE Metric'!$D$11=6,P18,""))))) ->  | L18: =SUM($B$19:$C$19)/SUM($B$23:$C$23) ->  | M18: =SUM($B$19:$D$19)/SUM($B$23:$D$23) ->  | N18: =SUM($B$19:$E$19)/SUM($B$23:$E$23) ->  | O18: =SUM($B$19:$F$19)/SUM($B$23:$F$23) ->  | P18: =SUM($B$19:$G$19)/SUM($B$23:$G$23) -> 
A19: Feed budget by phase, kg/pig for Carcass Basis | B19: =CONVERT(I55,"lbm","kg") ->  | C19: =CONVERT(I56,"lbm","kg") ->  | D19: =CONVERT(I57,"lbm","kg") ->  | E19: =CONVERT(I58,"lbm","kg") ->  | F19: =CONVERT(I59,"lbm","kg") ->  | G19: =CONVERT(I60,"lbm","kg") ->  | J19: Predicted ADFI, kg | K19: =IF('Finisher Model - NE Metric'!$D$11=2,L19,IF('Finisher Model - NE Metric'!$D$11=3,M19,IF('Finisher Model - NE Metric'!$D$11=4,N19,IF('Finisher Model - NE Metric'!$D$11=5,O19,IF('Finisher Model - NE Metric'!$D$11=6,P19,""))))) ->  | L19: =SUM(B19:C19)/SUM(B17:C17) ->  | M19: =SUM(B19:D19)/SUM(B17:D17) ->  | N19: =SUM(B19:E19)/SUM(B17:E17) ->  | O19: =SUM(B19:F19)/SUM(B17:F17) ->  | P19: =SUM(B19:G19)/SUM(B17:G17) -> 
A20: Total feed cost per phase, $/pig for Live Basis | B20: =(B18*(B9/907)) ->  | J20: Phases duration, d | K20: =IF('Finisher Model - NE Metric'!$D$11=2,L20,IF('Finisher Model - NE Metric'!$D$11=3,M20,IF('Finisher Model - NE Metric'!$D$11=4,N20,IF('Finisher Model - NE Metric'!$D$11=5,O20,IF('Finisher Model - NE Metric'!$D$11=6,P20,""))))) ->  | L20: =SUM(B17:C17) ->  | M20: =SUM(B17:D17) ->  | N20: =SUM(B17:E17) ->  | O20: =SUM(B17:F17) ->  | P20: =SUM(B17:G17) -> 
A21: Total feed cost per phase, $/pig for Carcass Basis | B21: =(B19*(B9/907)) ->  | C21: =(C19*(C9/907)) ->  | J21: Total feed, kg/pig | K21: =IF('Finisher Model - NE Metric'!$D$11=2,L21,IF('Finisher Model - NE Metric'!$D$11=3,M21,IF('Finisher Model - NE Metric'!$D$11=4,N21,IF('Finisher Model - NE Metric'!$D$11=5,O21,IF('Finisher Model - NE Metric'!$D$11=6,P21,""))))) ->  | L21: =SUM(B19:C19) ->  | M21: =SUM(B19:D19) ->  | N21: =SUM(B19:E19) ->  | O21: =SUM(B19:F19) ->  | P21: =SUM(B19:G19) -> 
A22: Gain, kg for Live Basis | B22: =B11/1000*B16 ->  | H22: =IF('Finisher Model - NE Metric'!D11=2,SUM(B22:C22)+'Finisher Model - NE Metric'!B17,IF('Finisher Model - NE Metric'!D11=3,SUM(B22:D22)+'Finisher Model - NE Metric'!B17,IF('Finisher Model - NE Metric'!D11=4,SUM(B22:E22)+'Finisher Model - NE Metric'!B17,IF('Finisher Model - NE Metric'!D11=5,SUM(B22:F22)+'Finisher Model - NE Metric'!B17,IF('Finisher Model - NE Metric'!D11=6, SUM(B22:G22)+'Finisher Model - NE Metric'!B17,""))))) ->  | J22: Total feed cost, $/pig | K22: =IF('Finisher Model - NE Metric'!$D$11=2,L22,IF('Finisher Model - NE Metric'!$D$11=3,M22,IF('Finisher Model - NE Metric'!$D$11=4,N22,IF('Finisher Model - NE Metric'!$D$11=5,O22,IF('Finisher Model - NE Metric'!$D$11=6,P22,""))))) ->  | L22: =SUM(B21:C21) ->  | M22: =SUM(B21:D21) ->  | N22: =SUM(B21:E21) ->  | O22: =SUM(B21:F21) ->  | P22: =SUM(B21:G21) -> 
A23: Gain, kg for Carcass Basis | B23: =B11/1000*B17 ->  | C23: =C11/1000*C17 ->  | H23: =IF('Finisher Model - NE Metric'!D11=2,SUM(B23:C23)+'Finisher Model - NE Metric'!B17,IF('Finisher Model - NE Metric'!D11=3,SUM(B23:D23)+'Finisher Model - NE Metric'!B17,IF('Finisher Model - NE Metric'!D11=4,SUM(B23:E23)+'Finisher Model - NE Metric'!B17,IF('Finisher Model - NE Metric'!D11=5,SUM(B23:F23)+'Finisher Model - NE Metric'!B17,IF('Finisher Model - NE Metric'!D11=6, SUM(B23:G23)+'Finisher Model - NE Metric'!B17,""))))) ->  | J23: Total feed cost & facility cost, $/pig | K23: =IF('Finisher Model - NE Metric'!$D$11=2,L23,IF('Finisher Model - NE Metric'!$D$11=3,M23,IF('Finisher Model - NE Metric'!$D$11=4,N23,IF('Finisher Model - NE Metric'!$D$11=5,O23,IF('Finisher Model - NE Metric'!$D$11=6,P23,""))))) ->  | L23: =SUM(B27:C27) ->  | M23: =SUM(B27:D27) ->  | N23: =SUM(B27:E27) ->  | O23: =SUM(B27:F27) ->  | P23: =SUM(B27:G27) -> 
A24: Feed cost per/kg of gain, $/pig for Live Basis | B24: =B20/((B11/1000)*B16) ->  | J24: Revenue Carcass, $/pig | K24: =IF('Finisher Model - NE Metric'!$D$11=2,L24,IF('Finisher Model - NE Metric'!$D$11=3,M24,IF('Finisher Model - NE Metric'!$D$11=4,N24,IF('Finisher Model - NE Metric'!$D$11=5,O24,IF('Finisher Model - NE Metric'!$D$11=6,P24,""))))) ->  | L24: =$B$33*'Finisher Model - NE Metric'!$D$8 ->  | M24: =$B$33*'Finisher Model - NE Metric'!$D$8 ->  | N24: =$B$33*'Finisher Model - NE Metric'!$D$8 ->  | O24: =$B$33*'Finisher Model - NE Metric'!$D$8 ->  | P24: =$B$33*'Finisher Model - NE Metric'!$D$8 -> 
A25: Feed cost per/kg of gain, $/pig for Carcass Basis | B25: =B21/((B11/1000)*B17) ->  | C25: =C21/((C11/1000)*C17) ->  | J25: Total IOFC Carcass, $/pig | K25: =IF('Finisher Model - NE Metric'!$D$11=2,L25,IF('Finisher Model - NE Metric'!$D$11=3,M25,IF('Finisher Model - NE Metric'!$D$11=4,N25,IF('Finisher Model - NE Metric'!$D$11=5,O25,IF('Finisher Model - NE Metric'!$D$11=6,P25,""))))) ->  | L25: =L24-L22 ->  | M25: =M24-M22 -> 
A26: Feed and facility cost, $/pig for Live Basis | B26: =B20+(B16*'Finisher Model - NE Metric'!$D$10) ->  | C26: =C20+(C16*'Finisher Model - NE Metric'!$D$10) ->  | D26: =D20+(D16*'Finisher Model - NE Metric'!$D$10) ->  | E26: =E20+(E16*'Finisher Model - NE Metric'!$D$10) ->  | F26: =F20+(F16*'Finisher Model - NE Metric'!$D$10) ->  | G26: =G20+(G16*'Finisher Model - NE Metric'!$D$10) ->  | J26: Total IOFFC Carcass, $/pig | K26: =IF('Finisher Model - NE Metric'!$D$11=2,L26,IF('Finisher Model - NE Metric'!$D$11=3,M26,IF('Finisher Model - NE Metric'!$D$11=4,N26,IF('Finisher Model - NE Metric'!$D$11=5,O26,IF('Finisher Model - NE Metric'!$D$11=6,P26,""))))) ->  | L26: =L24-L23 ->  | M26: =M24-M23 ->  | P26: =P24-P23 -> 
A27: Feed and facility cost, $/pig for Carcass Basis | B27: =B21+(B17*'Finisher Model - NE Metric'!$D$10) ->  | C27: =C21+(C17*'Finisher Model - NE Metric'!$D$10) ->  | D27: =D21+(D17*'Finisher Model - NE Metric'!$D$10) ->  | E27: =E21+(E17*'Finisher Model - NE Metric'!$D$10) ->  | F27: =F21+(F17*'Finisher Model - NE Metric'!$D$10) ->  | G27: =G21+(G17*'Finisher Model - NE Metric'!$D$10) -> 
A28: Revenue per pig by phase, $/pig for Live Basis | B28: =B22*'Finisher Model - NE Metric'!$D$7 ->  | C28: =C22*'Finisher Model - NE Metric'!$D$7 ->  | D28: =D22*'Finisher Model - NE Metric'!$D$7 ->  | E28: =E22*'Finisher Model - NE Metric'!$D$7 ->  | F28: =F22*'Finisher Model - NE Metric'!$D$7 ->  | G28: =G22*'Finisher Model - NE Metric'!$D$7 -> 
A29: IOFC by phase, $/pig | B29: =B28-B20 -> 
A30: IOFFC by phase, $/pig | B30: =B28-B26 -> 
A31: STTD P | B31: ='Finisher Model - NE Metric'!R17 ->  | C31: ='Finisher Model - NE Metric'!R18 ->  | D31: ='Finisher Model - NE Metric'!R19 ->  | E31: ='Finisher Model - NE Metric'!R20 ->  | F31: ='Finisher Model - NE Metric'!R21 ->  | G31: ='Finisher Model - NE Metric'!R22 -> 
A32: Weighted average of STTD P | B32: =SUMPRODUCT(B31,B18)/SUM(B18) ->  | C32: =SUMPRODUCT(B31:C31,B18:C18)/SUM(B18:C18) ->  | D32: =SUMPRODUCT(B31:D31,B18:D18)/SUM(B18:D18) ->  | E32: =SUMPRODUCT(B31:E31,B18:E18)/SUM(B18:E18) ->  | F32: =SUMPRODUCT(B31:F31,B18:F18)/SUM(B18:F18) ->  | G32: =SUMPRODUCT(B31:G31,B18:G18)/SUM(B18:G18) -> 
A33: Calculated overall HCW for CURRENT performance | B33: ='Current Performance - NE '!B28 -> 
A34: Predicted final BW, lb for Fixed Weight to achieve the same Current Carcass Wt | B34: =B33/(B43/100) -> 
A35: Calculated Overall HCW,lb based on final BW and corrected yield | B35: =$H$22*$B$43/100 -> 
A36: Yield based on final BW and PIC equation | B36: =(VLOOKUP($H$22,$C$65:$I$104,7,TRUE))*100 -> 
A37: User yield | B37: ='Finisher Model - NE Metric'!D9 -> 0
A38: User/PIC ratio | B38: =B37/B36 ->  | J38: Yield equation
A39: Current STTD P as % of NRC | B39: ='Finisher Model - NE Metric'!P17 ->  | C39: ='Finisher Model - NE Metric'!P18 ->  | D39: ='Finisher Model - NE Metric'!P19 ->  | E39: ='Finisher Model - NE Metric'!P20 ->  | F39: ='Finisher Model - NE Metric'!P21 ->  | G39: ='Finisher Model - NE Metric'!P22 ->  | H39: =IF('Finisher Model - NE Metric'!D11=2,SUMPRODUCT(B39:C39,B16:C16)/SUM(B16:C16),IF('Finisher Model - NE Metric'!D11=3,SUMPRODUCT(B39:D39,B16:D16)/SUM(B16:D16),IF('Finisher Model - NE Metric'!D11=4,SUMPRODUCT(B39:E39,B16:E16)/SUM(B16:E16),IF('Finisher Model - NE Metric'!D11=5,SUMPRODUCT(B39:F39,B16:F16)/SUM(B16:F16),IF('Finisher Model - NE Metric'!D11=6,SUMPRODUCT(B39:G39,B16:G16)/SUM(B16:G16),""))))) ->  | J39: 73.859 - 1.19192 x STTD P % of NRC
A40: Predicted yield based on biological STTD P level | B40: =73.859-1.19192*H39 -> 
A41: Yield at 100% of NRC | B41: =73.859-1.19192*1 -> 72.66708
A42: Yield correction factor based on STTD P level | B42: =B40/B41 -> 
A43: Corrected current yield | B43: =(VLOOKUP($H$22,$C$65:$K$104,9,TRUE)) -> 
B49: Mixed Sex Feed Budget - Live Basis | G49: Mixed Sex Feed Budget - Carcass Basis
B50: Closeout Feed Efficiency | G50: Closeout Feed Efficiency
B51: Initial Wt | C51: Final Wt | D51: F/G | G51: Initial Wt | H51: Final Wt | I51: F/G
B52: =CONVERT('Finisher Model - NE Metric'!B17,"kg","lbm") -> 0 | C52: =CONVERT(IF('Finisher Model - NE Metric'!$D$11=2,'Finisher Model - NE Metric'!C18,IF('Finisher Model - NE Metric'!$D$11=3,'Finisher Model - NE Metric'!C19,IF('Finisher Model - NE Metric'!$D$11=4,'Finisher Model - NE Metric'!C20,IF('Finisher Model - NE Metric'!$D$11=5,'Finisher Model - NE Metric'!C21,IF('Finisher Model - NE Metric'!$D$11=6,'Finisher Model - NE Metric'!C22,""))))),"kg","lbm") ->  | D52: =B15 ->  | G52: =CONVERT('Finisher Model - NE Metric'!B17,"kg","lbm") -> 0 | H52: =CONVERT(IF('Finisher Model - NE Metric'!$D$11=2,'Finisher Model - NE Metric'!C18,IF('Finisher Model - NE Metric'!$D$11=3,'Finisher Model - NE Metric'!C19,IF('Finisher Model - NE Metric'!$D$11=4,'Finisher Model - NE Metric'!C20,IF('Finisher Model - NE Metric'!$D$11=5,'Finisher Model - NE Metric'!C21,IF('Finisher Model - NE Metric'!$D$11=6,'Finisher Model - NE Metric'!C22,""))))),"kg","lbm") ->  | I52: =B15 -> 
B54: Initial Wt | C54: Final Wt | D54: lb/pig | E54: =IF(B55=0,F54,((0.00463*B55^2 + 1.68*B55 - 22.05)/(((0.00463*C52^2 + 1.68*C52 - 22.05)-(0.00463*B52^2 + 1.68*B52 - 22.05))/(C52-B52))*D52)) -> 0 | G54: Initial Wt | H54: Final Wt | I54: lb/pig | J54: =IF(G55=0,K54,((0.00463*G55^2 + 1.68*G55 - 22.05)/(((0.00463*H52^2 + 1.68*H52 - 22.05)-(0.00463*G52^2 + 1.68*G52 - 22.05))/(H52-G52))*I52)) -> 0
A55: 1 | B55: =CONVERT('Finisher Model - NE Metric'!B17,"kg","lbm") -> 0 | C55: =CONVERT('Finisher Model - NE Metric'!C17,"kg","lbm") -> 0 | D55: =IF(C55="","",(E55-E54)) ->  | E55: =IF(B56="","",((0.00463*B56^2 + 1.68*B56 - 22.05)/(((0.00463*$C$52^2 + 1.68*$C$52 - 22.05)-(0.00463*$B$52^2 + 1.68*$B$52 - 22.05))/($C$52-$B$52))*$D$52)) ->  | G55: =CONVERT('Finisher Model - NE Metric'!B17,"kg","lbm") -> 0 | H55: =CONVERT('Finisher Model - NE Metric'!C17,"kg","lbm") -> 0 | I55: =IF(H55="","",(J55-J54)) ->  | J55: =IF(G56="","",((0.00463*G56^2 + 1.68*G56 - 22.05)/(((0.00463*$C$52^2 + 1.68*$C$52 - 22.05)-(0.00463*$B$52^2 + 1.68*$B$52 - 22.05))/($C$52-$B$52))*$D$52)) -> 
A56: 2 | B56: =C55 -> 0 | C56: =CONVERT('Finisher Model - NE Metric'!C18,"kg","lbm") -> 0 | D56: =IF(C56="","",(E56-E55)) ->  | G56: =H55 -> 0 | H56: =CONVERT(IF(AND('Finisher Model - NE Metric'!D11=2,'Finisher Model - NE Metric'!D6="Carcass"),'FW - Projected Performance - NE'!$B$34,'Finisher Model - NE Metric'!C18),"kg","lbm") -> 0 | I56: =IF(H56="","",(J56-J55)) -> 
A57: 3 | B57: 0 | C57: =CONVERT('Finisher Model - NE Metric'!C19,"kg","lbm") -> 0 | G57: 0 | H57: =CONVERT(IF(AND('Finisher Model - NE Metric'!D11=3,'Finisher Model - NE Metric'!D6="Carcass"),'FW - Projected Performance - NE'!$B$34,'Finisher Model - NE Metric'!C19),"kg","lbm") -> 0
A58: 4 | B58: 0 | C58: =CONVERT('Finisher Model - NE Metric'!C20,"kg","lbm") -> 0 | G58: 0 | H58: =CONVERT(IF(AND('Finisher Model - NE Metric'!D11=4,'Finisher Model - NE Metric'!D6="Carcass"),'FW - Projected Performance - NE'!$B$34,'Finisher Model - NE Metric'!C20),"kg","lbm") -> 0
A59: 5 | B59: 0 | C59: =CONVERT('Finisher Model - NE Metric'!C21,"kg","lbm") -> 0 | G59: 0 | H59: =CONVERT(IF(AND('Finisher Model - NE Metric'!D11=5,'Finisher Model - NE Metric'!D6="Carcass"),'FW - Projected Performance - NE'!$B$34,'Finisher Model - NE Metric'!C21),"kg","lbm") -> 0
A60: 6 | B60: 0 | C60: =CONVERT('Finisher Model - NE Metric'!C22,"kg","lbm") -> 0 | D60: =IF(C60="","",(E60-E59)) ->  | G60: 0 | H60: =CONVERT(IF(AND('Finisher Model - NE Metric'!D11=6,'Finisher Model - NE Metric'!D6="Carcass"),'FW - Projected Performance - NE'!$B$34,'Finisher Model - NE Metric'!C22),"kg","lbm") -> 0 | I60: =IF(H60="","",(J60-J59)) -> 
B61: 0 | G61: 0
B63: Hot Carcass Wheight | C63: Market weight (est. by Carcass yield) | D63: Back Fat for PIC 337 | I63: Carcass Yield (%) = 66.411 + ( Carcass weight, kg x 0.0878)
B64: kg | C64: kg | D64: Barrows | E64: Gilts | F64: Average | J64: User/PIC Adjusted Yield | K64: User/PIC Asjusted and STTD P adjusted
B65: 81 | C65: 110.1767062 | D65: 16.86478205 | E65: 14.51072874 | F65: 15.6877554 | I65: 0.7351826241 | J65: =(I65*$B$38)*100 ->  | K65: =J65*$B$42 -> 
B66: 82 | C66: 111.403952 | D66: 17.07445571 | E66: 14.61370144 | F66: 15.84407857 | I66: 0.7360600639
B67: 83 | C67: 112.6282752 | D67: 17.28414727 | E67: 14.71614343 | F67: 16.00014535 | I67: 0.7369375037
B68: 84 | C68: 113.8496865 | D68: 17.49385651 | E68: 14.81806378 | F68: 16.15596015 | I68: 0.7378149435
B69: 85 | C69: 115.0681961 | D69: 17.70358323 | E69: 14.91947133 | F69: 16.31152728 | I69: 0.7386923833
B70: 86 | C70: 116.2838143 | D70: 17.91332723 | E70: 15.02037463 | F70: 16.46685093 | I70: 0.7395698231
B71: 87 | C71: 117.4965516 | D71: 18.1230883 | E71: 15.12078202 | F71: 16.62193516 | I71: 0.7404472629
B72: 88 | C72: 118.706418 | D72: 18.33286624 | E72: 15.22070158 | F72: 16.77678391 | I72: 0.7413247027
B73: 89 | C73: 119.9134237 | D73: 18.54266088 | E73: 15.3201412 | F73: 16.93140104 | I73: 0.7422021425
B74: 90 | C74: 121.117579 | D74: 18.75247201 | E74: 15.41910854 | F74: 17.08579027 | I74: 0.7430795823
B75: 91 | C75: 122.3188938 | D75: 18.96229947 | E75: 15.51761104 | F75: 17.23995525 | I75: 0.7439570221
B76: 92 | C76: 123.5173783 | D76: 19.17214306 | E76: 15.61565596 | F76: 17.39389951 | I76: 0.7448344619
B77: 93 | C77: 124.7130424 | D77: 19.38200263 | E77: 15.71325037 | F77: 17.5476265 | I77: 0.7457119017
B78: 94 | C78: 125.905896 | D78: 19.59187799 | E78: 15.81040115 | F78: 17.70113957 | I78: 0.7465893415
B79: 95 | C79: 127.0959491 | D79: 19.80176898 | E79: 15.90711501 | F79: 17.85444199 | I79: 0.7474667813
B80: 96 | C80: 128.2832115 | D80: 20.01167544 | E80: 16.00339847 | F80: 18.00753695 | I80: 0.7483442211
B81: 97 | C81: 129.467693 | D81: 20.2215972 | E81: 16.09925791 | F81: 18.16042755 | I81: 0.7492216609
B82: 98 | C82: 130.6494034 | D82: 20.43153412 | E82: 16.19469953 | F82: 18.31311682 | I82: 0.7500991007
B83: 99 | C83: 131.8283524 | D83: 20.64148603 | E83: 16.2897294 | F83: 18.46560771 | I83: 0.7509765405
B84: 100 | C84: 133.0045496 | D84: 20.85145278 | E84: 16.38435342 | F84: 18.6179031 | I84: 0.7518539803
B85: 101 | C85: 134.1780047 | D85: 21.06143424 | E85: 16.47857735 | F85: 18.7700058 | I85: 0.7527314202
B86: 102 | C86: 135.3487272 | D86: 21.27143025 | E86: 16.57240684 | F86: 18.92191854 | I86: 0.75360886
B87: 103 | C87: 136.5167267 | D87: 21.48144067 | E87: 16.66584736 | F87: 19.07364401 | I87: 0.7544862998
B88: 104 | C88: 137.6820127 | D88: 21.69146536 | E88: 16.75890429 | F88: 19.22518482 | I88: 0.7553637396
B89: 105 | C89: 138.8445946 | D89: 21.90150419 | E89: 16.85158287 | F89: 19.37654353 | I89: 0.7562411794
B90: 106 | C90: 140.0044819 | D90: 22.11155702 | E90: 16.94388821 | F90: 19.52772262 | I90: 0.7571186192
B91: 107 | C91: 141.1616838 | D91: 22.32162373 | E91: 17.03582532 | F91: 19.67872453 | I91: 0.757996059
B92: 108 | C92: 142.3162097 | D92: 22.53170418 | E92: 17.1273991 | F92: 19.82955164 | I92: 0.7588734988
B93: 109 | C93: 143.4680689 | D93: 22.74179825 | E93: 17.21861431 | F93: 19.98020628 | I93: 0.7597509386
B94: 110 | C94: 144.6172706 | D94: 22.95190581 | E94: 17.30947563 | F94: 20.13069072 | I94: 0.7606283784
B95: 111 | C95: 145.7638239 | D95: 23.16202674 | E95: 17.39998765 | F95: 20.28100719 | I95: 0.7615058182
B96: 112 | C96: 146.9077381 | D96: 23.37216092 | E96: 17.49015482 | F96: 20.43115787 | I96: 0.762383258
B97: 113 | C97: 148.0490222 | D97: 23.58230823 | E97: 17.57998152 | F97: 20.58114488 | I97: 0.7632606978
B98: 114 | C98: 149.1876853 | D98: 23.79246857 | E98: 17.66947204 | F98: 20.7309703 | I98: 0.7641381376
B99: 115 | C99: 150.3237364 | D99: 24.00264181 | E99: 17.75863057 | F99: 20.88063619 | I99: 0.7650155774
B100: 116 | C100: 151.4571845 | D100: 24.21282784 | E100: 17.8474612 | F100: 21.03014452 | I100: 0.7658930172
B101: 117 | C101: 152.5880385 | D101: 24.42302656 | E101: 17.93596796 | F101: 21.17949726 | I101: 0.766770457
B102: 118 | C102: 153.7163073 | D102: 24.63323785 | E102: 18.02415478 | F102: 21.32869631 | I102: 0.7676478968
B103: 119 | C103: 154.8419998 | D103: 24.84346162 | E103: 18.11202551 | F103: 21.47774356 | I103: 0.7685253366
B104: 120 | C104: 155.9651247 | D104: 25.05369775 | E104: 18.19958393 | F104: 21.62664084 | I104: 0.7694027764

Sheet FT - Projected Performance - NE (hidden)
A1: Economic model for optimum phosphorus level - Model Calculations by phase
A2: Item | B2: Dietary phase | J2: Summary of Calculations with Current Phosphorus Levels
B4: 1 | C4: 2 | D4: 3 | E4: 4 | F4: 5 | G4: 6 | J4: Item | K4: Output | L4: 2 | M4: 3 | N4: 4 | O4: 5 | P4: 6
A5: Starting weight, kg | B5: ='Finisher Model - NE Metric'!B17 -> 0 | C5: ='Finisher Model - NE Metric'!B18 -> 0 | D5: ='Finisher Model - NE Metric'!B19 -> 0 | E5: ='Finisher Model - NE Metric'!B20 -> 0 | F5: ='Finisher Model - NE Metric'!B21 -> 0 | G5: ='Finisher Model - NE Metric'!B22 -> 0 | J5: Predicted ADG, kg | K5: =IF('Finisher Model - NE Metric'!$D$11=2,L5,IF('Finisher Model - NE Metric'!$D$11=3,M5,IF('Finisher Model - NE Metric'!$D$11=4,N5,IF('Finisher Model - NE Metric'!$D$11=5,O5,IF('Finisher Model - NE Metric'!$D$11=6,P5,""))))) ->  | L5: =((SUM(B19:C19)/SUM(B16:C16))) ->  | M5: =((SUM(B19:D19)/SUM(B16:D16))) ->  | N5: =SUM(B19:E19)/SUM(B16:E16) ->  | O5: =SUM(B19:F19)/SUM(B16:F16) ->  | P5: =SUM(B19:G19)/SUM(B16:G16) -> 
A6: Final weight, kg | B6: ='Finisher Model - NE Metric'!C17 -> 0 | C6: ='Finisher Model - NE Metric'!C18 -> 0 | D6: ='Finisher Model - NE Metric'!C19 -> 0 | E6: ='Finisher Model - NE Metric'!C20 -> 0 | F6: ='Finisher Model - NE Metric'!C21 -> 0 | G6: ='Finisher Model - NE Metric'!C22 -> 0 | J6: Predicted F/G | K6: =IF('Finisher Model - NE Metric'!$D$11=2,L6,IF('Finisher Model - NE Metric'!$D$11=3,M6,IF('Finisher Model - NE Metric'!$D$11=4,N6,IF('Finisher Model - NE Metric'!$D$11=5,O6,IF('Finisher Model - NE Metric'!$D$11=6,P6,""))))) ->  | L6: =SUM($B$17:$C$17)/SUM($B$19:$C$19) ->  | M6: =SUM($B$17:$D$17)/SUM($B$19:$D$19) ->  | N6: =SUM($B$17:$E$17)/SUM($B$19:$E$19) ->  | O6: =SUM($B$17:$F$17)/SUM($B$19:$F$19) ->  | P6: =SUM($B$17:$G$17)/SUM($B$19:$G$19) -> 
A7: Total gain, kg | B7: =B6-B5 -> 0 | C7: =C6-C5 -> 0 | D7: 0 | E7: 0 | F7: =F6-F5 -> 0 | G7: =G6-G5 -> 0 | J7: Predicted ADFI, kg | K7: =IF('Finisher Model - NE Metric'!$D$11=2,L7,IF('Finisher Model - NE Metric'!$D$11=3,M7,IF('Finisher Model - NE Metric'!$D$11=4,N7,IF('Finisher Model - NE Metric'!$D$11=5,O7,IF('Finisher Model - NE Metric'!$D$11=6,P7,""))))) ->  | L7: =SUM(B17:C17)/SUM(B16:C16) ->  | M7: =SUM(B17:D17)/SUM(B16:D16) ->  | N7: =SUM(B17:E17)/SUM(B16:E16) ->  | O7: =SUM(B17:F17)/SUM(B16:F16) ->  | P7: =SUM(B17:G17)/SUM(B16:G16) -> 
A8: Current NE, kcal/kg | B8: ='Finisher Model - NE Metric'!D17 -> 0 | C8: ='Finisher Model - NE Metric'!D18 -> 0 | D8: ='Finisher Model - NE Metric'!D19 -> 0 | E8: ='Finisher Model - NE Metric'!D20 -> 0 | F8: ='Finisher Model - NE Metric'!D21 -> 0 | G8: ='Finisher Model - NE Metric'!D22 -> 0 | J8: Phases duration, d | K8: =IF('Finisher Model - NE Metric'!$D$11=2,L8,IF('Finisher Model - NE Metric'!$D$11=3,M8,IF('Finisher Model - NE Metric'!$D$11=4,N8,IF('Finisher Model - NE Metric'!$D$11=5,O8,IF('Finisher Model - NE Metric'!$D$11=6,P8,""))))) ->  | L8: =SUM(B16:C16) ->  | M8: =SUM(B16:D16) ->  | N8: =SUM(B16:E16) ->  | O8: =SUM(B16:F16) ->  | P8: =SUM(B16:G16) -> 
A9: Current Diet Cost, $/Ton | B9: ='Finisher Model - NE Metric'!I17 -> 0 | C9: ='Finisher Model - NE Metric'!I18 -> 0 | D9: ='Finisher Model - NE Metric'!I19 -> 0 | E9: ='Finisher Model - NE Metric'!I20 -> 0 | F9: ='Finisher Model - NE Metric'!I21 -> 0 | G9: ='Finisher Model - NE Metric'!I22 -> 0 | J9: Total feed, kg/pig | K9: =IF('Finisher Model - NE Metric'!$D$11=2,L9,IF('Finisher Model - NE Metric'!$D$11=3,M9,IF('Finisher Model - NE Metric'!$D$11=4,N9,IF('Finisher Model - NE Metric'!$D$11=5,O9,IF('Finisher Model - NE Metric'!$D$11=6,P9,""))))) ->  | L9: =SUM(B17:C17) ->  | M9: =SUM(B17:D17) ->  | N9: =SUM(B17:E17) ->  | O9: =SUM(B17:F17) ->  | P9: =SUM(B17:G17) -> 
A10: Average Starting Wt & End Wt, kg | B10: =AVERAGE(B5:B6) -> 0 | C10: =AVERAGE(C5:C6) -> 0 | D10: 0 | E10: 0 | F10: 0 | G10: =AVERAGE(G5:G6) -> 0 | J10: Total feed cost, $/pig | K10: =IF('Finisher Model - NE Metric'!$D$11=2,L10,IF('Finisher Model - NE Metric'!$D$11=3,M10,IF('Finisher Model - NE Metric'!$D$11=4,N10,IF('Finisher Model - NE Metric'!$D$11=5,O10,IF('Finisher Model - NE Metric'!$D$11=6,P10,""))))) ->  | L10: =SUM(B18:C18) ->  | M10: =SUM(B18:D18) ->  | N10: =SUM(B18:E18) ->  | O10: =SUM(B18:F18) ->  | P10: =SUM(B18:G18) -> 
A11: Calculated Overall ADG with STTD P trial (Vier et al.,2017) | B11: =IFERROR(651.36+531.33*'Finisher Model - NE Metric'!P17-216.9*('Finisher Model - NE Metric'!P17*'Finisher Model - NE Metric'!P17),"") ->  | C11: =IFERROR(651.36+531.33*'Finisher Model - NE Metric'!P18-216.9*('Finisher Model - NE Metric'!P18*'Finisher Model - NE Metric'!P18),"") ->  | D11: =IFERROR(651.36+531.33*'Finisher Model - NE Metric'!P19-216.9*('Finisher Model - NE Metric'!P19*'Finisher Model - NE Metric'!P19),"") ->  | E11: =IFERROR(651.36+531.33*'Finisher Model - NE Metric'!P20-216.9*('Finisher Model - NE Metric'!P20*'Finisher Model - NE Metric'!P20),"") ->  | F11: =IFERROR(651.36+531.33*'Finisher Model - NE Metric'!P21-216.9*('Finisher Model - NE Metric'!P21*'Finisher Model - NE Metric'!P21),"") ->  | G11: =IFERROR(651.36+531.33*'Finisher Model - NE Metric'!P22-216.9*('Finisher Model - NE Metric'!P22*'Finisher Model - NE Metric'!P22),"") ->  | J11: Total feed cost & facility cost, $/pig | K11: =IF('Finisher Model - NE Metric'!$D$11=2,L11,IF('Finisher Model - NE Metric'!$D$11=3,M11,IF('Finisher Model - NE Metric'!$D$11=4,N11,IF('Finisher Model - NE Metric'!$D$11=5,O11,IF('Finisher Model - NE Metric'!$D$11=6,P11,""))))) ->  | L11: =SUM(B21:C21) ->  | M11: =SUM(B21:D21) ->  | N11: =SUM(B21:E21) ->  | O11: =SUM(B21:F21) ->  | P11: =SUM(B21:G21) -> 
A12: Calculated Overall G:F with STTD P trial (Vier et al.,2017) | B12: =IFERROR(338.34+108.98*'Finisher Model - NE Metric'!P17-46.7864*('Finisher Model - NE Metric'!P17*'Finisher Model - NE Metric'!P17),"") ->  | C12: =IFERROR(338.34+108.98*'Finisher Model - NE Metric'!P18-46.7864*('Finisher Model - NE Metric'!P18*'Finisher Model - NE Metric'!P18),"") ->  | D12: =IFERROR(338.34+108.98*'Finisher Model - NE Metric'!P19-46.7864*('Finisher Model - NE Metric'!P19*'Finisher Model - NE Metric'!P19),"") ->  | E12: =IFERROR(338.34+108.98*'Finisher Model - NE Metric'!P20-46.7864*('Finisher Model - NE Metric'!P20*'Finisher Model - NE Metric'!P20),"") ->  | F12: =IFERROR(338.34+108.98*'Finisher Model - NE Metric'!P21-46.7864*('Finisher Model - NE Metric'!P21*'Finisher Model - NE Metric'!P21),"") ->  | G12: =IFERROR(338.34+108.98*'Finisher Model - NE Metric'!P22-46.7864*('Finisher Model - NE Metric'!P22*'Finisher Model - NE Metric'!P22),"") ->  | J12: Revenue Live, $/pig | K12: =IF('Finisher Model - NE Metric'!$D$11=2,L12,IF('Finisher Model - NE Metric'!$D$11=3,M12,IF('Finisher Model - NE Metric'!$D$11=4,N12,IF('Finisher Model - NE Metric'!$D$11=5,O12,IF('Finisher Model - NE Metric'!$D$11=6,P12,""))))) ->  | L12: =SUM(B19:C19,'Finisher Model - NE Metric'!B17)*'Finisher Model - NE Metric'!D7 ->  | M12: =SUM(B19:D19,'Finisher Model - NE Metric'!B17)*'Finisher Model - NE Metric'!D7 ->  | N12: =SUM(B19:E19,'Finisher Model - NE Metric'!B17)*'Finisher Model - NE Metric'!D7 ->  | O12: =SUM(B19:F19,'Finisher Model - NE Metric'!B17)*'Finisher Model - NE Metric'!D7 ->  | P12: =SUM(B19:G19,'Finisher Model - NE Metric'!B17)*'Finisher Model - NE Metric'!D7 -> 
A13: Predicted Overall ADFI, g/d | B13: =(B11/B12)*1000 ->  | J13: Total IOFC Live, $/pig | K13: =IF('Finisher Model - NE Metric'!$D$11=2,L13,IF('Finisher Model - NE Metric'!$D$11=3,M13,IF('Finisher Model - NE Metric'!$D$11=4,N13,IF('Finisher Model - NE Metric'!$D$11=5,O13,IF('Finisher Model - NE Metric'!$D$11=6,P13,""))))) ->  | L13: =L12-L10 ->  | M13: =M12-M10 ->  | N13: =N12-N10 ->  | P13: =P12-P10 -> 
A14: Predicted Overall F/G | B14: =B13/B11 ->  | C14: =C13/C11 ->  | J14: Total IOFFC Live, $/pig | K14: =IF('Finisher Model - NE Metric'!$D$11=2,L14,IF('Finisher Model - NE Metric'!$D$11=3,M14,IF('Finisher Model - NE Metric'!$D$11=4,N14,IF('Finisher Model - NE Metric'!$D$11=5,O14,IF('Finisher Model - NE Metric'!$D$11=6,P14,""))))) ->  | L14: =L12-L11 ->  | M14: =M12-M11 ->  | N14: =N12-N11 ->  | P14: =P12-P11 -> 
A15: Overall average F/G (weighted average based on phase duration) | B15: =IF('Finisher Model - NE Metric'!D11=2,SUMPRODUCT(B14:C14,B16:C16)/SUM(B16:C16),IF('Finisher Model - NE Metric'!D11=3,SUMPRODUCT(B14:D14,B16:D16)/SUM(B16:D16),IF('Finisher Model - NE Metric'!D11=4,SUMPRODUCT(B14:E14,B16:E16)/SUM(B16:E16),IF('Finisher Model - NE Metric'!D11=5,SUMPRODUCT(B14:F14,B16:F16)/SUM(B16:F16),IF('Finisher Model - NE Metric'!D11=6,SUMPRODUCT(B14:G14,B16:G16)/SUM(B16:G16),""))))) ->  | J15: HCW | K15: =IF('Finisher Model - NE Metric'!$D$11=2,L15,IF('Finisher Model - NE Metric'!$D$11=3,M15,IF('Finisher Model - NE Metric'!$D$11=4,N15,IF('Finisher Model - NE Metric'!$D$11=5,O15,IF('Finisher Model - NE Metric'!$D$11=6,P15,""))))) ->  | L15: =C25 ->  | M15: =D25 ->  | N15: =E25 ->  | O15: =F25 ->  | P15: =G25 -> 
A16: Phase duration, d | B16: ='Current Performance - NE '!B16 ->  | C16: ='Current Performance - NE '!C16 ->  | D16: ='Current Performance - NE '!D16 ->  | E16: ='Current Performance - NE '!E16 ->  | F16: ='Current Performance - NE '!F16 ->  | G16: ='Current Performance - NE '!G16 ->  | H16: =IF('Finisher Model - NE Metric'!D11=2,SUM(B16:C16),IF('Finisher Model - NE Metric'!D11=3,SUM(B16:D16),IF('Finisher Model - NE Metric'!D11=4,SUM(B16:E16),IF('Finisher Model - NE Metric'!D11=5,SUM(B16:F16),IF('Finisher Model - NE Metric'!D11=6,SUM(B16:G16),""))))) ->  | J16: Revenue Carcass, $/pig | K16: =IF('Finisher Model - NE Metric'!$D$11=2,L16,IF('Finisher Model - NE Metric'!$D$11=3,M16,IF('Finisher Model - NE Metric'!$D$11=4,N16,IF('Finisher Model - NE Metric'!$D$11=5,O16,IF('Finisher Model - NE Metric'!$D$11=6,P16,""))))) ->  | L16: =SUM(L15*'Finisher Model - NE Metric'!$D$8) ->  | M16: =SUM(M15*'Finisher Model - NE Metric'!$D$8) ->  | N16: =SUM(N15*'Finisher Model - NE Metric'!$D$8) ->  | O16: =SUM(O15*'Finisher Model - NE Metric'!$D$8) ->  | P16: =SUM(P15*'Finisher Model - NE Metric'!$D$8) -> 
A17: Feed budget by phase, kg/pig | B17: =CONVERT(D43,"lbm","kg") ->  | C17: =CONVERT(D44,"lbm","kg") ->  | D17: =CONVERT(D45,"lbm","kg") ->  | E17: =CONVERT(D46,"lbm","kg") ->  | F17: =CONVERT(D47,"lbm","kg") ->  | G17: =CONVERT(D48,"lbm","kg") ->  | J17: Total IOFC Carcass, $/pig | K17: =IF('Finisher Model - NE Metric'!$D$11=2,L17,IF('Finisher Model - NE Metric'!$D$11=3,M17,IF('Finisher Model - NE Metric'!$D$11=4,N17,IF('Finisher Model - NE Metric'!$D$11=5,O17,IF('Finisher Model - NE Metric'!$D$11=6,P17,""))))) ->  | L17: =L16-L10 ->  | M17: =M16-M10 ->  | N17: =N16-N10 ->  | O17: =O16-O10 ->  | P17: =P16-P10 -> 
A18: Total feed cost per phase, $/pig | B18: =(B17*(B9/907)) ->  | C18: =(C17*(C9/907)) ->  | F18: =(F17*(F9/907)) ->  | G18: =(G17*(G9/907)) ->  | J18: Total IOFFC Carcass, $/pig | K18: =IF('Finisher Model - NE Metric'!$D$11=2,L18,IF('Finisher Model - NE Metric'!$D$11=3,M18,IF('Finisher Model - NE Metric'!$D$11=4,N18,IF('Finisher Model - NE Metric'!$D$11=5,O18,IF('Finisher Model - NE Metric'!$D$11=6,P18,""))))) ->  | L18: =L16-L11 ->  | M18: =M16-M11 ->  | N18: =N16-N11 ->  | O18: =O16-O11 ->  | P18: =P16-P11 -> 
A19: Gain, kg | B19: =B11/1000*B16 ->  | C19: =C11/1000*C16 ->  | H19: =IF('Finisher Model - NE Metric'!D11=2,SUM(B19:C19)+'Finisher Model - NE Metric'!B17,IF('Finisher Model - NE Metric'!D11=3,SUM(B19:D19)+'Finisher Model - NE Metric'!B17,IF('Finisher Model - NE Metric'!D11=4,SUM(B19:E19)+'Finisher Model - NE Metric'!B17,IF('Finisher Model - NE Metric'!D11=5,SUM(B19:F19)+'Finisher Model - NE Metric'!B17,IF('Finisher Model - NE Metric'!D11=6,SUM(B19:G19)+'Finisher Model - NE Metric'!B17,""))))) -> 
A20: Feed cost per/kg of gain, $/pig | B20: =B18/((B11/1000)*B16) ->  | C20: =C18/((C11/1000)*C16) -> 
A21: Feed and facility cost, $/pig | B21: =B18+(B16*'Finisher Model - NE Metric'!$D$10) ->  | C21: =C18+(C16*'Finisher Model - NE Metric'!$D$10) ->  | D21: =D18+(D16*'Finisher Model - NE Metric'!$D$10) ->  | E21: =E18+(E16*'Finisher Model - NE Metric'!$D$10) ->  | F21: =F18+(F16*'Finisher Model - NE Metric'!$D$10) ->  | G21: =G18+(G16*'Finisher Model - NE Metric'!$D$10) -> 
A22: Revenue per pig, $/pig | B22: =B19*'Finisher Model - NE Metric'!$D$7 ->  | C22: =C19*'Finisher Model - NE Metric'!$D$7 ->  | D22: =D19*'Finisher Model - NE Metric'!$D$7 ->  | E22: =E19*'Finisher Model - NE Metric'!$D$7 ->  | F22: =F19*'Finisher Model - NE Metric'!$D$7 ->  | G22: =G19*'Finisher Model - NE Metric'!$D$7 -> 
A23: IOFC by phase, $/pig | B23: =B22-B18 -> 
A24: IOFFC by phase, $/pig | B24: =B22-B21 -> 
A25: Calculated Overall HCW,lb based on final BW and corrected yield | B25: =$H$19*B33/100 -> 
A26: Yield based on final BW and PIC equation | B26: =(VLOOKUP($H$19,$C$55:$I$94,7,TRUE))*100 ->  | C26: =(VLOOKUP($H$19,$C$55:$I$94,7,TRUE))*100 -> 
A27: User yield | B27: ='Finisher Model - NE Metric'!D9 -> 0
A28: User/PIC ratio | B28: =B27/B26 ->  | J28: Yield equation
A29: Biological STTD P as % of NRC | B29: ='Finisher Model - NE Metric'!P17 ->  | C29: ='Finisher Model - NE Metric'!P18 ->  | D29: ='Finisher Model - NE Metric'!P19 ->  | E29: ='Finisher Model - NE Metric'!P20 ->  | F29: ='Finisher Model - NE Metric'!P21 ->  | G29: ='Finisher Model - NE Metric'!P22 ->  | H29: =IF('Finisher Model - NE Metric'!D11=2,SUMPRODUCT(B29:C29,B16:C16)/SUM(B16:C16),IF('Finisher Model - NE Metric'!D11=3,SUMPRODUCT(B29:D29,B16:D16)/SUM(B16:D16),IF('Finisher Model - NE Metric'!D11=4,SUMPRODUCT(B29:E29,B16:E16)/SUM(B16:E16),IF('Finisher Model - NE Metric'!D11=5,SUMPRODUCT(B29:F29,B16:F16)/SUM(B16:F16),IF('Finisher Model - NE Metric'!D11=6,SUMPRODUCT(B29:G29,B16:G16)/SUM(B16:G16),""))))) -> 
A30: Predicted yield based on biological STTD P level | B30: =73.859-1.19192*H29 ->  | J30: 73.859 - 1.19192 x STTD P % of NRC
A31: Yield at 100% of NRC | B31: =73.859-1.19192*1 -> 72.66708
A32: Yield correction factor based on STTD P level | B32: =B30/B31 -> 
A33: Corrected current yield | B33: =(VLOOKUP($H$19,$C$55:$K$94,9,TRUE)) ->  | C33: =(VLOOKUP($H$19,$C$55:$K$94,9,TRUE)) -> 
B37: Mixed Sex Feed Budget
B38: Closeout Feed Efficiency
B39: Initial Wt | C39: Final Wt | D39: F/G
B40: =CONVERT('Finisher Model - NE Metric'!B17,"kg","lbm") -> 0 | C40: =CONVERT(H19,"kg","lbm") ->  | D40: =B15 -> 
B42: Initial Wt | C42: Final Wt | D42: lb/pig | E42: =IF(B43=0,F42,((0.00463*B43^2 + 1.68*B43 - 22.05)/(((0.00463*C40^2 + 1.68*C40 - 22.05)-(0.00463*B40^2 + 1.68*B40 - 22.05))/(C40-B40))*D40)) -> 0
A43: 1 | B43: =CONVERT('Finisher Model - NE Metric'!B17,"kg","lbm") -> 0 | C43: =CONVERT('Finisher Model - NE Metric'!C17,"kg","lbm") -> 0 | D43: =IF(C43="","",(E43-E42)) ->  | E43: =IF(B44="","",((0.00463*B44^2 + 1.68*B44 - 22.05)/(((0.00463*$C$40^2 + 1.68*$C$40 - 22.05)-(0.00463*$B$40^2 + 1.68*$B$40 - 22.05))/($C$40-$B$40))*$D$40)) -> 
A44: 2 | B44: =C43 -> 0 | C44: =CONVERT(IF('Finisher Model - NE Metric'!D11=2,H19,'Finisher Model - NE Metric'!C18),"kg","lbm") -> 0 | D44: =IF(C44="","",(E44-E43)) -> 
A45: 3 | B45: 0 | C45: =CONVERT(IF('Finisher Model - NE Metric'!D11=3,H19,'Finisher Model - NE Metric'!C19),"kg","lbm") -> 0
A46: 4 | B46: 0 | C46: =CONVERT(IF('Finisher Model - NE Metric'!D11=4,H19,'Finisher Model - NE Metric'!C20),"kg","lbm") -> 0 | D46: =IF(C46="","",(E46-E45)) -> 
A47: 5 | B47: =C46 -> 0 | C47: =CONVERT(IF('Finisher Model - NE Metric'!D11=5,H19,'Finisher Model - NE Metric'!C21),"kg","lbm") -> 0
A48: 6 | B48: =C47 -> 0 | C48: =CONVERT(IF('Finisher Model - NE Metric'!D11=6,H19,""),"kg","lbm") ->  | D48: =IF(C48="","",(E48-E47)) -> 
B49: =C48 -> 
B53: Hot Carcass Wheight | C53: Market weight (est. by Carcass yield) | D53: Back Fat for PIC 337 | I53: Carcass Yield (%) = 66.411 + ( Carcass weight, kg x 0.0878)
B54: kg | C54: kg | D54: Barrows | E54: Gilts | F54: Average | J54: User/PIC Adjusted Yield | K54: User/PIC Asjusted and STTD P adjusted
B55: 81 | C55: 110.1767062 | D55: 16.86478205 | E55: 14.51072874 | F55: 15.6877554 | I55: 0.7351826241 | J55: =(I55*$B$28)*100 ->  | K55: =J55*$B$32 -> 
B56: 82 | C56: 111.403952 | D56: 17.07445571 | E56: 14.61370144 | F56: 15.84407857 | I56: 0.7360600639 | J56: =(I56*$B$28)*100 ->  | K56: =J56*$B$32 -> 
B57: 83 | C57: 112.6282752 | D57: 17.28414727 | E57: 14.71614343 | F57: 16.00014535 | I57: 0.7369375037
B58: 84 | C58: 113.8496865 | D58: 17.49385651 | E58: 14.81806378 | F58: 16.15596015 | I58: 0.7378149435
B59: 85 | C59: 115.0681961 | D59: 17.70358323 | E59: 14.91947133 | F59: 16.31152728 | I59: 0.7386923833
B60: 86 | C60: 116.2838143 | D60: 17.91332723 | E60: 15.02037463 | F60: 16.46685093 | I60: 0.7395698231
B61: 87 | C61: 117.4965516 | D61: 18.1230883 | E61: 15.12078202 | F61: 16.62193516 | I61: 0.7404472629
B62: 88 | C62: 118.706418 | D62: 18.33286624 | E62: 15.22070158 | F62: 16.77678391 | I62: 0.7413247027
B63: 89 | C63: 119.9134237 | D63: 18.54266088 | E63: 15.3201412 | F63: 16.93140104 | I63: 0.7422021425
B64: 90 | C64: 121.117579 | D64: 18.75247201 | E64: 15.41910854 | F64: 17.08579027 | I64: 0.7430795823
B65: 91 | C65: 122.3188938 | D65: 18.96229947 | E65: 15.51761104 | F65: 17.23995525 | I65: 0.7439570221
B66: 92 | C66: 123.5173783 | D66: 19.17214306 | E66: 15.61565596 | F66: 17.39389951 | I66: 0.7448344619
B67: 93 | C67: 124.7130424 | D67: 19.38200263 | E67: 15.71325037 | F67: 17.5476265 | I67: 0.7457119017
B68: 94 | C68: 125.905896 | D68: 19.59187799 | E68: 15.81040115 | F68: 17.70113957 | I68: 0.7465893415
B69: 95 | C69: 127.0959491 | D69: 19.80176898 | E69: 15.90711501 | F69: 17.85444199 | I69: 0.7474667813
B70: 96 | C70: 128.2832115 | D70: 20.01167544 | E70: 16.00339847 | F70: 18.00753695 | I70: 0.7483442211
B71: 97 | C71: 129.467693 | D71: 20.2215972 | E71: 16.09925791 | F71: 18.16042755 | I71: 0.7492216609
B72: 98 | C72: 130.6494034 | D72: 20.43153412 | E72: 16.19469953 | F72: 18.31311682 | I72: 0.7500991007
B73: 99 | C73: 131.8283524 | D73: 20.64148603 | E73: 16.2897294 | F73: 18.46560771 | I73: 0.7509765405
B74: 100 | C74: 133.0045496 | D74: 20.85145278 | E74: 16.38435342 | F74: 18.6179031 | I74: 0.7518539803
B75: 101 | C75: 134.1780047 | D75: 21.06143424 | E75: 16.47857735 | F75: 18.7700058 | I75: 0.7527314202
B76: 102 | C76: 135.3487272 | D76: 21.27143025 | E76: 16.57240684 | F76: 18.92191854 | I76: 0.75360886
B77: 103 | C77: 136.5167267 | D77: 21.48144067 | E77: 16.66584736 | F77: 19.07364401 | I77: 0.7544862998
B78: 104 | C78: 137.6820127 | D78: 21.69146536 | E78: 16.75890429 | F78: 19.22518482 | I78: 0.7553637396
B79: 105 | C79: 138.8445946 | D79: 21.90150419 | E79: 16.85158287 | F79: 19.37654353 | I79: 0.7562411794
B80: 106 | C80: 140.0044819 | D80: 22.11155702 | E80: 16.94388821 | F80: 19.52772262 | I80: 0.7571186192
B81: 107 | C81: 141.1616838 | D81: 22.32162373 | E81: 17.03582532 | F81: 19.67872453 | I81: 0.757996059
B82: 108 | C82: 142.3162097 | D82: 22.53170418 | E82: 17.1273991 | F82: 19.82955164 | I82: 0.7588734988
B83: 109 | C83: 143.4680689 | D83: 22.74179825 | E83: 17.21861431 | F83: 19.98020628 | I83: 0.7597509386
B84: 110 | C84: 144.6172706 | D84: 22.95190581 | E84: 17.30947563 | F84: 20.13069072 | I84: 0.7606283784
B85: 111 | C85: 145.7638239 | D85: 23.16202674 | E85: 17.39998765 | F85: 20.28100719 | I85: 0.7615058182
B86: 112 | C86: 146.9077381 | D86: 23.37216092 | E86: 17.49015482 | F86: 20.43115787 | I86: 0.762383258
B87: 113 | C87: 148.0490222 | D87: 23.58230823 | E87: 17.57998152 | F87: 20.58114488 | I87: 0.7632606978
B88: 114 | C88: 149.1876853 | D88: 23.79246857 | E88: 17.66947204 | F88: 20.7309703 | I88: 0.7641381376
B89: 115 | C89: 150.3237364 | D89: 24.00264181 | E89: 17.75863057 | F89: 20.88063619 | I89: 0.7650155774
B90: 116 | C90: 151.4571845 | D90: 24.21282784 | E90: 17.8474612 | F90: 21.03014452 | I90: 0.7658930172
B91: 117 | C91: 152.5880385 | D91: 24.42302656 | E91: 17.93596796 | F91: 21.17949726 | I91: 0.766770457
B92: 118 | C92: 153.7163073 | D92: 24.63323785 | E92: 18.02415478 | F92: 21.32869631 | I92: 0.7676478968
B93: 119 | C93: 154.8419998 | D93: 24.84346162 | E93: 18.11202551 | F93: 21.47774356 | I93: 0.7685253366
B94: 120 | C94: 155.9651247 | D94: 25.05369775 | E94: 18.19958393 | F94: 21.62664084 | I94: 0.7694027764

Sheet Finisher Model - ME Metric
A1: Economic model for optimum phosphorus levels
A4: Input (please fill yellow cells)
W5: STTD P | X5: 0.000030626936175869600x2 - 0.009664361472054440000x + 1.476750678631610000000
A6: Economic evaluation criteria | X6: Slot (Phase) 1
A7: Live pig price, $/kg | Y7: STTD P:ME
A8: Carcass price, $/kg | T8: 2 | X8: Barrows and Gilts | Y8: =0.0000306269361758696*(U17*U17)- 0.00966436147205444*U17+ 1.47675067863161 -> 
A9: Current carcass yield, % | S9: Live | T9: 3
A10: Facility cost, $/pig/day | S10: Carcass | T10: 4 | X10: Slot (Phase) 2
A11: Number of phases | T11: 5 | Y11: STTD P:ME
T12: 6 | X12: Barrows and Gilts | Y12: =0.0000306269361758696*(U18*U18)- 0.00966436147205444*U18+ 1.47675067863161 -> 
A14: Gender | D14: Barrows and gilts | X14: Slot (Phase) 3
E15: Maximal growth | H15: Current diets | Y15: STTD P:ME
B16: BW, kg | D16: Energy, kcal ME/kg | E16: STTD P, % | F16: $/ton | H16: STTD P, % | I16: $/ton | P16: Biological % of NRC | R16: Current % of NRC | U16: Avg Wt, kg | V16: Gain, kg | W16: NRC, % STTD P | X16: Barrows and Gilts | Y16: =0.0000306269361758696*(U19*U19)- 0.00966436147205444*U19+ 1.47675067863161 -> 
A17: Phase 1 | H17: =IFERROR(VLOOKUP($D$14,$X$7:$Y$8,2,FALSE)*D17/10000,"") ->  | P17: =IFERROR(H17/W17,"") ->  | R17: =IFERROR(E17/W17,"") ->  | T17: Slot (phase 1) | U17: =IFERROR(AVERAGE(B17:C17),"") ->  | V17: =IF(C17-B17=0,0,C17-B17) -> 0 | W17: =-0.0012418982*U17+ 0.3522266252 -> 
A18: Phase 2 | H18: =IFERROR(VLOOKUP($D$14,$X$11:$Y$12,2,FALSE)*D18/10000,"") ->  | T18: Slot (phase 2) | V18: 0 | X18: Slot (Phase) 4
A19: Phase 3 | H19: =IFERROR(VLOOKUP($D$14,$X$15:$Y$16,2,FALSE)*D19/10000,"") ->  | T19: Slot (phase 3) | V19: 0 | Y19: STTD P:ME
A20: Phase 4 | H20: =IFERROR(VLOOKUP($D$14,$X$19:$Y$20,2,FALSE)*D20/10000,"") ->  | T20: Slot (phase 4) | V20: 0 | X20: Barrows and Gilts | Y20: =0.0000306269361758696*(U20*U20)- 0.00966436147205444*U20+ 1.47675067863161 -> 
A21: Phase 5 | H21: =IFERROR(VLOOKUP($D$14,$X$23:$Y$24,2,FALSE)*D21/10000,"") ->  | T21: Slot (phase 5) | V21: 0
A22: Phase 6 | H22: =IFERROR(VLOOKUP($D$14,$X$28:$Y$29,2,FALSE)*D22/10000,"") ->  | T22: Slot (phase 5) | V22: 0 | X22: Slot (Phase) 5
U23: Total gain | V23: =SUM(V17:V21) -> 0 | Y23: STTD P:ME
X24: Barrows and Gilts | Y24: =0.0000306269361758696*(U21*U21)- 0.00966436147205444*U21+ 1.47675067863161 -> 
B25: Performance Output | F25: Economics Output
B26: Performance difference between maximal growth and current diets, % | F26: Net profit difference between maximal growth and current diets, $/pig | X26: Slot (Phase) 6
B27: Fixed Weight (space long) | F27: Fixed Weight (space long)
B28: Growth rate | D28: =IFERROR(E51,"") ->  | F28: =IF($D$10>0,"IOFFC","IOFC") -> IOFC | H28: =IFERROR(IF($F$28="IOFFC",$E$59,$E$58),"") ->  | R28: ADG response | Y28: STTD P:ME
B29: Feed efficiency | D29: =IFERROR(E52,"") ->  | F29: Fixed Time (space short) | R29: Optimum STTD Ca:STTD P | T29: 2.48 | X29: Barrows and Gilts | Y29: =0.0000306269361758696*(U22*U22)- 0.00966436147205444*U22+ 1.47675067863161 -> 
B30: Carcass yield | D30: =IFERROR(E53,"") ->  | F30: IOFC | H30: =IFERROR(K58,"") ->  | R30: Optimum STTD Ca:STTD P | T30: 1.785
B31: Fixed Time (space short)
B32: Growth rate | D32: =IFERROR(K51,"") -> 
B33: Feed efficiency | D33: =IFERROR(K52,"") -> 
B34: Carcass yield | D34: =IFERROR(K53,"") ->  | AC34: 0
AC47: 0
A49: Output - Fixed Weight (space long) | G49: Output - Fixed Time (space short)
C50: Biological | D50: Current | I50: Biological | J50: Current
A51: % of maximum ADG | C51: 1 | D51: =IF(D6="Live",'Current Performance - ME'!K5/'FW - Projected Performance - ME'!K6,'Current Performance - ME'!K5/'FW - Projected Performance - ME'!K17) ->  | E51: =(D51-C51)/D51 ->  | G51: % of maximum ADG | I51: 1 | J51: ='Current Performance - ME'!K5/'FT - Projected Performance - ME'!K5 ->  | K51: =(J51-I51)/J51 -> 
A52: % of maximum feed efficiency | C52: 1 | D52: =IF(D6="Live",'FW - Projected Performance - ME'!K7/'Current Performance - ME'!K6,'FW - Projected Performance - ME'!K18/'Current Performance - ME'!K6) ->  | E52: =(D52-C52)/D52 ->  | G52: % of maximum feed efficiency | I52: 1 | J52: ='FT - Projected Performance - ME'!K6/'Current Performance - ME'!K6 ->  | K52: =(J52-I52)/J52 -> 
A53: Carcass yield | C53: ='FW - Projected Performance - ME'!B43 ->  | D53: ='Current Performance - ME'!B36 ->  | E53: =(D53-C53)/D53 ->  | G53: Carcass yield | I53: ='FT - Projected Performance - ME'!B33 ->  | J53: ='Current Performance - ME'!B36 ->  | K53: =(J53-I53)/J53 -> 
A54: Economics, $/pig | G54: Economics, $/pig
A55: Total feed cost | C55: =IF($D$6="Live",'FW - Projected Performance - ME'!K11,'FW - Projected Performance - ME'!K22) ->  | D55: ='Current Performance - ME'!K10 ->  | G55: Total feed cost | I55: ='FT - Projected Performance - ME'!K10 ->  | J55: ='Current Performance - ME'!K10 -> 
A56: Total feed and facility cost | C56: =IF($D$6="Live",'FW - Projected Performance - ME'!K12,'FW - Projected Performance - ME'!K23) ->  | D56: ='Current Performance - ME'!K11 ->  | G56: Total feed and facility cost | I56: ='FT - Projected Performance - ME'!K11 ->  | J56: ='Current Performance - ME'!K11 -> 
A57: Total revenue | C57: =IF($D$6="Live",'FW - Projected Performance - ME'!K13,'FW - Projected Performance - ME'!K24) ->  | D57: =IF($D$6="Live",'Current Performance - ME'!K12,'Current Performance - ME'!K15) ->  | E57: Difference | G57: Total revenue | I57: =IF($D$6="Live",'FT - Projected Performance - ME'!K12,'FT - Projected Performance - ME'!K16) ->  | J57: =IF($D$6="Live",'Current Performance - ME'!K12,'Current Performance - ME'!K15) ->  | K57: Difference
A58: IOFC | C58: =IF($D$6="Live",'FW - Projected Performance - ME'!K14,'FW - Projected Performance - ME'!K25) ->  | D58: =IF($D$6="Live",'Current Performance - ME'!K13,'Current Performance - ME'!K16) ->  | E58: =C58-D58 ->  | G58: IOFC | I58: =IF($D$6="Live",'FT - Projected Performance - ME'!K13,'FT - Projected Performance - ME'!K17) ->  | J58: =IF($D$6="Live",'Current Performance - ME'!K13,'Current Performance - ME'!K16) ->  | K58: =I58-J58 -> 
A59: IOFFC | C59: =IF($D$6="Live",'FW - Projected Performance - ME'!K15,'FW - Projected Performance - ME'!K26) ->  | D59: =IF($D$6="Live",'Current Performance - ME'!K14,'Current Performance - ME'!K17) ->  | E59: =C59-D59 ->  | G59: IOFFC | I59: =IF($D$6="Live",'FT - Projected Performance - ME'!K14,'FT - Projected Performance - ME'!K18) ->  | J59: =IF($D$6="Live",'Current Performance - ME'!K14,'Current Performance - ME'!K17) ->  | K59: =I59-J59 -> 

Sheet Current Performance - ME (hidden)
A1: Economic model for optimum phosphorus level - Model Calculations by phase
A2: Item | B2: Dietary phase | J2: Summary of Calculations with Current Phosphorus Levels
B4: 1 | C4: 2 | D4: 3 | E4: 4 | F4: 5 | G4: 6 | J4: Item | K4: Output | L4: 2 | M4: 3 | N4: 4 | O4: 5 | P4: 6
A5: Starting weight, kg | B5: ='Finisher Model - ME Metric'!B17 -> 0 | C5: ='Finisher Model - ME Metric'!B18 -> 0 | D5: ='Finisher Model - ME Metric'!B19 -> 0 | E5: ='Finisher Model - ME Metric'!B20 -> 0 | F5: ='Finisher Model - ME Metric'!B21 -> 0 | G5: ='Finisher Model - ME Metric'!B22 -> 0 | J5: Predicted ADG, kg | K5: =IF('Finisher Model - ME Metric'!$D$11=2,'Current Performance - ME'!L5,IF('Finisher Model - ME Metric'!$D$11=3,'Current Performance - ME'!M5,IF('Finisher Model - ME Metric'!$D$11=4,'Current Performance - ME'!N5,IF('Finisher Model - ME Metric'!$D$11=5,'Current Performance - ME'!O5,IF('Finisher Model - ME Metric'!$D$11=6,'Current Performance - ME'!P5,""))))) ->  | L5: =((SUMPRODUCT($B$11:$C$11,$B$16:$C$16)/SUM($B$16:$C$16))/1000) ->  | M5: =((SUMPRODUCT($B$11:$D$11,$B$16:$D$16)/SUM($B$16:$D$16))/1000) ->  | N5: =((SUMPRODUCT($B$11:$E$11,$B$16:$E$16)/SUM($B$16:$E$16))/1000) ->  | O5: =((SUMPRODUCT($B$11:$F$11,$B$16:$F$16)/SUM($B$16:$F$16))/1000) ->  | P5: =((SUMPRODUCT($B$11:$G$11,$B$16:$G$16)/SUM($B$16:$G$16))/1000) -> 
A6: Final weight, kg | B6: ='Finisher Model - ME Metric'!C17 -> 0 | C6: ='Finisher Model - ME Metric'!C18 -> 0 | D6: ='Finisher Model - ME Metric'!C19 -> 0 | E6: ='Finisher Model - ME Metric'!C20 -> 0 | F6: ='Finisher Model - ME Metric'!C21 -> 0 | G6: ='Finisher Model - ME Metric'!C22 -> 0 | J6: Predicted F/G | K6: =IF('Finisher Model - ME Metric'!$D$11=2,'Current Performance - ME'!L6,IF('Finisher Model - ME Metric'!$D$11=3,'Current Performance - ME'!M6,IF('Finisher Model - ME Metric'!$D$11=4,'Current Performance - ME'!N6,IF('Finisher Model - ME Metric'!$D$11=5,'Current Performance - ME'!O6,IF('Finisher Model - ME Metric'!$D$11=6,'Current Performance - ME'!P6,""))))) ->  | L6: =SUM($B$17:$C$17)/SUM($B$19:$C$19) ->  | M6: =SUM($B$17:$D$17)/SUM($B$19:$D$19) ->  | N6: =SUM($B$17:$E$17)/SUM($B$19:$E$19) ->  | O6: =SUM($B$17:$F$17)/SUM($B$19:$F$19) ->  | P6: =SUM($B$17:$G$17)/SUM($B$19:$G$19) -> 
A7: Total gain, kg | B7: =B6-B5 -> 0 | C7: =C6-C5 -> 0 | D7: 0 | E7: 0 | F7: =F6-F5 -> 0 | G7: =G6-G5 -> 0 | J7: Predicted ADFI, kg | K7: =IF('Finisher Model - ME Metric'!$D$11=2,'Current Performance - ME'!L7,IF('Finisher Model - ME Metric'!$D$11=3,'Current Performance - ME'!M7,IF('Finisher Model - ME Metric'!$D$11=4,'Current Performance - ME'!N7,IF('Finisher Model - ME Metric'!$D$11=5,'Current Performance - ME'!O7,IF('Finisher Model - ME Metric'!$D$11=6,'Current Performance - ME'!P7,""))))) ->  | L7: =SUM(B17:C17)/SUM(B16:C16) ->  | M7: =SUM(B17:D17)/SUM(B16:D16) ->  | N7: =SUM(B17:E17)/SUM(B16:E16) ->  | O7: =SUM(B17:G17)/SUM(B16:G16) ->  | P7: =SUM(C17:G17)/SUM(C16:G16) -> 
A8: Current NE, kcal/kg | B8: ='Finisher Model - ME Metric'!D17 -> 0 | C8: ='Finisher Model - ME Metric'!D18 -> 0 | D8: ='Finisher Model - ME Metric'!D19 -> 0 | E8: ='Finisher Model - ME Metric'!D20 -> 0 | F8: ='Finisher Model - ME Metric'!D21 -> 0 | G8: ='Finisher Model - ME Metric'!D22 -> 0 | J8: Phases duration, d | K8: =IF('Finisher Model - ME Metric'!$D$11=2,'Current Performance - ME'!L8,IF('Finisher Model - ME Metric'!$D$11=3,'Current Performance - ME'!M8,IF('Finisher Model - ME Metric'!$D$11=4,'Current Performance - ME'!N8,IF('Finisher Model - ME Metric'!$D$11=5,'Current Performance - ME'!O8,IF('Finisher Model - ME Metric'!$D$11=6,'Current Performance - ME'!P8,""))))) ->  | L8: =SUM(B16:C16) ->  | M8: =SUM(B16:D16) ->  | N8: =SUM(B16:E16) ->  | O8: =SUM(B16:F16) ->  | P8: =SUM(B16:G16) -> 
A9: Current Diet Cost, $/Ton | B9: ='Finisher Model - ME Metric'!F17 -> 0 | C9: ='Finisher Model - ME Metric'!F18 -> 0 | D9: ='Finisher Model - ME Metric'!F19 -> 0 | E9: ='Finisher Model - ME Metric'!F20 -> 0 | F9: ='Finisher Model - ME Metric'!F21 -> 0 | G9: ='Finisher Model - ME Metric'!F22 -> 0 | J9: Total feed, kg/pig | K9: =IF('Finisher Model - ME Metric'!$D$11=2,'Current Performance - ME'!L9,IF('Finisher Model - ME Metric'!$D$11=3,'Current Performance - ME'!M9,IF('Finisher Model - ME Metric'!$D$11=4,'Current Performance - ME'!N9,IF('Finisher Model - ME Metric'!$D$11=5,'Current Performance - ME'!O9,IF('Finisher Model - ME Metric'!$D$11=6,'Current Performance - ME'!P9,""))))) ->  | L9: =SUM(B17:C17) ->  | M9: =SUM(B17:D17) ->  | N9: =SUM(B17:E17) ->  | O9: =SUM(B17:F17) ->  | P9: =SUM(B17:G17) -> 
A10: Average Starting Wt & End Wt, kg | B10: =AVERAGE(B5:B6) -> 0 | C10: =AVERAGE(C5:C6) -> 0 | D10: 0 | E10: =AVERAGE(E5:E6) -> 0 | F10: =AVERAGE(F5:F6) -> 0 | G10: =AVERAGE(G5:G6) -> 0 | J10: Total feed cost, $/pig | K10: =IF('Finisher Model - ME Metric'!$D$11=2,'Current Performance - ME'!L10,IF('Finisher Model - ME Metric'!$D$11=3,'Current Performance - ME'!M10,IF('Finisher Model - ME Metric'!$D$11=4,'Current Performance - ME'!N10,IF('Finisher Model - ME Metric'!$D$11=5,'Current Performance - ME'!O10,IF('Finisher Model - ME Metric'!$D$11=6,'Current Performance - ME'!P10,""))))) ->  | L10: =SUM(B18:C18) ->  | M10: =SUM(B18:D18) ->  | N10: =SUM(B18:E18) ->  | O10: =SUM(B18:F18) ->  | P10: =SUM(B18:G18) -> 
A11: Calculated Overall ADG with STTD P trial (Vier et al.,2017) | B11: =IFERROR(651.36+531.33*'Finisher Model - ME Metric'!R17-216.9*('Finisher Model - ME Metric'!R17*'Finisher Model - ME Metric'!R17),"") ->  | C11: =IFERROR(651.36+531.33*'Finisher Model - ME Metric'!R18-216.9*('Finisher Model - ME Metric'!R18*'Finisher Model - ME Metric'!R18),"") ->  | D11: =IFERROR(651.36+531.33*'Finisher Model - ME Metric'!R19-216.9*('Finisher Model - ME Metric'!R19*'Finisher Model - ME Metric'!R19),"") ->  | E11: =IFERROR(651.36+531.33*'Finisher Model - ME Metric'!R20-216.9*('Finisher Model - ME Metric'!R20*'Finisher Model - ME Metric'!R20),"") ->  | F11: =IFERROR(651.36+531.33*'Finisher Model - ME Metric'!R21-216.9*('Finisher Model - ME Metric'!R21*'Finisher Model - ME Metric'!R21),"") ->  | G11: =IFERROR(651.36+531.33*'Finisher Model - ME Metric'!R22-216.9*('Finisher Model - ME Metric'!R22*'Finisher Model - ME Metric'!R22),"") ->  | J11: Total feed cost & facility cost, $/pig | K11: =IF('Finisher Model - ME Metric'!$D$11=2,'Current Performance - ME'!L11,IF('Finisher Model - ME Metric'!$D$11=3,'Current Performance - ME'!M11,IF('Finisher Model - ME Metric'!$D$11=4,'Current Performance - ME'!N11,IF('Finisher Model - ME Metric'!$D$11=5,'Current Performance - ME'!O11,IF('Finisher Model - ME Metric'!$D$11=6,'Current Performance - ME'!P11,""))))) ->  | L11: =SUM(B21:C21) ->  | M11: =SUM(B21:D21) ->  | N11: =SUM(B21:E21) ->  | O11: =SUM(B21:F21) ->  | P11: =SUM(B21:G21) -> 
A12: Calculated Overall G:F with STTD P trial (Vier et al.,2017) | B12: =IFERROR(338.34+108.98*'Finisher Model - ME Metric'!R17-46.7864*('Finisher Model - ME Metric'!R17*'Finisher Model - ME Metric'!R17),"") ->  | C12: =IFERROR(338.34+108.98*'Finisher Model - ME Metric'!R18-46.7864*('Finisher Model - ME Metric'!R18*'Finisher Model - ME Metric'!R18),"") ->  | D12: =IFERROR(338.34+108.98*'Finisher Model - ME Metric'!R19-46.7864*('Finisher Model - ME Metric'!R19*'Finisher Model - ME Metric'!R19),"") ->  | E12: =IFERROR(338.34+108.98*'Finisher Model - ME Metric'!R20-46.7864*('Finisher Model - ME Metric'!R20*'Finisher Model - ME Metric'!R20),"") ->  | F12: =IFERROR(338.34+108.98*'Finisher Model - ME Metric'!R21-46.7864*('Finisher Model - ME Metric'!R21*'Finisher Model - ME Metric'!R21),"") ->  | G12: =IFERROR(338.34+108.98*'Finisher Model - ME Metric'!R22-46.7864*('Finisher Model - ME Metric'!R22*'Finisher Model - ME Metric'!R22),"") ->  | J12: Revenue Live, $/pig | K12: =IF('Finisher Model - ME Metric'!$D$11=2,'Current Performance - ME'!L12,IF('Finisher Model - ME Metric'!$D$11=3,'Current Performance - ME'!M12,IF('Finisher Model - ME Metric'!$D$11=4,'Current Performance - ME'!N12,IF('Finisher Model - ME Metric'!$D$11=5,'Current Performance - ME'!O12,IF('Finisher Model - ME Metric'!$D$11=6,'Current Performance - ME'!P12,""))))) ->  | L12: =SUM(B19:C19,'Finisher Model - ME Metric'!B17)*'Finisher Model - ME Metric'!D7 ->  | M12: =SUM(B19:D19,'Finisher Model - ME Metric'!B17)*'Finisher Model - ME Metric'!D7 ->  | N12: =SUM(B19:E19,'Finisher Model - ME Metric'!B17)*'Finisher Model - ME Metric'!D7 ->  | O12: =SUM(B19:F19,'Finisher Model - ME Metric'!B17)*'Finisher Model - ME Metric'!D7 ->  | P12: =SUM(B19:G19,'Finisher Model - ME Metric'!B17)*'Finisher Model - ME Metric'!D7 -> 
A13: Predicted Overall ADFI, g/d | B13: =(B11/B12)*1000 ->  | J13: Total IOFC Live, $/pig | K13: =IF('Finisher Model - ME Metric'!$D$11=2,'Current Performance - ME'!L13,IF('Finisher Model - ME Metric'!$D$11=3,'Current Performance - ME'!M13,IF('Finisher Model - ME Metric'!$D$11=4,'Current Performance - ME'!N13,IF('Finisher Model - ME Metric'!$D$11=5,'Current Performance - ME'!O13,IF('Finisher Model - ME Metric'!$D$11=6,'Current Performance - ME'!P13,""))))) ->  | L13: =L12-L10 ->  | M13: =M12-M10 ->  | N13: =N12-N10 ->  | O13: =O12-O10 ->  | P13: =P12-P10 -> 
A14: Precited Overall F/G | B14: =B13/B11 ->  | J14: Total IOFFC Live, $/pig | K14: =IF('Finisher Model - ME Metric'!$D$11=2,'Current Performance - ME'!L14,IF('Finisher Model - ME Metric'!$D$11=3,'Current Performance - ME'!M14,IF('Finisher Model - ME Metric'!$D$11=4,'Current Performance - ME'!N14,IF('Finisher Model - ME Metric'!$D$11=5,'Current Performance - ME'!O14,IF('Finisher Model - ME Metric'!$D$11=6,'Current Performance - ME'!P14,""))))) ->  | L14: =L12-L11 ->  | M14: =M12-M11 ->  | N14: =N12-N11 ->  | O14: =O12-O11 ->  | P14: =P12-P11 -> 
A15: Overall average F/G (weighted average based on phase duration) | B15: =IF('Finisher Model - ME Metric'!D11=2,(SUMPRODUCT(B14:C14,B16:C16)/SUM(B16:C16)),IF('Finisher Model - ME Metric'!D11=3,(SUMPRODUCT(B14:D14,B16:D16)/SUM(B16:D16)),IF('Finisher Model - ME Metric'!D11=4,(SUMPRODUCT(B14:E14,B16:E16)/SUM(B16:E16)),IF('Finisher Model - ME Metric'!D11=5,(SUMPRODUCT(B14:F14,B16:F16)/SUM(B16:F16)),IF('Finisher Model - ME Metric'!D11=6,(SUMPRODUCT(B14:G14,B16:G16)/SUM(B16:G16)),""))))) ->  | J15: Revenue Carcass, $/pig | K15: =IF('Finisher Model - ME Metric'!$D$11=2,'Current Performance - ME'!L15,IF('Finisher Model - ME Metric'!$D$11=3,'Current Performance - ME'!M15,IF('Finisher Model - ME Metric'!$D$11=4,'Current Performance - ME'!N15,IF('Finisher Model - ME Metric'!$D$11=5,'Current Performance - ME'!O15,IF('Finisher Model - ME Metric'!$D$11=6,'Current Performance - ME'!P15,""))))) ->  | L15: =C28*'Finisher Model - ME Metric'!$D$8 ->  | M15: =D28*'Finisher Model - ME Metric'!$D$8 ->  | N15: =E28*'Finisher Model - ME Metric'!$D$8 ->  | O15: =F28*'Finisher Model - ME Metric'!$D$8 ->  | P15: =G28*'Finisher Model - ME Metric'!$D$8 -> 
A16: Phase duration, d | B16: =(CONVERT(B7,"kg","g"))/B11 ->  | H16: =IF('Finisher Model - ME Metric'!D11=2,SUM(B16:C16),IF('Finisher Model - ME Metric'!D11=3,SUM(B16:D16),IF('Finisher Model - ME Metric'!D11=4,SUM(B16:E16),IF('Finisher Model - ME Metric'!D11=5,SUM(B16:F16),IF('Finisher Model - ME Metric'!D11=6,SUM(B16:G16),""))))) ->  | J16: Total IOFC Carcass, $/pig | K16: =IF('Finisher Model - ME Metric'!$D$11=2,'Current Performance - ME'!L16,IF('Finisher Model - ME Metric'!$D$11=3,'Current Performance - ME'!M16,IF('Finisher Model - ME Metric'!$D$11=4,'Current Performance - ME'!N16,IF('Finisher Model - ME Metric'!$D$11=5,'Current Performance - ME'!O16,IF('Finisher Model - ME Metric'!$D$11=6,'Current Performance - ME'!P16,""))))) ->  | L16: =L15-L10 ->  | M16: =M15-M10 ->  | N16: =N15-N10 ->  | O16: =O15-O10 ->  | P16: =P15-P10 -> 
A17: Feed budget by phase, kg/pig | B17: =CONVERT(D45,"lbm","kg") ->  | C17: =CONVERT(D46,"lbm","kg") ->  | D17: =CONVERT(D47,"lbm","kg") ->  | E17: =CONVERT(D48,"lbm","kg") ->  | F17: =CONVERT(D49,"lbm","kg") ->  | G17: =CONVERT(D50,"lbm","kg") ->  | J17: Total IOFFC Carcass $/pig | K17: =IF('Finisher Model - ME Metric'!$D$11=2,'Current Performance - ME'!L17,IF('Finisher Model - ME Metric'!$D$11=3,'Current Performance - ME'!M17,IF('Finisher Model - ME Metric'!$D$11=4,'Current Performance - ME'!N17,IF('Finisher Model - ME Metric'!$D$11=5,'Current Performance - ME'!O17,IF('Finisher Model - ME Metric'!$D$11=6,'Current Performance - ME'!P17,""))))) ->  | L17: =L15-L11 ->  | M17: =M15-M11 ->  | N17: =N15-N11 ->  | O17: =O15-O11 ->  | P17: =P15-P11 -> 
A18: Total feed cost per phase, $/pig | B18: =(B17*(B9/907)) ->  | C18: =(C17*(C9/907)) ->  | D18: =(D17*(D9/907)) -> 
A19: Gain, kg | B19: =B11/1000*B16 ->  | C19: =C11/1000*C16 ->  | H19: =IF('Finisher Model - ME Metric'!D11=2,SUM(B19:C19)+'Finisher Model - ME Metric'!B17,IF('Finisher Model - ME Metric'!D11=3,SUM(B19:D19)+'Finisher Model - ME Metric'!B17,IF('Finisher Model - ME Metric'!D11=4,SUM(B19:E19)+'Finisher Model - ME Metric'!B17,IF('Finisher Model - ME Metric'!D11=5,SUM(B19:F19)+'Finisher Model - ME Metric'!B17,IF('Finisher Model - ME Metric'!D11=6,SUM(B19:G19)+'Finisher Model - ME Metric'!B17,""))))) -> 
A20: Feed cost per/lb of gain, $/pig | B20: =B18/((B11/1000)*B16) ->  | C20: =C18/((C11/1000)*C16) -> 
A21: Feed and facility cost, $/pig | B21: =B18+(B16*'Finisher Model - ME Metric'!$D$10) ->  | C21: =C18+(C16*'Finisher Model - ME Metric'!$D$10) ->  | D21: =D18+(D16*'Finisher Model - ME Metric'!$D$10) ->  | E21: =E18+(E16*'Finisher Model - ME Metric'!$D$10) ->  | F21: =F18+(F16*'Finisher Model - ME Metric'!$D$10) ->  | G21: =G18+(G16*'Finisher Model - ME Metric'!$D$10) -> 
A23: Revenue per pig by phase, $/pig | B23: =B19*'Finisher Model - ME Metric'!$D$7 ->  | C23: =C19*'Finisher Model - ME Metric'!$D$7 ->  | D23: =D19*'Finisher Model - ME Metric'!$D$7 ->  | E23: =E19*'Finisher Model - ME Metric'!$D$7 ->  | F23: =F19*'Finisher Model - ME Metric'!$D$7 ->  | G23: =G19*'Finisher Model - ME Metric'!$D$7 -> 
A24: IOFC by phase, $/pig | B24: =B23-B18 -> 
A25: IOFFC by phase, $/pig | B25: =B23-B21 ->  | C25: =C23-C21 -> 
A26: STTD P | B26: ='Finisher Model - ME Metric'!R17 ->  | C26: ='Finisher Model - ME Metric'!R18 ->  | D26: ='Finisher Model - ME Metric'!R19 ->  | E26: ='Finisher Model - ME Metric'!R20 ->  | F26: ='Finisher Model - ME Metric'!R21 ->  | G26: ='Finisher Model - ME Metric'!R22 -> 
A27: Weighted average of STTD P | B27: =SUMPRODUCT(B26,B17)/SUM(B17) ->  | C27: =SUMPRODUCT(B26:C26,B17:C17)/SUM(B17:C17) ->  | D27: =SUMPRODUCT(B26:D26,B17:D17)/SUM(B17:D17) ->  | E27: =SUMPRODUCT(B26:E26,B17:E17)/SUM(B17:E17) ->  | F27: =SUMPRODUCT(B26:F26,B17:F17)/SUM(B17:F17) ->  | G27: =SUMPRODUCT(B26:G26,B17:G17)/SUM(B17:G17) -> 
A28: Calculated Overall HCW, lb based on final BW and corrected yield | B28: =$H$19*B36/100 ->  | C28: =$H$19*C36/100 -> 
A29: Yield based on final body weight and PIC equation | B29: =(VLOOKUP($H$19,$C$57:$I$96,7,TRUE))*100 ->  | C29: =(VLOOKUP($H$19,$C$57:$I$96,7,TRUE))*100 -> 
A30: User yield | B30: ='Finisher Model - ME Metric'!D9 -> 0
A31: User/PIC ratio | B31: =B30/B29 -> 
A32: Current STTD P as a % of NRC | B32: ='Finisher Model - ME Metric'!R17 ->  | C32: ='Finisher Model - ME Metric'!R18 ->  | D32: ='Finisher Model - ME Metric'!R19 ->  | E32: ='Finisher Model - ME Metric'!R20 ->  | F32: ='Finisher Model - ME Metric'!R21 ->  | G32: ='Finisher Model - ME Metric'!R22 ->  | H32: =IF('Finisher Model - ME Metric'!D11=2,(SUMPRODUCT(B32:C32,B16:C16)/SUM(B16:C16)),IF('Finisher Model - ME Metric'!D11=3,(SUMPRODUCT(B32:D32,B16:D16)/SUM(B16:D16)),IF('Finisher Model - ME Metric'!D11=4,(SUMPRODUCT(B32:E32,B16:E16)/SUM(B16:E16)),IF('Finisher Model - ME Metric'!D11=5,(SUMPRODUCT(B32:F32,B16:F16)/SUM(B16:F16)),IF('Finisher Model - ME Metric'!D11=6,(SUMPRODUCT(B32:G32,B16:G16)/SUM(B16:G16)),""))))) -> 
A33: Predicted yield based on STTD P level | B33: =73.859-1.19192*H32 -> 
A34: Yield at 100% of NRC | B34: =73.859-1.19192*1 -> 72.66708
A35: Yield correction factor based on STTD P level | B35: =B33/$B$34 -> 
A36: Corrected current yield | B36: =(VLOOKUP($H$19,$C$57:$K$96,9,TRUE)) ->  | C36: =(VLOOKUP($H$19,$C$57:$K$96,9,TRUE)) -> 
B39: Mixed Sex Feed Budget | J39: Yield equation
B40: Closeout Feed Efficiency | J40: 73.859 - 1.19192 x STTD P % of NRC
B41: Initial Wt | C41: Final Wt | D41: F/G
B42: =CONVERT('Finisher Model - ME Metric'!B17,"kg","lbm") -> 0 | C42: =CONVERT(IF('Finisher Model - ME Metric'!$D$11=2,'Finisher Model - ME Metric'!C18,IF('Finisher Model - ME Metric'!$D$11=3,'Finisher Model - ME Metric'!C19,IF('Finisher Model - ME Metric'!$D$11=4,'Finisher Model - ME Metric'!C20,IF('Finisher Model - ME Metric'!$D$11=5,'Finisher Model - ME Metric'!C21,IF('Finisher Model - ME Metric'!$D$11=6,'Finisher Model - ME Metric'!C22,""))))),"kg","lbm") ->  | D42: =B15 -> 
B44: Initial Wt | C44: Final Wt | D44: lb/pig | E44: =IF(B45=0,F44,((0.00463*B45^2 + 1.68*B45 - 22.05)/(((0.00463*C42^2 + 1.68*C42 - 22.05)-(0.00463*B42^2 + 1.68*B42 - 22.05))/(C42-B42))*D42)) -> 0
A45: 1 | B45: =CONVERT('Finisher Model - ME Metric'!B17,"kg","lbm") -> 0 | C45: =CONVERT('Finisher Model - ME Metric'!C17,"kg","lbm") -> 0 | D45: =IF(C45="","",(E45-E44)) ->  | E45: =IF(B46="","",((0.00463*B46^2 + 1.68*B46 - 22.05)/(((0.00463*$C$42^2 + 1.68*$C$42 - 22.05)-(0.00463*$B$42^2 + 1.68*$B$42 - 22.05))/($C$42-$B$42))*$D$42)) -> 
A46: 2 | B46: =C45 -> 0 | C46: =CONVERT('Finisher Model - ME Metric'!C18,"kg","lbm") -> 0 | D46: =IF(C46="","",(E46-E45)) -> 
A47: 3 | B47: 0 | C47: =CONVERT('Finisher Model - ME Metric'!C19,"kg","lbm") -> 0
A48: 4 | B48: 0 | C48: =CONVERT('Finisher Model - ME Metric'!C20,"kg","lbm") -> 0 | D48: =IF(C48="","",(E48-E47)) -> 
A49: 5 | B49: 0 | C49: =CONVERT('Finisher Model - ME Metric'!C21,"kg","lbm") -> 0 | D49: =IF(C49="","",(E49-E48)) -> 
A50: 6 | B50: 0 | C50: =CONVERT('Finisher Model - ME Metric'!C22,"kg","lbm") -> 0 | D50: =IF(C50="","",(E50-E49)) -> 
B51: 0
B55: Hot Carcass Wheight | C55: Market weight (est. by Carcass yield) | D55: Back Fat for PIC 337 | I55: Carcass Yield (%) = 66.411 + ( Carcass weight, kg x 0.0878)
B56: kg | C56: kg | D56: Barrows | E56: Gilts | F56: Average | J56: User/PIC Adjusted Yield | K56: User/PIC Asjusted and STTD P adjusted
B57: 81 | C57: 110.1767062 | D57: 16.86478205 | E57: 14.51072874 | F57: 15.6877554 | I57: 0.7351826241 | J57: =($B$31*I57)*100 ->  | K57: =J57*$B$35 -> 
B58: 82 | C58: 111.403952 | D58: 17.07445571 | E58: 14.61370144 | F58: 15.84407857 | I58: 0.7360600639 | J58: =($B$31*I58)*100 -> 
B59: 83 | C59: 112.6282752 | D59: 17.28414727 | E59: 14.71614343 | F59: 16.00014535 | I59: 0.7369375037
B60: 84 | C60: 113.8496865 | D60: 17.49385651 | E60: 14.81806378 | F60: 16.15596015 | I60: 0.7378149435
B61: 85 | C61: 115.0681961 | D61: 17.70358323 | E61: 14.91947133 | F61: 16.31152728 | I61: 0.7386923833
B62: 86 | C62: 116.2838143 | D62: 17.91332723 | E62: 15.02037463 | F62: 16.46685093 | I62: 0.7395698231
B63: 87 | C63: 117.4965516 | D63: 18.1230883 | E63: 15.12078202 | F63: 16.62193516 | I63: 0.7404472629
B64: 88 | C64: 118.706418 | D64: 18.33286624 | E64: 15.22070158 | F64: 16.77678391 | I64: 0.7413247027
B65: 89 | C65: 119.9134237 | D65: 18.54266088 | E65: 15.3201412 | F65: 16.93140104 | I65: 0.7422021425
B66: 90 | C66: 121.117579 | D66: 18.75247201 | E66: 15.41910854 | F66: 17.08579027 | I66: 0.7430795823
B67: 91 | C67: 122.3188938 | D67: 18.96229947 | E67: 15.51761104 | F67: 17.23995525 | I67: 0.7439570221
B68: 92 | C68: 123.5173783 | D68: 19.17214306 | E68: 15.61565596 | F68: 17.39389951 | I68: 0.7448344619
B69: 93 | C69: 124.7130424 | D69: 19.38200263 | E69: 15.71325037 | F69: 17.5476265 | I69: 0.7457119017
B70: 94 | C70: 125.905896 | D70: 19.59187799 | E70: 15.81040115 | F70: 17.70113957 | I70: 0.7465893415
B71: 95 | C71: 127.0959491 | D71: 19.80176898 | E71: 15.90711501 | F71: 17.85444199 | I71: 0.7474667813
B72: 96 | C72: 128.2832115 | D72: 20.01167544 | E72: 16.00339847 | F72: 18.00753695 | I72: 0.7483442211
B73: 97 | C73: 129.467693 | D73: 20.2215972 | E73: 16.09925791 | F73: 18.16042755 | I73: 0.7492216609
B74: 98 | C74: 130.6494034 | D74: 20.43153412 | E74: 16.19469953 | F74: 18.31311682 | I74: 0.7500991007
B75: 99 | C75: 131.8283524 | D75: 20.64148603 | E75: 16.2897294 | F75: 18.46560771 | I75: 0.7509765405
B76: 100 | C76: 133.0045496 | D76: 20.85145278 | E76: 16.38435342 | F76: 18.6179031 | I76: 0.7518539803
B77: 101 | C77: 134.1780047 | D77: 21.06143424 | E77: 16.47857735 | F77: 18.7700058 | I77: 0.7527314202
B78: 102 | C78: 135.3487272 | D78: 21.27143025 | E78: 16.57240684 | F78: 18.92191854 | I78: 0.75360886
B79: 103 | C79: 136.5167267 | D79: 21.48144067 | E79: 16.66584736 | F79: 19.07364401 | I79: 0.7544862998
B80: 104 | C80: 137.6820127 | D80: 21.69146536 | E80: 16.75890429 | F80: 19.22518482 | I80: 0.7553637396
B81: 105 | C81: 138.8445946 | D81: 21.90150419 | E81: 16.85158287 | F81: 19.37654353 | I81: 0.7562411794
B82: 106 | C82: 140.0044819 | D82: 22.11155702 | E82: 16.94388821 | F82: 19.52772262 | I82: 0.7571186192
B83: 107 | C83: 141.1616838 | D83: 22.32162373 | E83: 17.03582532 | F83: 19.67872453 | I83: 0.757996059
B84: 108 | C84: 142.3162097 | D84: 22.53170418 | E84: 17.1273991 | F84: 19.82955164 | I84: 0.7588734988
B85: 109 | C85: 143.4680689 | D85: 22.74179825 | E85: 17.21861431 | F85: 19.98020628 | I85: 0.7597509386
B86: 110 | C86: 144.6172706 | D86: 22.95190581 | E86: 17.30947563 | F86: 20.13069072 | I86: 0.7606283784
B87: 111 | C87: 145.7638239 | D87: 23.16202674 | E87: 17.39998765 | F87: 20.28100719 | I87: 0.7615058182
B88: 112 | C88: 146.9077381 | D88: 23.37216092 | E88: 17.49015482 | F88: 20.43115787 | I88: 0.762383258
B89: 113 | C89: 148.0490222 | D89: 23.58230823 | E89: 17.57998152 | F89: 20.58114488 | I89: 0.7632606978
B90: 114 | C90: 149.1876853 | D90: 23.79246857 | E90: 17.66947204 | F90: 20.7309703 | I90: 0.7641381376
B91: 115 | C91: 150.3237364 | D91: 24.00264181 | E91: 17.75863057 | F91: 20.88063619 | I91: 0.7650155774
B92: 116 | C92: 151.4571845 | D92: 24.21282784 | E92: 17.8474612 | F92: 21.03014452 | I92: 0.7658930172
B93: 117 | C93: 152.5880385 | D93: 24.42302656 | E93: 17.93596796 | F93: 21.17949726 | I93: 0.766770457
B94: 118 | C94: 153.7163073 | D94: 24.63323785 | E94: 18.02415478 | F94: 21.32869631 | I94: 0.7676478968
B95: 119 | C95: 154.8419998 | D95: 24.84346162 | E95: 18.11202551 | F95: 21.47774356 | I95: 0.7685253366
B96: 120 | C96: 155.9651247 | D96: 25.05369775 | E96: 18.19958393 | F96: 21.62664084 | I96: 0.7694027764

Sheet FW - Projected Performance - ME (hidden)
A1: Economic model for optimum phosphorus level - Model Calculations by phase
A2: Item | B2: Dietary phase | J2: Summary of Calculations with Current Phosphorus Levels
B4: 1 | C4: 2 | D4: 3 | E4: 4 | F4: 5 | G4: 6 | J4: Item | K4: Output | L4: 2 | M4: 3 | N4: 4 | O4: 5 | P4: 6
A5: Starting weight, kg | B5: ='Finisher Model - ME Metric'!B17 -> 0 | C5: ='Finisher Model - ME Metric'!B18 -> 0 | D5: ='Finisher Model - ME Metric'!B19 -> 0 | E5: ='Finisher Model - ME Metric'!B20 -> 0 | F5: ='Finisher Model - ME Metric'!B21 -> 0 | G5: ='Finisher Model - ME Metric'!B22 -> 0 | J5: Live
A6: Final weight, kg | B6: ='Finisher Model - ME Metric'!C17 -> 0 | C6: ='Finisher Model - ME Metric'!C18 -> 0 | D6: ='Finisher Model - ME Metric'!C19 -> 0 | E6: ='Finisher Model - ME Metric'!C20 -> 0 | F6: ='Finisher Model - ME Metric'!C21 -> 0 | G6: ='Finisher Model - ME Metric'!C22 -> 0 | J6: Predicted ADG, kg | K6: =IF('Finisher Model - ME Metric'!$D$11=2,L6,IF('Finisher Model - ME Metric'!$D$11=3,M6,IF('Finisher Model - ME Metric'!$D$11=4,N6,IF('Finisher Model - ME Metric'!$D$11=5,O6,IF('Finisher Model - ME Metric'!$D$11=6,P6,""))))) ->  | L6: =((SUM($B$22:$C$22)/SUM(B16:C16))) ->  | M6: =((SUM($B$22:$D$22)/SUM(B16:D16))) ->  | N6: =((SUM($B$22:$E$22)/SUM(B16:E16))) ->  | O6: =((SUM($B$22:$F$22)/SUM(B16:F16))) ->  | P6: =((SUM($B$22:$G$22)/SUM(B16:G16))) -> 
A7: Total gain, kg | B7: =B6-B5 -> 0 | C7: =C6-C5 -> 0 | D7: 0 | E7: 0 | F7: 0 | G7: 0 | J7: Predicted F/G | K7: =IF('Finisher Model - ME Metric'!$D$11=2,L7,IF('Finisher Model - ME Metric'!$D$11=3,M7,IF('Finisher Model - ME Metric'!$D$11=4,N7,IF('Finisher Model - ME Metric'!$D$11=5,O7,IF('Finisher Model - ME Metric'!$D$11=6,P7,""))))) ->  | L7: =SUM($B$18:$C$18)/SUM($B$22:$C$22) ->  | M7: =SUM($B$18:$D$18)/SUM($B$22:$D$22) ->  | N7: =SUM($B$18:$E$18)/SUM($B$22:$E$22) ->  | O7: =SUM($B$18:$F$18)/SUM($B$22:$F$22) ->  | P7: =SUM($B$18:$G$18)/SUM($B$22:$G$22) -> 
A8: Current NE, kcal/kg | B8: ='Finisher Model - ME Metric'!D17 -> 0 | C8: ='Finisher Model - ME Metric'!D18 -> 0 | D8: ='Finisher Model - ME Metric'!D19 -> 0 | E8: ='Finisher Model - ME Metric'!D20 -> 0 | F8: ='Finisher Model - ME Metric'!D21 -> 0 | G8: ='Finisher Model - ME Metric'!D22 -> 0 | J8: Predicted ADFI, kg | K8: =IF('Finisher Model - ME Metric'!$D$11=2,L8,IF('Finisher Model - ME Metric'!$D$11=3,M8,IF('Finisher Model - ME Metric'!$D$11=4,N8,IF('Finisher Model - ME Metric'!$D$11=5,O8,IF('Finisher Model - ME Metric'!$D$11=6,P8,""))))) ->  | L8: =SUM(B18:C18)/SUM(B16:C16) ->  | M8: =SUM(B18:D18)/SUM(B16:D16) ->  | N8: =SUM(B18:E18)/SUM(B16:E16) ->  | O8: =SUM(B18:F18)/SUM(B16:F16) ->  | P8: =SUM(B18:G18)/SUM(B16:G16) -> 
A9: Current Diet Cost, $/Ton | B9: ='Finisher Model - ME Metric'!I17 -> 0 | C9: ='Finisher Model - ME Metric'!I18 -> 0 | D9: ='Finisher Model - ME Metric'!I19 -> 0 | E9: ='Finisher Model - ME Metric'!I20 -> 0 | F9: ='Finisher Model - ME Metric'!I21 -> 0 | G9: ='Finisher Model - ME Metric'!I22 -> 0 | J9: Phases duration, d | K9: =IF('Finisher Model - ME Metric'!$D$11=2,L9,IF('Finisher Model - ME Metric'!$D$11=3,M9,IF('Finisher Model - ME Metric'!$D$11=4,N9,IF('Finisher Model - ME Metric'!$D$11=5,O9,IF('Finisher Model - ME Metric'!$D$11=6,P9,""))))) ->  | L9: =SUM(B16:C16) ->  | M9: =SUM(B16:D16) ->  | N9: =SUM(B16:E16) ->  | O9: =SUM(B16:F16) ->  | P9: =SUM(B16:G16) -> 
A10: Average Starting Wt & End Wt, kg | B10: =AVERAGE(B5:B6) -> 0 | C10: =AVERAGE(C5:C6) -> 0 | D10: 0 | E10: 0 | F10: =AVERAGE(F5:F6) -> 0 | G10: =AVERAGE(G5:G6) -> 0 | J10: Total feed, kg/pig | K10: =IF('Finisher Model - ME Metric'!$D$11=2,L10,IF('Finisher Model - ME Metric'!$D$11=3,M10,IF('Finisher Model - ME Metric'!$D$11=4,N10,IF('Finisher Model - ME Metric'!$D$11=5,O10,IF('Finisher Model - ME Metric'!$D$11=6,P10,""))))) ->  | L10: =SUM(B18:C18) ->  | M10: =SUM(B18:D18) ->  | N10: =SUM(B18:E18) ->  | O10: =SUM(B18:F18) ->  | P10: =SUM(B18:G18) -> 
A11: Calculated Overall ADG with STTD P trial (Vier et al.,2017) | B11: =IFERROR(651.36+531.33*'Finisher Model - ME Metric'!P17-216.9*('Finisher Model - ME Metric'!P17*'Finisher Model - ME Metric'!P17),"") ->  | C11: =IFERROR(651.36+531.33*'Finisher Model - ME Metric'!P18-216.9*('Finisher Model - ME Metric'!P18*'Finisher Model - ME Metric'!P18),"") ->  | D11: =IFERROR(651.36+531.33*'Finisher Model - ME Metric'!P19-216.9*('Finisher Model - ME Metric'!P19*'Finisher Model - ME Metric'!P19),"") ->  | E11: =IFERROR(651.36+531.33*'Finisher Model - ME Metric'!P20-216.9*('Finisher Model - ME Metric'!P20*'Finisher Model - ME Metric'!P20),"") ->  | F11: =IFERROR(651.36+531.33*'Finisher Model - ME Metric'!P21-216.9*('Finisher Model - ME Metric'!P21*'Finisher Model - ME Metric'!P21),"") ->  | G11: =IFERROR(651.36+531.33*'Finisher Model - ME Metric'!P22-216.9*('Finisher Model - ME Metric'!P22*'Finisher Model - ME Metric'!P22),"") ->  | J11: Total feed cost, $/pig | K11: =IF('Finisher Model - ME Metric'!$D$11=2,L11,IF('Finisher Model - ME Metric'!$D$11=3,M11,IF('Finisher Model - ME Metric'!$D$11=4,N11,IF('Finisher Model - ME Metric'!$D$11=5,O11,IF('Finisher Model - ME Metric'!$D$11=6,P11,""))))) ->  | L11: =SUM(B20:C20) ->  | M11: =SUM(B20:D20) ->  | N11: =SUM(B20:E20) ->  | O11: =SUM(B20:F20) ->  | P11: =SUM(B20:G20) -> 
A12: Calculated Overall G:F with STTD P trial (Vier et al.,2017) | B12: =IFERROR(338.34+108.98*'Finisher Model - ME Metric'!P17-46.7864*('Finisher Model - ME Metric'!P17*'Finisher Model - ME Metric'!P17),"") ->  | C12: =IFERROR(338.34+108.98*'Finisher Model - ME Metric'!P18-46.7864*('Finisher Model - ME Metric'!P18*'Finisher Model - ME Metric'!P18),"") ->  | D12: =IFERROR(338.34+108.98*'Finisher Model - ME Metric'!P19-46.7864*('Finisher Model - ME Metric'!P19*'Finisher Model - ME Metric'!P19),"") ->  | E12: =IFERROR(338.34+108.98*'Finisher Model - ME Metric'!P20-46.7864*('Finisher Model - ME Metric'!P20*'Finisher Model - ME Metric'!P20),"") ->  | F12: =IFERROR(338.34+108.98*'Finisher Model - ME Metric'!P21-46.7864*('Finisher Model - ME Metric'!P21*'Finisher Model - ME Metric'!P21),"") ->  | G12: =IFERROR(338.34+108.98*'Finisher Model - ME Metric'!P22-46.7864*('Finisher Model - ME Metric'!P22*'Finisher Model - ME Metric'!P22),"") ->  | J12: Total feed cost & facility cost, $/pig | K12: =IF('Finisher Model - ME Metric'!$D$11=2,L12,IF('Finisher Model - ME Metric'!$D$11=3,M12,IF('Finisher Model - ME Metric'!$D$11=4,N12,IF('Finisher Model - ME Metric'!$D$11=5,O12,IF('Finisher Model - ME Metric'!$D$11=6,P12,""))))) ->  | L12: =SUM(B26:C26) ->  | M12: =SUM(B26:D26) ->  | N12: =SUM(B26:E26) ->  | O12: =SUM(B26:F26) ->  | P12: =SUM(B26:G26) -> 
A13: Predicted Overall ADFI, g/d | B13: =(B11/B12)*1000 ->  | J13: Revenue Live, $/pig | K13: =IF('Finisher Model - ME Metric'!$D$11=2,L13,IF('Finisher Model - ME Metric'!$D$11=3,M13,IF('Finisher Model - ME Metric'!$D$11=4,N13,IF('Finisher Model - ME Metric'!$D$11=5,O13,IF('Finisher Model - ME Metric'!$D$11=6,P13,""))))) ->  | L13: =SUM(B22:C22,'Finisher Model - ME Metric'!B17)*'Finisher Model - ME Metric'!D7 ->  | M13: =SUM(B22:D22,'Finisher Model - ME Metric'!B17)*'Finisher Model - ME Metric'!D7 ->  | N13: =SUM(B22:E22,'Finisher Model - ME Metric'!B17)*'Finisher Model - ME Metric'!D7 ->  | O13: =SUM(B22:F22,'Finisher Model - ME Metric'!B17)*'Finisher Model - ME Metric'!D7 ->  | P13: =SUM(B22:G22,'Finisher Model - ME Metric'!B17)*'Finisher Model - ME Metric'!D7 -> 
A14: Predicted Overall F/G | B14: =B13/B11 ->  | C14: =C13/C11 ->  | J14: Total IOFC Live, $/pig | K14: =IF('Finisher Model - ME Metric'!$D$11=2,L14,IF('Finisher Model - ME Metric'!$D$11=3,M14,IF('Finisher Model - ME Metric'!$D$11=4,N14,IF('Finisher Model - ME Metric'!$D$11=5,O14,IF('Finisher Model - ME Metric'!$D$11=6,P14,""))))) ->  | L14: =L13-L11 ->  | M14: =M13-M11 ->  | N14: =N13-N11 ->  | P14: =P13-P11 -> 
A15: Overall average F/G (weighted average based on phase duration) | B15: =IF('Finisher Model - ME Metric'!D11=2,SUMPRODUCT(B14:C14,B16:C16)/SUM(B16:C16),IF('Finisher Model - ME Metric'!D11=3,SUMPRODUCT(B14:D14,B16:D16)/SUM(B16:D16),IF('Finisher Model - ME Metric'!D11=4,SUMPRODUCT(B14:E14,B16:E16)/SUM(B16:E16),IF('Finisher Model - ME Metric'!D11=5,SUMPRODUCT(B14:F14,B16:F16)/SUM(B16:F16),IF('Finisher Model - ME Metric'!D11=6,SUMPRODUCT(B14:G14,B16:G16)/SUM(B16:G16),""))))) ->  | J15: Total IOFFC Live, $/pig | K15: =IF('Finisher Model - ME Metric'!$D$11=2,L15,IF('Finisher Model - ME Metric'!$D$11=3,M15,IF('Finisher Model - ME Metric'!$D$11=4,N15,IF('Finisher Model - ME Metric'!$D$11=5,O15,IF('Finisher Model - ME Metric'!$D$11=6,P15,""))))) ->  | L15: =L13-L12 ->  | M15: =M13-M12 ->  | N15: =N13-N12 ->  | P15: =P13-P12 -> 
A16: Phase duration, d for Live Basis | B16: =(CONVERT(B7,"kg","g"))/B11 ->  | C16: =(CONVERT(C7,"kg","g"))/C11 ->  | H16: =IF('Finisher Model - ME Metric'!D11=2,SUM(B16:C16),IF('Finisher Model - ME Metric'!D11=3,SUM(B16:D16),IF('Finisher Model - ME Metric'!D11=4,SUM(B16:E16),IF('Finisher Model - ME Metric'!D11=5,SUM(B16:F16),IF('Finisher Model - ME Metric'!D11=6,SUM(B16:G16),""))))) ->  | J16: Carcass
A17: Phase duration, d for Carcass Basis | B17: =(B6-B5)/(B11/1000) ->  | C17: =(IF('Finisher Model - ME Metric'!D11=2,'FW - Projected Performance - ME'!$B$34-'FW - Projected Performance - ME'!C5,'FW - Projected Performance - ME'!C6-'FW - Projected Performance - ME'!C5))/('FW - Projected Performance - ME'!C11/1000) ->  | D17: =(IF('Finisher Model - ME Metric'!$D$11=3,'FW - Projected Performance - ME'!$B$34-'FW - Projected Performance - ME'!D5,'FW - Projected Performance - ME'!D6-'FW - Projected Performance - ME'!D5))/('FW - Projected Performance - ME'!D11/1000) ->  | E17: =(IF('Finisher Model - ME Metric'!$D$11=4,'FW - Projected Performance - ME'!$B$34-'FW - Projected Performance - ME'!E5,'FW - Projected Performance - ME'!E6-'FW - Projected Performance - ME'!E5))/('FW - Projected Performance - ME'!E11/1000) ->  | F17: =(IF('Finisher Model - ME Metric'!$D$11=5,'FW - Projected Performance - ME'!$B$34-'FW - Projected Performance - ME'!F5,'FW - Projected Performance - ME'!F6-'FW - Projected Performance - ME'!F5))/('FW - Projected Performance - ME'!F11/1000) ->  | G17: =(IF('Finisher Model - ME Metric'!$D$11=6,'FW - Projected Performance - ME'!$B$34-'FW - Projected Performance - ME'!G5,'FW - Projected Performance - ME'!G6-'FW - Projected Performance - ME'!G5))/('FW - Projected Performance - ME'!G11/1000) ->  | H17: =IF('Finisher Model - ME Metric'!D11=2,SUM(B17:C17),IF('Finisher Model - ME Metric'!D11=3,SUM(B17:D17),IF('Finisher Model - ME Metric'!D11=4,SUM(B17:E17),IF('Finisher Model - ME Metric'!D11=5,SUM(B17:F17),IF('Finisher Model - ME Metric'!D11=6,SUM(B17:G17),""))))) ->  | J17: Predicted ADG, kg | K17: =IF('Finisher Model - ME Metric'!$D$11=2,L17,IF('Finisher Model - ME Metric'!$D$11=3,M17,IF('Finisher Model - ME Metric'!$D$11=4,N17,IF('Finisher Model - ME Metric'!$D$11=5,O17,IF('Finisher Model - ME Metric'!$D$11=6,P17,""))))) ->  | L17: =((SUM($B$23:$C$23)/SUM(B17:C17))) ->  | M17: =((SUM($B$23:$D$23)/SUM(B17:D17))) ->  | N17: =((SUM($B$23:$E$23)/SUM(B17:E17))) ->  | O17: =((SUM($B$23:$F$23)/SUM(B17:F17))) ->  | P17: =((SUM($B$23:$G$23)/SUM(B17:G17))) -> 
A18: Feed budget by phase, kg/pig for Live Basis | B18: =CONVERT(D51,"lbm","kg") ->  | C18: =CONVERT(D52,"lbm","kg") ->  | D18: =CONVERT(D53,"lbm","kg") ->  | E18: =CONVERT(D54,"lbm","kg") ->  | F18: =CONVERT(D55,"lbm","kg") ->  | G18: =CONVERT(D56,"lbm","kg") ->  | J18: Predicted F/G | K18: =IF('Finisher Model - ME Metric'!$D$11=2,L18,IF('Finisher Model - ME Metric'!$D$11=3,M18,IF('Finisher Model - ME Metric'!$D$11=4,N18,IF('Finisher Model - ME Metric'!$D$11=5,O18,IF('Finisher Model - ME Metric'!$D$11=6,P18,""))))) ->  | L18: =SUM($B$19:$C$19)/SUM($B$23:$C$23) ->  | M18: =SUM($B$19:$D$19)/SUM($B$23:$D$23) ->  | N18: =SUM($B$19:$E$19)/SUM($B$23:$E$23) ->  | O18: =SUM($B$19:$F$19)/SUM($B$23:$F$23) ->  | P18: =SUM($B$19:$G$19)/SUM($B$23:$G$23) -> 
A19: Feed budget by phase, kg/pig for Carcass Basis | B19: =CONVERT(I51,"lbm","kg") ->  | C19: =CONVERT(I52,"lbm","kg") ->  | D19: =CONVERT(I53,"lbm","kg") ->  | E19: =CONVERT(I54,"lbm","kg") ->  | F19: =CONVERT(I55,"lbm","kg") ->  | G19: =CONVERT(I56,"lbm","kg") ->  | J19: Predicted ADFI, kg | K19: =IF('Finisher Model - ME Metric'!$D$11=2,L19,IF('Finisher Model - ME Metric'!$D$11=3,M19,IF('Finisher Model - ME Metric'!$D$11=4,N19,IF('Finisher Model - ME Metric'!$D$11=5,O19,IF('Finisher Model - ME Metric'!$D$11=6,P19,""))))) ->  | L19: =SUM(B19:C19)/SUM(B17:C17) ->  | M19: =SUM(B19:D19)/SUM(B17:D17) ->  | N19: =SUM(B19:E19)/SUM(B17:E17) ->  | O19: =SUM(B19:F19)/SUM(B17:F17) ->  | P19: =SUM(B19:G19)/SUM(B17:G17) -> 
A20: Total feed cost per phase, $/pig for Live Basis | B20: =(B18*(B9/907)) ->  | J20: Phases duration, d | K20: =IF('Finisher Model - ME Metric'!$D$11=2,L20,IF('Finisher Model - ME Metric'!$D$11=3,M20,IF('Finisher Model - ME Metric'!$D$11=4,N20,IF('Finisher Model - ME Metric'!$D$11=5,O20,IF('Finisher Model - ME Metric'!$D$11=6,P20,""))))) ->  | L20: =SUM(B17:C17) ->  | M20: =SUM(B17:D17) ->  | N20: =SUM(B17:E17) ->  | O20: =SUM(B17:F17) ->  | P20: =SUM(B17:G17) -> 
A21: Total feed cost per phase, $/pig for Carcass Basis | B21: =(B19*(B9/907)) ->  | C21: =(C19*(C9/907)) ->  | J21: Total feed, kg/pig | K21: =IF('Finisher Model - ME Metric'!$D$11=2,L21,IF('Finisher Model - ME Metric'!$D$11=3,M21,IF('Finisher Model - ME Metric'!$D$11=4,N21,IF('Finisher Model - ME Metric'!$D$11=5,O21,IF('Finisher Model - ME Metric'!$D$11=6,P21,""))))) ->  | L21: =SUM(B19:C19) ->  | M21: =SUM(B19:D19) ->  | N21: =SUM(B19:E19) ->  | O21: =SUM(B19:F19) ->  | P21: =SUM(B19:G19) -> 
A22: Gain, kg for Live Basis | B22: =B11/1000*B16 ->  | H22: =IF('Finisher Model - ME Metric'!D11=2,SUM(B22:C22)+'Finisher Model - ME Metric'!B17,IF('Finisher Model - ME Metric'!D11=3,SUM(B22:D22)+'Finisher Model - ME Metric'!B17,IF('Finisher Model - ME Metric'!D11=4,SUM(B22:E22)+'Finisher Model - ME Metric'!B17,IF('Finisher Model - ME Metric'!D11=5,SUM(B22:F22)+'Finisher Model - ME Metric'!B17,IF('Finisher Model - ME Metric'!D11=6, SUM(B22:G22)+'Finisher Model - ME Metric'!B17,""))))) ->  | J22: Total feed cost, $/pig | K22: =IF('Finisher Model - ME Metric'!$D$11=2,L22,IF('Finisher Model - ME Metric'!$D$11=3,M22,IF('Finisher Model - ME Metric'!$D$11=4,N22,IF('Finisher Model - ME Metric'!$D$11=5,O22,IF('Finisher Model - ME Metric'!$D$11=6,P22,""))))) ->  | L22: =SUM(B21:C21) ->  | M22: =SUM(B21:D21) ->  | N22: =SUM(B21:E21) ->  | O22: =SUM(B21:F21) ->  | P22: =SUM(B21:G21) -> 
A23: Gain, kg for Carcass Basis | B23: =B11/1000*B17 ->  | C23: =C11/1000*C17 ->  | H23: =IF('Finisher Model - ME Metric'!D11=2,SUM(B23:C23)+'Finisher Model - ME Metric'!B17,IF('Finisher Model - ME Metric'!D11=3,SUM(B23:D23)+'Finisher Model - ME Metric'!B17,IF('Finisher Model - ME Metric'!D11=4,SUM(B23:E23)+'Finisher Model - ME Metric'!B17,IF('Finisher Model - ME Metric'!D11=5,SUM(B23:F23)+'Finisher Model - ME Metric'!B17,IF('Finisher Model - ME Metric'!D11=6, SUM(B23:G23)+'Finisher Model - ME Metric'!B17,""))))) ->  | J23: Total feed cost & facility cost, $/pig | K23: =IF('Finisher Model - ME Metric'!$D$11=2,L23,IF('Finisher Model - ME Metric'!$D$11=3,M23,IF('Finisher Model - ME Metric'!$D$11=4,N23,IF('Finisher Model - ME Metric'!$D$11=5,O23,IF('Finisher Model - ME Metric'!$D$11=6,P23,""))))) ->  | L23: =SUM(B27:C27) ->  | M23: =SUM(B27:D27) ->  | N23: =SUM(B27:E27) ->  | O23: =SUM(B27:F27) ->  | P23: =SUM(B27:G27) -> 
A24: Feed cost per/kg of gain, $/pig for Live Basis | B24: =B20/((B11/1000)*B16) ->  | J24: Revenue Carcass, $/pig | K24: =IF('Finisher Model - ME Metric'!$D$11=2,L24,IF('Finisher Model - ME Metric'!$D$11=3,M24,IF('Finisher Model - ME Metric'!$D$11=4,N24,IF('Finisher Model - ME Metric'!$D$11=5,O24,IF('Finisher Model - ME Metric'!$D$11=6,P24,""))))) ->  | L24: =$B$33*'Finisher Model - ME Metric'!$D$8 ->  | M24: =$B$33*'Finisher Model - ME Metric'!$D$8 ->  | N24: =$B$33*'Finisher Model - ME Metric'!$D$8 ->  | O24: =$B$33*'Finisher Model - ME Metric'!$D$8 ->  | P24: =$B$33*'Finisher Model - ME Metric'!$D$8 -> 
A25: Feed cost per/kg of gain, $/pig for Carcass Basis | B25: =B21/((B11/1000)*B17) ->  | C25: =C21/((C11/1000)*C17) ->  | J25: Total IOFC Carcass, $/pig | K25: =IF('Finisher Model - ME Metric'!$D$11=2,L25,IF('Finisher Model - ME Metric'!$D$11=3,M25,IF('Finisher Model - ME Metric'!$D$11=4,N25,IF('Finisher Model - ME Metric'!$D$11=5,O25,IF('Finisher Model - ME Metric'!$D$11=6,P25,""))))) ->  | L25: =L24-L22 ->  | M25: =M24-M22 -> 
A26: Feed and facility cost, $/pig for Live Basis | B26: =B20+(B16*'Finisher Model - ME Metric'!$D$10) ->  | C26: =C20+(C16*'Finisher Model - ME Metric'!$D$10) ->  | D26: =D20+(D16*'Finisher Model - ME Metric'!$D$10) ->  | E26: =E20+(E16*'Finisher Model - ME Metric'!$D$10) ->  | F26: =F20+(F16*'Finisher Model - ME Metric'!$D$10) ->  | G26: =G20+(G16*'Finisher Model - ME Metric'!$D$10) ->  | J26: Total IOFFC Carcass, $/pig | K26: =IF('Finisher Model - ME Metric'!$D$11=2,L26,IF('Finisher Model - ME Metric'!$D$11=3,M26,IF('Finisher Model - ME Metric'!$D$11=4,N26,IF('Finisher Model - ME Metric'!$D$11=5,O26,IF('Finisher Model - ME Metric'!$D$11=6,P26,""))))) ->  | L26: =L24-L23 ->  | M26: =M24-M23 -> 
A27: Feed and facility cost, $/pig for Carcass Basis | B27: =B21+(B17*'Finisher Model - ME Metric'!$D$10) ->  | C27: =C21+(C17*'Finisher Model - ME Metric'!$D$10) ->  | D27: =D21+(D17*'Finisher Model - ME Metric'!$D$10) ->  | E27: =E21+(E17*'Finisher Model - ME Metric'!$D$10) ->  | F27: =F21+(F17*'Finisher Model - ME Metric'!$D$10) ->  | G27: =G21+(G17*'Finisher Model - ME Metric'!$D$10) -> 
A28: Revenue per pig by phase, $/pig for Live Basis | B28: =B22*'Finisher Model - ME Metric'!$D$7 ->  | C28: =C22*'Finisher Model - ME Metric'!$D$7 ->  | D28: =D22*'Finisher Model - ME Metric'!$D$7 ->  | E28: =E22*'Finisher Model - ME Metric'!$D$7 ->  | F28: =F22*'Finisher Model - ME Metric'!$D$7 ->  | G28: =G22*'Finisher Model - ME Metric'!$D$7 -> 
A29: IOFC by phase, $/pig | B29: =B28-B20 -> 
A30: IOFFC by phase, $/pig | B30: =B28-B26 -> 
A31: STTD P | B31: ='Finisher Model - ME Metric'!R17 ->  | C31: ='Finisher Model - ME Metric'!R18 ->  | D31: ='Finisher Model - ME Metric'!R19 ->  | E31: ='Finisher Model - ME Metric'!R20 ->  | F31: ='Finisher Model - ME Metric'!R21 ->  | G31: ='Finisher Model - ME Metric'!R22 -> 
A32: Weighted average of STTD P | B32: =SUMPRODUCT(B31,B18)/SUM(B18) ->  | C32: =SUMPRODUCT(B31:C31,B18:C18)/SUM(B18:C18) ->  | D32: =SUMPRODUCT(B31:D31,B18:D18)/SUM(B18:D18) ->  | E32: =SUMPRODUCT(B31:E31,B18:E18)/SUM(B18:E18) ->  | F32: =SUMPRODUCT(B31:F31,B18:F18)/SUM(B18:F18) ->  | G32: =SUMPRODUCT(B31:G31,B18:G18)/SUM(B18:G18) -> 
A33: Calculated overall HCW for CURRENT performance | B33: ='Current Performance - ME'!B28 -> 
A34: Predicted final BW, lb for Fixed Weight to achieve the same Current Carcass Wt | B34: =B33/(B43/100) -> 
A35: Calculated Overall HCW,lb based on final BW and corrected yield | B35: =$H$22*$B$43/100 -> 
A36: Yield based on final BW and PIC equation | B36: =(VLOOKUP($H$22,$C$81:$I$120,7,TRUE))*100 -> 
A37: User yield | B37: ='Finisher Model - ME Metric'!D9 -> 0
A38: User/PIC ratio | B38: =B37/B36 ->  | J38: Yield equation
A39: Current STTD P as % of NRC | B39: ='Finisher Model - ME Metric'!P17 ->  | C39: ='Finisher Model - ME Metric'!P18 ->  | D39: ='Finisher Model - ME Metric'!P19 ->  | E39: ='Finisher Model - ME Metric'!P20 ->  | F39: ='Finisher Model - ME Metric'!P21 ->  | G39: ='Finisher Model - ME Metric'!P22 ->  | H39: =IF('Finisher Model - ME Metric'!D11=2,SUMPRODUCT(B39:C39,B16:C16)/SUM(B16:C16),IF('Finisher Model - ME Metric'!D11=3,SUMPRODUCT(B39:D39,B16:D16)/SUM(B16:D16),IF('Finisher Model - ME Metric'!D11=4,SUMPRODUCT(B39:E39,B16:E16)/SUM(B16:E16),IF('Finisher Model - ME Metric'!D11=5,SUMPRODUCT(B39:F39,B16:F16)/SUM(B16:F16),IF('Finisher Model - ME Metric'!D11=6,SUMPRODUCT(B39:G39,B16:G16)/SUM(B16:G16),""))))) ->  | J39: 73.859 - 1.19192 x STTD P % of NRC
A40: Predicted yield based on biological STTD P level | B40: =73.859-1.19192*H39 -> 
A41: Yield at 100% of NRC | B41: =73.859-1.19192*1 -> 72.66708
A42: Yield correction factor based on STTD P level | B42: =B40/B41 -> 
A43: Corrected current yield | B43: =(VLOOKUP($H$22,$C$81:$K$120,9,TRUE)) -> 
B45: Mixed Sex Feed Budget - Live Basis | G45: Mixed Sex Feed Budget - Carcass Basis
B46: Closeout Feed Efficiency | G46: Closeout Feed Efficiency
B47: Initial Wt | C47: Final Wt | D47: F/G | G47: Initial Wt | H47: Final Wt | I47: F/G
B48: =CONVERT('Finisher Model - ME Metric'!B17,"kg","lbm") -> 0 | C48: =CONVERT(IF('Finisher Model - ME Metric'!$D$11=2,'Finisher Model - ME Metric'!C18,IF('Finisher Model - ME Metric'!$D$11=3,'Finisher Model - ME Metric'!C19,IF('Finisher Model - ME Metric'!$D$11=4,'Finisher Model - ME Metric'!C20,IF('Finisher Model - ME Metric'!$D$11=5,'Finisher Model - ME Metric'!C21,IF('Finisher Model - ME Metric'!$D$11=6,'Finisher Model - ME Metric'!C22,""))))),"kg","lbm") ->  | D48: =B15 ->  | G48: =CONVERT('Finisher Model - ME Metric'!B17,"kg","lbm") -> 0 | H48: =CONVERT(IF('Finisher Model - ME Metric'!$D$11=2,'Finisher Model - ME Metric'!C18,IF('Finisher Model - ME Metric'!$D$11=3,'Finisher Model - ME Metric'!C19,IF('Finisher Model - ME Metric'!$D$11=4,'Finisher Model - ME Metric'!C20,IF('Finisher Model - ME Metric'!$D$11=5,'Finisher Model - ME Metric'!C21,IF('Finisher Model - ME Metric'!$D$11=6,'Finisher Model - ME Metric'!C22,""))))),"kg","lbm") ->  | I48: =B15 -> 
B50: Initial Wt | C50: Final Wt | D50: lb/pig | E50: =IF(B51=0,F50,((0.00463*B51^2 + 1.68*B51 - 22.05)/(((0.00463*C48^2 + 1.68*C48 - 22.05)-(0.00463*B48^2 + 1.68*B48 - 22.05))/(C48-B48))*D48)) -> 0 | G50: Initial Wt | H50: Final Wt | I50: lb/pig | J50: =IF(G51=0,K50,((0.00463*G51^2 + 1.68*G51 - 22.05)/(((0.00463*H48^2 + 1.68*H48 - 22.05)-(0.00463*G48^2 + 1.68*G48 - 22.05))/(H48-G48))*I48)) -> 0
A51: 1 | B51: =CONVERT('Finisher Model - ME Metric'!B17,"kg","lbm") -> 0 | C51: =CONVERT('Finisher Model - ME Metric'!C17,"kg","lbm") -> 0 | D51: =IF(C51="","",(E51-E50)) ->  | E51: =IF(B52="","",((0.00463*B52^2 + 1.68*B52 - 22.05)/(((0.00463*$C$48^2 + 1.68*$C$48 - 22.05)-(0.00463*$B$48^2 + 1.68*$B$48 - 22.05))/($C$48-$B$48))*$D$48)) ->  | G51: =CONVERT('Finisher Model - ME Metric'!B17,"kg","lbm") -> 0 | H51: =CONVERT('Finisher Model - ME Metric'!C17,"kg","lbm") -> 0 | I51: =IF(H51="","",(J51-J50)) ->  | J51: =IF(G52="","",((0.00463*G52^2 + 1.68*G52 - 22.05)/(((0.00463*$C$48^2 + 1.68*$C$48 - 22.05)-(0.00463*$B$48^2 + 1.68*$B$48 - 22.05))/($C$48-$B$48))*$D$48)) -> 
A52: 2 | B52: =C51 -> 0 | C52: =CONVERT('Finisher Model - ME Metric'!C18,"kg","lbm") -> 0 | D52: =IF(C52="","",(E52-E51)) ->  | G52: =H51 -> 0 | H52: =CONVERT(IF(AND('Finisher Model - ME Metric'!$D$11=2,'Finisher Model - ME Metric'!$D$6="Carcass"),'FW - Projected Performance - ME'!$B$34,'Finisher Model - ME Metric'!C18),"kg","lbm") -> 0 | I52: =IF(H52="","",(J52-J51)) -> 
A53: 3 | B53: 0 | C53: =CONVERT('Finisher Model - ME Metric'!C19,"kg","lbm") -> 0 | G53: 0 | H53: =CONVERT(IF(AND('Finisher Model - ME Metric'!$D$11=3,'Finisher Model - ME Metric'!$D$6="Carcass"),'FW - Projected Performance - ME'!$B$34,'Finisher Model - ME Metric'!C19),"kg","lbm") -> 0
A54: 4 | B54: 0 | C54: =CONVERT('Finisher Model - ME Metric'!C20,"kg","lbm") -> 0 | G54: 0 | H54: =CONVERT(IF(AND('Finisher Model - ME Metric'!$D$11=4,'Finisher Model - ME Metric'!$D$6="Carcass"),'FW - Projected Performance - ME'!$B$34,'Finisher Model - ME Metric'!C20),"kg","lbm") -> 0
A55: 5 | B55: 0 | C55: =CONVERT('Finisher Model - ME Metric'!C21,"kg","lbm") -> 0 | G55: 0 | H55: =CONVERT(IF(AND('Finisher Model - ME Metric'!$D$11=5,'Finisher Model - ME Metric'!$D$6="Carcass"),'FW - Projected Performance - ME'!$B$34,'Finisher Model - ME Metric'!C21),"kg","lbm") -> 0
A56: 6 | B56: 0 | C56: =CONVERT('Finisher Model - ME Metric'!C22,"kg","lbm") -> 0 | D56: =IF(C56="","",(E56-E55)) ->  | G56: 0 | H56: =CONVERT(IF(AND('Finisher Model - ME Metric'!$D$11=6,'Finisher Model - ME Metric'!$D$6="Carcass"),'FW - Projected Performance - ME'!$B$34,'Finisher Model - ME Metric'!C22),"kg","lbm") -> 0 | I56: =IF(H56="","",(J56-J55)) -> 
B57: 0 | G57: 0
B79: Hot Carcass Wheight | C79: Market weight (est. by Carcass yield) | D79: Back Fat for PIC 337 | I79: Carcass Yield (%) = 66.411 + ( Carcass weight, kg x 0.0878)
B80: kg | C80: kg | D80: Barrows | E80: Gilts | F80: Average | J80: User/PIC Adjusted Yield | K80: User/PIC Asjusted and STTD P adjusted
B81: 81 | C81: 110.1767062 | D81: 16.86478205 | E81: 14.51072874 | F81: 15.6877554 | I81: 0.7351826241 | J81: =(I81*$B$38)*100 ->  | K81: =J81*$B$42 -> 
B82: 82 | C82: 111.403952 | D82: 17.07445571 | E82: 14.61370144 | F82: 15.84407857 | I82: 0.7360600639
B83: 83 | C83: 112.6282752 | D83: 17.28414727 | E83: 14.71614343 | F83: 16.00014535 | I83: 0.7369375037
B84: 84 | C84: 113.8496865 | D84: 17.49385651 | E84: 14.81806378 | F84: 16.15596015 | I84: 0.7378149435
B85: 85 | C85: 115.0681961 | D85: 17.70358323 | E85: 14.91947133 | F85: 16.31152728 | I85: 0.7386923833
B86: 86 | C86: 116.2838143 | D86: 17.91332723 | E86: 15.02037463 | F86: 16.46685093 | I86: 0.7395698231
B87: 87 | C87: 117.4965516 | D87: 18.1230883 | E87: 15.12078202 | F87: 16.62193516 | I87: 0.7404472629
B88: 88 | C88: 118.706418 | D88: 18.33286624 | E88: 15.22070158 | F88: 16.77678391 | I88: 0.7413247027
B89: 89 | C89: 119.9134237 | D89: 18.54266088 | E89: 15.3201412 | F89: 16.93140104 | I89: 0.7422021425
B90: 90 | C90: 121.117579 | D90: 18.75247201 | E90: 15.41910854 | F90: 17.08579027 | I90: 0.7430795823
B91: 91 | C91: 122.3188938 | D91: 18.96229947 | E91: 15.51761104 | F91: 17.23995525 | I91: 0.7439570221
B92: 92 | C92: 123.5173783 | D92: 19.17214306 | E92: 15.61565596 | F92: 17.39389951 | I92: 0.7448344619
B93: 93 | C93: 124.7130424 | D93: 19.38200263 | E93: 15.71325037 | F93: 17.5476265 | I93: 0.7457119017
B94: 94 | C94: 125.905896 | D94: 19.59187799 | E94: 15.81040115 | F94: 17.70113957 | I94: 0.7465893415
B95: 95 | C95: 127.0959491 | D95: 19.80176898 | E95: 15.90711501 | F95: 17.85444199 | I95: 0.7474667813
B96: 96 | C96: 128.2832115 | D96: 20.01167544 | E96: 16.00339847 | F96: 18.00753695 | I96: 0.7483442211
B97: 97 | C97: 129.467693 | D97: 20.2215972 | E97: 16.09925791 | F97: 18.16042755 | I97: 0.7492216609
B98: 98 | C98: 130.6494034 | D98: 20.43153412 | E98: 16.19469953 | F98: 18.31311682 | I98: 0.7500991007
B99: 99 | C99: 131.8283524 | D99: 20.64148603 | E99: 16.2897294 | F99: 18.46560771 | I99: 0.7509765405
B100: 100 | C100: 133.0045496 | D100: 20.85145278 | E100: 16.38435342 | F100: 18.6179031 | I100: 0.7518539803
B101: 101 | C101: 134.1780047 | D101: 21.06143424 | E101: 16.47857735 | F101: 18.7700058 | I101: 0.7527314202
B102: 102 | C102: 135.3487272 | D102: 21.27143025 | E102: 16.57240684 | F102: 18.92191854 | I102: 0.75360886
B103: 103 | C103: 136.5167267 | D103: 21.48144067 | E103: 16.66584736 | F103: 19.07364401 | I103: 0.7544862998
B104: 104 | C104: 137.6820127 | D104: 21.69146536 | E104: 16.75890429 | F104: 19.22518482 | I104: 0.7553637396
B105: 105 | C105: 138.8445946 | D105: 21.90150419 | E105: 16.85158287 | F105: 19.37654353 | I105: 0.7562411794
B106: 106 | C106: 140.0044819 | D106: 22.11155702 | E106: 16.94388821 | F106: 19.52772262 | I106: 0.7571186192
B107: 107 | C107: 141.1616838 | D107: 22.32162373 | E107: 17.03582532 | F107: 19.67872453 | I107: 0.757996059
B108: 108 | C108: 142.3162097 | D108: 22.53170418 | E108: 17.1273991 | F108: 19.82955164 | I108: 0.7588734988
B109: 109 | C109: 143.4680689 | D109: 22.74179825 | E109: 17.21861431 | F109: 19.98020628 | I109: 0.7597509386
B110: 110 | C110: 144.6172706 | D110: 22.95190581 | E110: 17.30947563 | F110: 20.13069072 | I110: 0.7606283784
B111: 111 | C111: 145.7638239 | D111: 23.16202674 | E111: 17.39998765 | F111: 20.28100719 | I111: 0.7615058182
B112: 112 | C112: 146.9077381 | D112: 23.37216092 | E112: 17.49015482 | F112: 20.43115787 | I112: 0.762383258
B113: 113 | C113: 148.0490222 | D113: 23.58230823 | E113: 17.57998152 | F113: 20.58114488 | I113: 0.7632606978
B114: 114 | C114: 149.1876853 | D114: 23.79246857 | E114: 17.66947204 | F114: 20.7309703 | I114: 0.7641381376
B115: 115 | C115: 150.3237364 | D115: 24.00264181 | E115: 17.75863057 | F115: 20.88063619 | I115: 0.7650155774
B116: 116 | C116: 151.4571845 | D116: 24.21282784 | E116: 17.8474612 | F116: 21.03014452 | I116: 0.7658930172
B117: 117 | C117: 152.5880385 | D117: 24.42302656 | E117: 17.93596796 | F117: 21.17949726 | I117: 0.766770457
B118: 118 | C118: 153.7163073 | D118: 24.63323785 | E118: 18.02415478 | F118: 21.32869631 | I118: 0.7676478968
B119: 119 | C119: 154.8419998 | D119: 24.84346162 | E119: 18.11202551 | F119: 21.47774356 | I119: 0.7685253366
B120: 120 | C120: 155.9651247 | D120: 25.05369775 | E120: 18.19958393 | F120: 21.62664084 | I120: 0.7694027764

Sheet FT - Projected Performance - ME (hidden)
A1: Economic model for optimum phosphorus level - Model Calculations by phase
A2: Item | B2: Dietary phase | J2: Summary of Calculations with Current Phosphorus Levels
B4: 1 | C4: 2 | D4: 3 | E4: 4 | F4: 5 | G4: 6 | J4: Item | K4: Output | L4: 2 | M4: 3 | N4: 4 | O4: 5 | P4: 6
A5: Starting weight, kg | B5: ='Finisher Model - ME Metric'!B17 -> 0 | C5: ='Finisher Model - ME Metric'!B18 -> 0 | D5: ='Finisher Model - ME Metric'!B19 -> 0 | E5: ='Finisher Model - ME Metric'!B20 -> 0 | F5: ='Finisher Model - ME Metric'!B21 -> 0 | G5: ='Finisher Model - ME Metric'!B22 -> 0 | J5: Predicted ADG, kg | K5: =IF('Finisher Model - ME Metric'!$D$11=2,L5,IF('Finisher Model - ME Metric'!$D$11=3,M5,IF('Finisher Model - ME Metric'!$D$11=4,N5,IF('Finisher Model - ME Metric'!$D$11=5,O5,IF('Finisher Model - ME Metric'!$D$11=6,P5,""))))) ->  | L5: =((SUM(B19:C19)/SUM(B16:C16))) ->  | M5: =((SUM(B19:D19)/SUM(B16:D16))) ->  | N5: =SUM(B19:E19)/SUM(B16:E16) ->  | O5: =SUM(B19:F19)/SUM(B16:F16) ->  | P5: =SUM(B19:G19)/SUM(B16:G16) -> 
A6: Final weight, kg | B6: ='Finisher Model - ME Metric'!C17 -> 0 | C6: ='Finisher Model - ME Metric'!C18 -> 0 | D6: ='Finisher Model - ME Metric'!C19 -> 0 | E6: ='Finisher Model - ME Metric'!C20 -> 0 | F6: ='Finisher Model - ME Metric'!C21 -> 0 | G6: ='Finisher Model - ME Metric'!C22 -> 0 | J6: Predicted F/G | K6: =IF('Finisher Model - ME Metric'!$D$11=2,L6,IF('Finisher Model - ME Metric'!$D$11=3,M6,IF('Finisher Model - ME Metric'!$D$11=4,N6,IF('Finisher Model - ME Metric'!$D$11=5,O6,IF('Finisher Model - ME Metric'!$D$11=6,P6,""))))) ->  | L6: =SUM($B$17:$C$17)/SUM($B$19:$C$19) ->  | M6: =SUM($B$17:$D$17)/SUM($B$19:$D$19) ->  | N6: =SUM($B$17:$E$17)/SUM($B$19:$E$19) ->  | O6: =SUM($B$17:$F$17)/SUM($B$19:$F$19) ->  | P6: =SUM($B$17:$G$17)/SUM($B$19:$G$19) -> 
A7: Total gain, kg | B7: =B6-B5 -> 0 | C7: =C6-C5 -> 0 | D7: 0 | E7: 0 | F7: =F6-F5 -> 0 | G7: =G6-G5 -> 0 | J7: Predicted ADFI, kg | K7: =IF('Finisher Model - ME Metric'!$D$11=2,L7,IF('Finisher Model - ME Metric'!$D$11=3,M7,IF('Finisher Model - ME Metric'!$D$11=4,N7,IF('Finisher Model - ME Metric'!$D$11=5,O7,IF('Finisher Model - ME Metric'!$D$11=6,P7,""))))) ->  | L7: =SUM(B17:C17)/SUM(B16:C16) ->  | M7: =SUM(B17:D17)/SUM(B16:D16) ->  | N7: =SUM(B17:E17)/SUM(B16:E16) ->  | O7: =SUM(B17:F17)/SUM(B16:F16) ->  | P7: =SUM(B17:G17)/SUM(B16:G16) -> 
A8: Current NE, kcal/kg | B8: ='Finisher Model - ME Metric'!D17 -> 0 | C8: ='Finisher Model - ME Metric'!D18 -> 0 | D8: ='Finisher Model - ME Metric'!D19 -> 0 | E8: ='Finisher Model - ME Metric'!D20 -> 0 | F8: ='Finisher Model - ME Metric'!D21 -> 0 | G8: ='Finisher Model - ME Metric'!D22 -> 0 | J8: Phases duration, d | K8: =IF('Finisher Model - ME Metric'!$D$11=2,L8,IF('Finisher Model - ME Metric'!$D$11=3,M8,IF('Finisher Model - ME Metric'!$D$11=4,N8,IF('Finisher Model - ME Metric'!$D$11=5,O8,IF('Finisher Model - ME Metric'!$D$11=6,P8,""))))) ->  | L8: =SUM(B16:C16) ->  | M8: =SUM(B16:D16) ->  | N8: =SUM(B16:E16) ->  | O8: =SUM(B16:F16) ->  | P8: =SUM(B16:G16) -> 
A9: Current Diet Cost, $/Ton | B9: ='Finisher Model - ME Metric'!I17 -> 0 | C9: ='Finisher Model - ME Metric'!I18 -> 0 | D9: ='Finisher Model - ME Metric'!I19 -> 0 | E9: ='Finisher Model - ME Metric'!I20 -> 0 | F9: ='Finisher Model - ME Metric'!I21 -> 0 | G9: ='Finisher Model - ME Metric'!I22 -> 0 | J9: Total feed, kg/pig | K9: =IF('Finisher Model - ME Metric'!$D$11=2,L9,IF('Finisher Model - ME Metric'!$D$11=3,M9,IF('Finisher Model - ME Metric'!$D$11=4,N9,IF('Finisher Model - ME Metric'!$D$11=5,O9,IF('Finisher Model - ME Metric'!$D$11=6,P9,""))))) ->  | L9: =SUM(B17:C17) ->  | M9: =SUM(B17:D17) ->  | N9: =SUM(B17:E17) ->  | O9: =SUM(B17:F17) ->  | P9: =SUM(B17:G17) -> 
A10: Average Starting Wt & End Wt, kg | B10: =AVERAGE(B5:B6) -> 0 | C10: =AVERAGE(C5:C6) -> 0 | D10: 0 | E10: 0 | F10: 0 | G10: =AVERAGE(G5:G6) -> 0 | J10: Total feed cost, $/pig | K10: =IF('Finisher Model - ME Metric'!$D$11=2,L10,IF('Finisher Model - ME Metric'!$D$11=3,M10,IF('Finisher Model - ME Metric'!$D$11=4,N10,IF('Finisher Model - ME Metric'!$D$11=5,O10,IF('Finisher Model - ME Metric'!$D$11=6,P10,""))))) ->  | L10: =SUM(B18:C18) ->  | M10: =SUM(B18:D18) ->  | N10: =SUM(B18:E18) ->  | O10: =SUM(B18:F18) ->  | P10: =SUM(B18:G18) -> 
A11: Calculated Overall ADG with STTD P trial (Vier et al.,2017) | B11: =IFERROR(651.36+531.33*'Finisher Model - ME Metric'!P17-216.9*('Finisher Model - ME Metric'!P17*'Finisher Model - ME Metric'!P17),"") ->  | C11: =IFERROR(651.36+531.33*'Finisher Model - ME Metric'!P18-216.9*('Finisher Model - ME Metric'!P18*'Finisher Model - ME Metric'!P18),"") ->  | D11: =IFERROR(651.36+531.33*'Finisher Model - ME Metric'!P19-216.9*('Finisher Model - ME Metric'!P19*'Finisher Model - ME Metric'!P19),"") ->  | E11: =IFERROR(651.36+531.33*'Finisher Model - ME Metric'!P20-216.9*('Finisher Model - ME Metric'!P20*'Finisher Model - ME Metric'!P20),"") ->  | F11: =IFERROR(651.36+531.33*'Finisher Model - ME Metric'!P21-216.9*('Finisher Model - ME Metric'!P21*'Finisher Model - ME Metric'!P21),"") ->  | G11: =IFERROR(651.36+531.33*'Finisher Model - ME Metric'!P22-216.9*('Finisher Model - ME Metric'!P22*'Finisher Model - ME Metric'!P22),"") ->  | J11: Total feed cost & facility cost, $/pig | K11: =IF('Finisher Model - ME Metric'!$D$11=2,L11,IF('Finisher Model - ME Metric'!$D$11=3,M11,IF('Finisher Model - ME Metric'!$D$11=4,N11,IF('Finisher Model - ME Metric'!$D$11=5,O11,IF('Finisher Model - ME Metric'!$D$11=6,P11,""))))) ->  | L11: =SUM(B21:C21) ->  | M11: =SUM(B21:D21) ->  | N11: =SUM(B21:E21) ->  | O11: =SUM(B21:F21) ->  | P11: =SUM(B21:G21) -> 
A12: Calculated Overall G:F with STTD P trial (Vier et al.,2017) | B12: =IFERROR(338.34+108.98*'Finisher Model - ME Metric'!P17-46.7864*('Finisher Model - ME Metric'!P17*'Finisher Model - ME Metric'!P17),"") ->  | C12: =IFERROR(338.34+108.98*'Finisher Model - ME Metric'!P18-46.7864*('Finisher Model - ME Metric'!P18*'Finisher Model - ME Metric'!P18),"") ->  | D12: =IFERROR(338.34+108.98*'Finisher Model - ME Metric'!P19-46.7864*('Finisher Model - ME Metric'!P19*'Finisher Model - ME Metric'!P19),"") ->  | E12: =IFERROR(338.34+108.98*'Finisher Model - ME Metric'!P20-46.7864*('Finisher Model - ME Metric'!P20*'Finisher Model - ME Metric'!P20),"") ->  | F12: =IFERROR(338.34+108.98*'Finisher Model - ME Metric'!P21-46.7864*('Finisher Model - ME Metric'!P21*'Finisher Model - ME Metric'!P21),"") ->  | G12: =IFERROR(338.34+108.98*'Finisher Model - ME Metric'!P22-46.7864*('Finisher Model - ME Metric'!P22*'Finisher Model - ME Metric'!P22),"") ->  | J12: Revenue Live, $/pig | K12: =IF('Finisher Model - ME Metric'!$D$11=2,L12,IF('Finisher Model - ME Metric'!$D$11=3,M12,IF('Finisher Model - ME Metric'!$D$11=4,N12,IF('Finisher Model - ME Metric'!$D$11=5,O12,IF('Finisher Model - ME Metric'!$D$11=6,P12,""))))) ->  | L12: =SUM(B19:C19,'Finisher Model - ME Metric'!B17)*'Finisher Model - ME Metric'!D7 ->  | M12: =SUM(B19:D19,'Finisher Model - ME Metric'!B17)*'Finisher Model - ME Metric'!D7 ->  | N12: =SUM(B19:E19,'Finisher Model - ME Metric'!B17)*'Finisher Model - ME Metric'!D7 ->  | O12: =SUM(B19:F19,'Finisher Model - ME Metric'!B17)*'Finisher Model - ME Metric'!D7 ->  | P12: =SUM(B19:G19,'Finisher Model - ME Metric'!B17)*'Finisher Model - ME Metric'!D7 -> 
A13: Predicted Overall ADFI, g/d | B13: =(B11/B12)*1000 ->  | J13: Total IOFC Live, $/pig | K13: =IF('Finisher Model - ME Metric'!$D$11=2,L13,IF('Finisher Model - ME Metric'!$D$11=3,M13,IF('Finisher Model - ME Metric'!$D$11=4,N13,IF('Finisher Model - ME Metric'!$D$11=5,O13,IF('Finisher Model - ME Metric'!$D$11=6,P13,""))))) ->  | L13: =L12-L10 ->  | M13: =M12-M10 ->  | N13: =N12-N10 ->  | P13: =P12-P10 -> 
A14: Predicted Overall F/G | B14: =B13/B11 ->  | C14: =C13/C11 ->  | J14: Total IOFFC Live, $/pig | K14: =IF('Finisher Model - ME Metric'!$D$11=2,L14,IF('Finisher Model - ME Metric'!$D$11=3,M14,IF('Finisher Model - ME Metric'!$D$11=4,N14,IF('Finisher Model - ME Metric'!$D$11=5,O14,IF('Finisher Model - ME Metric'!$D$11=6,P14,""))))) ->  | L14: =L12-L11 ->  | M14: =M12-M11 ->  | N14: =N12-N11 ->  | P14: =P12-P11 -> 
A15: Overall average F/G (weighted average based on phase duration) | B15: =IF('Finisher Model - ME Metric'!D11=2,SUMPRODUCT(B14:C14,B16:C16)/SUM(B16:C16),IF('Finisher Model - ME Metric'!D11=3,SUMPRODUCT(B14:D14,B16:D16)/SUM(B16:D16),IF('Finisher Model - ME Metric'!D11=4,SUMPRODUCT(B14:E14,B16:E16)/SUM(B16:E16),IF('Finisher Model - ME Metric'!D11=5,SUMPRODUCT(B14:F14,B16:F16)/SUM(B16:F16),IF('Finisher Model - ME Metric'!D11=6,SUMPRODUCT(B14:G14,B16:G16)/SUM(B16:G16),""))))) ->  | J15: HCW | K15: =IF('Finisher Model - ME Metric'!$D$11=2,L15,IF('Finisher Model - ME Metric'!$D$11=3,M15,IF('Finisher Model - ME Metric'!$D$11=4,N15,IF('Finisher Model - ME Metric'!$D$11=5,O15,IF('Finisher Model - ME Metric'!$D$11=6,P15,""))))) ->  | L15: =C25 ->  | M15: =D25 ->  | N15: =E25 ->  | O15: =F25 ->  | P15: =G25 -> 
A16: Phase duration, d | B16: ='Current Performance - ME'!B16 ->  | C16: ='Current Performance - ME'!C16 ->  | D16: ='Current Performance - ME'!D16 ->  | E16: ='Current Performance - ME'!E16 ->  | F16: ='Current Performance - ME'!F16 ->  | G16: ='Current Performance - ME'!G16 ->  | H16: =IF('Finisher Model - ME Metric'!D11=2,SUM(B16:C16),IF('Finisher Model - ME Metric'!D11=3,SUM(B16:D16),IF('Finisher Model - ME Metric'!D11=4,SUM(B16:E16),IF('Finisher Model - ME Metric'!D11=5,SUM(B16:F16),IF('Finisher Model - ME Metric'!D11=6,SUM(B16:G16),""))))) ->  | J16: Revenue Carcass, $/pig | K16: =IF('Finisher Model - ME Metric'!$D$11=2,L16,IF('Finisher Model - ME Metric'!$D$11=3,M16,IF('Finisher Model - ME Metric'!$D$11=4,N16,IF('Finisher Model - ME Metric'!$D$11=5,O16,IF('Finisher Model - ME Metric'!$D$11=6,P16,""))))) ->  | L16: =SUM(L15*'Finisher Model - ME Metric'!$D$8) ->  | M16: =SUM(M15*'Finisher Model - ME Metric'!$D$8) ->  | N16: =SUM(N15*'Finisher Model - ME Metric'!$D$8) ->  | O16: =SUM(O15*'Finisher Model - ME Metric'!$D$8) ->  | P16: =SUM(P15*'Finisher Model - ME Metric'!$D$8) -> 
A17: Feed budget by phase, kg/pig | B17: =CONVERT(D43,"lbm","kg") ->  | C17: =CONVERT(D44,"lbm","kg") ->  | D17: =CONVERT(D45,"lbm","kg") ->  | E17: =CONVERT(D46,"lbm","kg") ->  | F17: =CONVERT(D47,"lbm","kg") ->  | G17: =CONVERT(D48,"lbm","kg") ->  | J17: Total IOFC Carcass, $/pig | K17: =IF('Finisher Model - ME Metric'!$D$11=2,L17,IF('Finisher Model - ME Metric'!$D$11=3,M17,IF('Finisher Model - ME Metric'!$D$11=4,N17,IF('Finisher Model - ME Metric'!$D$11=5,O17,IF('Finisher Model - ME Metric'!$D$11=6,P17,""))))) ->  | L17: =L16-L10 ->  | M17: =M16-M10 ->  | N17: =N16-N10 ->  | O17: =O16-O10 ->  | P17: =P16-P10 -> 
A18: Total feed cost per phase, $/pig | B18: =(B17*(B9/907)) ->  | C18: =(C17*(C9/907)) ->  | F18: =(F17*(F9/907)) ->  | J18: Total IOFFC Carcass, $/pig | K18: =IF('Finisher Model - ME Metric'!$D$11=2,L18,IF('Finisher Model - ME Metric'!$D$11=3,M18,IF('Finisher Model - ME Metric'!$D$11=4,N18,IF('Finisher Model - ME Metric'!$D$11=5,O18,IF('Finisher Model - ME Metric'!$D$11=6,P18,""))))) ->  | L18: =L16-L11 ->  | M18: =M16-M11 ->  | N18: =N16-N11 ->  | O18: =O16-O11 ->  | P18: =P16-P11 -> 
A19: Gain, kg | B19: =B11/1000*B16 ->  | C19: =C11/1000*C16 ->  | H19: =IF('Finisher Model - ME Metric'!D11=2,SUM(B19:C19)+'Finisher Model - ME Metric'!B17,IF('Finisher Model - ME Metric'!D11=3,SUM(B19:D19)+'Finisher Model - ME Metric'!B17,IF('Finisher Model - ME Metric'!D11=4,SUM(B19:E19)+'Finisher Model - ME Metric'!B17,IF('Finisher Model - ME Metric'!D11=5,SUM(B19:F19)+'Finisher Model - ME Metric'!B17,IF('Finisher Model - ME Metric'!D11=6,SUM(B19:G19)+'Finisher Model - ME Metric'!B17,""))))) -> 
A20: Feed cost per/kg of gain, $/pig | B20: =B18/((B11/1000)*B16) ->  | C20: =C18/((C11/1000)*C16) -> 
A21: Feed and facility cost, $/pig | B21: =B18+(B16*'Finisher Model - ME Metric'!$D$10) ->  | C21: =C18+(C16*'Finisher Model - ME Metric'!$D$10) ->  | D21: =D18+(D16*'Finisher Model - ME Metric'!$D$10) ->  | E21: =E18+(E16*'Finisher Model - ME Metric'!$D$10) ->  | F21: =F18+(F16*'Finisher Model - ME Metric'!$D$10) ->  | G21: =G18+(G16*'Finisher Model - ME Metric'!$D$10) -> 
A22: Revenue per pig, $/pig | B22: =B19*'Finisher Model - ME Metric'!$D$7 ->  | C22: =C19*'Finisher Model - ME Metric'!$D$7 ->  | D22: =D19*'Finisher Model - ME Metric'!$D$7 ->  | E22: =E19*'Finisher Model - ME Metric'!$D$7 ->  | F22: =F19*'Finisher Model - ME Metric'!$D$7 ->  | G22: =G19*'Finisher Model - ME Metric'!$D$7 -> 
A23: IOFC by phase, $/pig | B23: =B22-B18 -> 
A24: IOFFC by phase, $/pig | B24: =B22-B21 -> 
A25: Calculated Overall HCW,lb based on final BW and corrected yield | B25: =$H$19*B33/100 -> 
A26: Yield based on final BW and PIC equation | B26: =(VLOOKUP($H$19,$C$55:$I$94,7,TRUE))*100 ->  | C26: =(VLOOKUP($H$19,$C$55:$I$94,7,TRUE))*100 -> 
A27: User yield | B27: ='Finisher Model - ME Metric'!D9 -> 0
A28: User/PIC ratio | B28: =B27/B26 ->  | J28: Yield equation
A29: Biological STTD P as % of NRC | B29: ='Finisher Model - ME Metric'!P17 ->  | C29: ='Finisher Model - ME Metric'!P18 ->  | D29: ='Finisher Model - ME Metric'!P19 ->  | E29: ='Finisher Model - ME Metric'!P20 ->  | F29: ='Finisher Model - ME Metric'!P21 ->  | G29: ='Finisher Model - ME Metric'!P22 ->  | H29: =IF('Finisher Model - ME Metric'!D11=2,SUMPRODUCT(B29:C29,B16:C16)/SUM(B16:C16),IF('Finisher Model - ME Metric'!D11=3,SUMPRODUCT(B29:D29,B16:D16)/SUM(B16:D16),IF('Finisher Model - ME Metric'!D11=4,SUMPRODUCT(B29:E29,B16:E16)/SUM(B16:E16),IF('Finisher Model - ME Metric'!D11=5,SUMPRODUCT(B29:F29,B16:F16)/SUM(B16:F16),IF('Finisher Model - ME Metric'!D11=6,SUMPRODUCT(B29:G29,B16:G16)/SUM(B16:G16),""))))) -> 
A30: Predicted yield based on biological STTD P level | B30: =73.859-1.19192*H29 ->  | J30: 73.859 - 1.19192 x STTD P % of NRC
A31: Yield at 100% of NRC | B31: =73.859-1.19192*1 -> 72.66708
A32: Yield correction factor based on STTD P level | B32: =B30/B31 -> 
A33: Corrected current yield | B33: =(VLOOKUP($H$19,$C$55:$K$94,9,TRUE)) ->  | C33: =(VLOOKUP($H$19,$C$55:$K$94,9,TRUE)) -> 
B37: Mixed Sex Feed Budget
B38: Closeout Feed Efficiency
B39: Initial Wt | C39: Final Wt | D39: F/G
B40: =CONVERT('Finisher Model - ME Metric'!B17,"kg","lbm") -> 0 | C40: =CONVERT(H19,"kg","lbm") ->  | D40: =B15 -> 
B42: Initial Wt | C42: Final Wt | D42: lb/pig | E42: =IF(B43=0,F42,((0.00463*B43^2 + 1.68*B43 - 22.05)/(((0.00463*C40^2 + 1.68*C40 - 22.05)-(0.00463*B40^2 + 1.68*B40 - 22.05))/(C40-B40))*D40)) -> 0
A43: 1 | B43: =CONVERT('Finisher Model - ME Metric'!B17,"kg","lbm") -> 0 | C43: =CONVERT('Finisher Model - ME Metric'!C17,"kg","lbm") -> 0 | D43: =IF(C43="","",(E43-E42)) ->  | E43: =IF(B44="","",((0.00463*B44^2 + 1.68*B44 - 22.05)/(((0.00463*$C$40^2 + 1.68*$C$40 - 22.05)-(0.00463*$B$40^2 + 1.68*$B$40 - 22.05))/($C$40-$B$40))*$D$40)) -> 
A44: 2 | B44: =C43 -> 0 | C44: =CONVERT(IF('Finisher Model - ME Metric'!D11=2,H19,'Finisher Model - ME Metric'!C18),"kg","lbm") -> 0 | D44: =IF(C44="","",(E44-E43)) -> 
A45: 3 | B45: 0 | C45: =CONVERT(IF('Finisher Model - ME Metric'!D11=3,H19,'Finisher Model - ME Metric'!C19),"kg","lbm") -> 0
A46: 4 | B46: 0 | C46: =CONVERT(IF('Finisher Model - ME Metric'!D11=4,H19,'Finisher Model - ME Metric'!C20),"kg","lbm") -> 0 | D46: =IF(C46="","",(E46-E45)) -> 
A47: 5 | B47: =C46 -> 0 | C47: =CONVERT(IF('Finisher Model - ME Metric'!D11=5,H19,'Finisher Model - ME Metric'!C21),"kg","lbm") -> 0
A48: 6 | B48: =C47 -> 0 | C48: =CONVERT(IF('Finisher Model - ME Metric'!D11=6,H19,""),"kg","lbm") ->  | D48: =IF(C48="","",(E48-E47)) -> 
B49: =C48 -> 
B53: Hot Carcass Wheight | C53: Market weight (est. by Carcass yield) | D53: Back Fat for PIC 337 | I53: Carcass Yield (%) = 66.411 + ( Carcass weight, kg x 0.0878)
B54: kg | C54: kg | D54: Barrows | E54: Gilts | F54: Average | J54: User/PIC Adjusted Yield | K54: User/PIC Asjusted and STTD P adjusted
B55: 81 | C55: 110.1767062 | D55: 16.86478205 | E55: 14.51072874 | F55: 15.6877554 | I55: 0.7351826241 | J55: =(I55*$B$28)*100 ->  | K55: =J55*$B$32 -> 
B56: 82 | C56: 111.403952 | D56: 17.07445571 | E56: 14.61370144 | F56: 15.84407857 | I56: 0.7360600639 | J56: =(I56*$B$28)*100 ->  | K56: =J56*$B$32 -> 
B57: 83 | C57: 112.6282752 | D57: 17.28414727 | E57: 14.71614343 | F57: 16.00014535 | I57: 0.7369375037
B58: 84 | C58: 113.8496865 | D58: 17.49385651 | E58: 14.81806378 | F58: 16.15596015 | I58: 0.7378149435
B59: 85 | C59: 115.0681961 | D59: 17.70358323 | E59: 14.91947133 | F59: 16.31152728 | I59: 0.7386923833
B60: 86 | C60: 116.2838143 | D60: 17.91332723 | E60: 15.02037463 | F60: 16.46685093 | I60: 0.7395698231
B61: 87 | C61: 117.4965516 | D61: 18.1230883 | E61: 15.12078202 | F61: 16.62193516 | I61: 0.7404472629
B62: 88 | C62: 118.706418 | D62: 18.33286624 | E62: 15.22070158 | F62: 16.77678391 | I62: 0.7413247027
B63: 89 | C63: 119.9134237 | D63: 18.54266088 | E63: 15.3201412 | F63: 16.93140104 | I63: 0.7422021425
B64: 90 | C64: 121.117579 | D64: 18.75247201 | E64: 15.41910854 | F64: 17.08579027 | I64: 0.7430795823
B65: 91 | C65: 122.3188938 | D65: 18.96229947 | E65: 15.51761104 | F65: 17.23995525 | I65: 0.7439570221
B66: 92 | C66: 123.5173783 | D66: 19.17214306 | E66: 15.61565596 | F66: 17.39389951 | I66: 0.7448344619
B67: 93 | C67: 124.7130424 | D67: 19.38200263 | E67: 15.71325037 | F67: 17.5476265 | I67: 0.7457119017
B68: 94 | C68: 125.905896 | D68: 19.59187799 | E68: 15.81040115 | F68: 17.70113957 | I68: 0.7465893415
B69: 95 | C69: 127.0959491 | D69: 19.80176898 | E69: 15.90711501 | F69: 17.85444199 | I69: 0.7474667813
B70: 96 | C70: 128.2832115 | D70: 20.01167544 | E70: 16.00339847 | F70: 18.00753695 | I70: 0.7483442211
B71: 97 | C71: 129.467693 | D71: 20.2215972 | E71: 16.09925791 | F71: 18.16042755 | I71: 0.7492216609
B72: 98 | C72: 130.6494034 | D72: 20.43153412 | E72: 16.19469953 | F72: 18.31311682 | I72: 0.7500991007
B73: 99 | C73: 131.8283524 | D73: 20.64148603 | E73: 16.2897294 | F73: 18.46560771 | I73: 0.7509765405
B74: 100 | C74: 133.0045496 | D74: 20.85145278 | E74: 16.38435342 | F74: 18.6179031 | I74: 0.7518539803
B75: 101 | C75: 134.1780047 | D75: 21.06143424 | E75: 16.47857735 | F75: 18.7700058 | I75: 0.7527314202
B76: 102 | C76: 135.3487272 | D76: 21.27143025 | E76: 16.57240684 | F76: 18.92191854 | I76: 0.75360886
B77: 103 | C77: 136.5167267 | D77: 21.48144067 | E77: 16.66584736 | F77: 19.07364401 | I77: 0.7544862998
B78: 104 | C78: 137.6820127 | D78: 21.69146536 | E78: 16.75890429 | F78: 19.22518482 | I78: 0.7553637396
B79: 105 | C79: 138.8445946 | D79: 21.90150419 | E79: 16.85158287 | F79: 19.37654353 | I79: 0.7562411794
B80: 106 | C80: 140.0044819 | D80: 22.11155702 | E80: 16.94388821 | F80: 19.52772262 | I80: 0.7571186192
B81: 107 | C81: 141.1616838 | D81: 22.32162373 | E81: 17.03582532 | F81: 19.67872453 | I81: 0.757996059
B82: 108 | C82: 142.3162097 | D82: 22.53170418 | E82: 17.1273991 | F82: 19.82955164 | I82: 0.7588734988
B83: 109 | C83: 143.4680689 | D83: 22.74179825 | E83: 17.21861431 | F83: 19.98020628 | I83: 0.7597509386
B84: 110 | C84: 144.6172706 | D84: 22.95190581 | E84: 17.30947563 | F84: 20.13069072 | I84: 0.7606283784
B85: 111 | C85: 145.7638239 | D85: 23.16202674 | E85: 17.39998765 | F85: 20.28100719 | I85: 0.7615058182
B86: 112 | C86: 146.9077381 | D86: 23.37216092 | E86: 17.49015482 | F86: 20.43115787 | I86: 0.762383258
B87: 113 | C87: 148.0490222 | D87: 23.58230823 | E87: 17.57998152 | F87: 20.58114488 | I87: 0.7632606978
B88: 114 | C88: 149.1876853 | D88: 23.79246857 | E88: 17.66947204 | F88: 20.7309703 | I88: 0.7641381376
B89: 115 | C89: 150.3237364 | D89: 24.00264181 | E89: 17.75863057 | F89: 20.88063619 | I89: 0.7650155774
B90: 116 | C90: 151.4571845 | D90: 24.21282784 | E90: 17.8474612 | F90: 21.03014452 | I90: 0.7658930172
B91: 117 | C91: 152.5880385 | D91: 24.42302656 | E91: 17.93596796 | F91: 21.17949726 | I91: 0.766770457
B92: 118 | C92: 153.7163073 | D92: 24.63323785 | E92: 18.02415478 | F92: 21.32869631 | I92: 0.7676478968
B93: 119 | C93: 154.8419998 | D93: 24.84346162 | E93: 18.11202551 | F93: 21.47774356 | I93: 0.7685253366
B94: 120 | C94: 155.9651247 | D94: 25.05369775 | E94: 18.19958393 | F94: 21.62664084 | I94: 0.7694027764
